{"text_format":"3","workbook":"xlsx","n_sheets":11,"sheets":["PRINCIPAL","IPER","ND","NE","NP","NC","NR o NI","RIESGOS GRALES","datos","GRAFICOS","PLANDEACCION"],"not_rendered":{"charts":6,"images":5,"macros":1,"defined_names":14},"read":"whole","date_system":"1900"}

{"sheet":"PRINCIPAL","index":0,"n_rows":29,"n_cols":13,"rows_kept":29,"merged":[[28,12,28,14]]}
{"$rows_empty":28}
[{"$nulls":12},"IPER_V3_2021"]

{"sheet":"IPER","index":1,"n_rows":31,"n_cols":28,"rows_kept":31,"merged":[[0,25,4,26],[5,1,5,10],[5,11,5,13],[5,14,5,24],[5,25,5,26]]}
[]
[]
[]
[]
[]
[{"$nulls":11},"MEDIDAS ORGANIZACIONALES Y MEDIDAS TECNICAS EXISTENTES",null,null,"EVALUACION DE RIESGOS",{"$nulls":10},"PLAN DE ACCION"]
[null,"Id","EMPRESA","SECTOR","AREA","TIPO DE TAREA","PUESTO DE TRABAJO","OPERACIÓN","PELIGRO \n(Listado estándar)","Peligro\n(Ingresar el detalle del puesto de trabajo)","DAÑO\n(Opcion estandar)","Daño \n(Ingresar detalle del puesto de trabajo)","MEDIDAS ORGANIZACIONALES","MEDIDAS TECNICAS","¿SE CUMMPLEN LOS REQUISITOS LEGALES?","Nivel de Deficiencia (ND)","Detalle de ND","Nivel de Exposición (NE)","Detalle de NE","Nivel de Probabilidad (NP)","Detalle de NP","Nivel de Consecuencia (NC)","Detalle de NC","Nivel de Riesgo (NR) y Nivel de Intervención (NI)","Detalle de NR y NI","Existe Plan de Acción?","VER DETALLE DE PLAN DE ACCION","Fecha de Evaluación"]
[null,1,"EJEMPLO 1","DEPOSITO","RECEPCION MATERIA PRIMA","Rutinarias","PUESTO 1","TAREA 1","020 Caída de personas al mismo nivel","PELIGRO 1","Lesión Corporal","DAÑO 1 ","MEDIDA 1","TECNICA 1","Si",1,{"$f":"IF(P8=0,\"-\",VLOOKUP(P8,ND,3,FALSE))","v":"No se han detectado anomalía destacable alguna. El riesgo esta controlado. No se Valora"},1,{"$f":"IF(R8=0,\"-\",VLOOKUP(R8,NE,3,FALSE))","v":"Irregularmente"},{"$f":"P8*R8","v":1},{"$f":"IF(T8=0,\"-\",VLOOKUP(T8,NP,3,FALSE))","v":"Situación mejorable con exposición ocasional o esporádica. No es esperable que se materialice el riesgo aunque puede ser concebible"},10,{"$f":"IF(V8=0,\"-\",VLOOKUP(V8,NC,3,FALSE))","v":"Pequeñas lesiones que no requieren hospitalización"},{"$f":"IF(O8=\"NO\",4000,T8*V8)","v":10},{"$f":"IF(X8=0,\"-\",VLOOKUP(X8,NR,3,FALSE))","v":"No Intervenir, salvo que un analisis mas preciso lo justifique"},"SI","VER PLAN DE ACCION"]
[null,2,"EJEMPLO 1","DEPOSITO","RECEPCION MATERIA PRIMA","Rutinarias","PUESTO 1","TAREA 2","010 caída de personas a distinto nivel","PELIGRO 2","Lesión Corporal","DAÑO 2","MEDIDA 2","TECNICA 2","Si",2,{"$f":"IF(P9=0,\"-\",VLOOKUP(P9,ND,3,FALSE))","v":"Se han detectado factores de riesgo de menor importancia. La eficacia del conjunto de medidas preventivas existentes respecto al riesgo no se ve reducida de forma apreciable"},2,{"$f":"IF(R9=0,\"-\",VLOOKUP(R9,NE,3,FALSE))","v":"Alguna vez en su jornada laboral y con periodo corto de tiempo"},{"$f":"P9*R9","v":4},{"$f":"IF(T9=0,\"-\",VLOOKUP(T9,NP,3,FALSE))","v":"Situación mejorable con exposición ocasional o esporádica. No es esperable que se materialice el riesgo aunque puede ser concebible"},25,{"$f":"IF(V9=0,\"-\",VLOOKUP(V9,NC,3,FALSE))","v":"Lesiones con incapacidad laboral transitoria (ILT)"},100,"Mejorar si es posible. Sería conveniente justificar la intervención y su rentabilidad","NO","VER PLAN DE ACCION"]
[null,3,"EJEMPLO 1","DEPOSITO","ENTREGA DE MATERIALES","Rutinarias","PUESTO 2","TAREA 1","030 Caída de objetos por desplome o derrumbamiento","PELIGRO 1","Lesión Corporal","DAÑO 3","MEDIDA 3","TECNICA 3","Si",6,"Se ha detectado algún factor de riesgo significativo que precisa ser corregido. La eficacia del conjunto de medidas preventivas existentes se ve reducida de forma apreciable",3,"Varias veces en su jornada laboral, aunque sea con tiempos cortos",18,"Situación deficiente con exposición frecuente u ocasional o esporádica. La materialización del riesgo es posible que suceda varias veces en el ciclo de vida laboral",60,"Lesiones Graves que pueden ser irreparables",1080,"Situación Crítica. Correccción Urgente","SI","VER PLAN DE ACCION"]
[null,4,"EJEMPLO 1","DEPOSITO","ENTREGA DE MATERIALES","Rutinarias","PUESTO 2","TAREA 2","080 choques contra objetos móviles","PELIGRO 2","Daños Materiales","DAÑO 4","MEDIDA 1","TECNICA 1","Si",10,"Muy Deficiente Se han detectado factores de riesgo significativos que determinan como muy posible la generación de fallos. El conjunto de medidas preventivas existentes respecto al riesgo resulta ineficaz",4,"Continuamente. Varias veces en su jornada laboral con tiempo prolongado",40,"Situación deficiente con exposición continuada, o muy deficiente con exposición frecuente. Normalmente la materialización del riesgo ocurre con frecuencia",100,"1 muerto o más",4000,"Situación Crítica. Correccción Urgente","SI","VER PLAN DE ACCION"]
[null,5,"EJEMPLO 1","PRODUCCIÓN","AREA 1","Rutinarias","PUESTO 3","TAREA 1","080 choques contra objetos móviles","PELIGRO 1","Dolencia Ocupacional","DAÑO 5","MEDIDA 2","TECNICA 2","Si",1,"No se han detectado anomalía destacable alguna. El riesgo esta controlado. No se Valora",1,"Irregularmente",1,"Situación mejorable con exposición ocasional o esporádica. No es esperable que se materialice el riesgo aunque puede ser concebible",10,"Pequeñas lesiones que no requieren hospitalización",10,"No Intervenir, salvo que un analisis mas preciso lo justifique","SI","VER PLAN DE ACCION"]
[null,6,"EJEMPLO 1","PRODUCCIÓN","AREA 1","Rutinarias","PUESTO 3","TAREA 2","060 Pisadas sobre objetos","PELIGRO 2","Lesión Corporal","DAÑO 6","MEDIDA 3","TECNICA 3","Si",2,"Se han detectado factores de riesgo de menor importancia. La eficacia del conjunto de medidas preventivas existentes respecto al riesgo no se ve reducida de forma apreciable",2,"Alguna vez en su jornada laboral y con periodo corto de tiempo",4,"Situación mejorable con exposición ocasional o esporádica. No es esperable que se materialice el riesgo aunque puede ser concebible",25,"Lesiones con incapacidad laboral transitoria (ILT)",100,"Mejorar si es posible. Sería conveniente justificar la intervención y su rentabilidad","SI","VER PLAN DE ACCION"]
[null,7,"EJEMPLO 1","PRODUCCIÓN","AREA 2","Rutinarias","PUESTO 4","TAREA 1","214 Incendios, Evacuación","PELIGRO 1","Dolencia Ocupacional","DAÑO 7","MEDIDA 1","TECNICA 1","Si",6,"Se ha detectado algún factor de riesgo significativo que precisa ser corregido. La eficacia del conjunto de medidas preventivas existentes se ve reducida de forma apreciable",3,"Varias veces en su jornada laboral, aunque sea con tiempos cortos",18,"Situación deficiente con exposición frecuente u ocasional o esporádica. La materialización del riesgo es posible que suceda varias veces en el ciclo de vida laboral",60,"Lesiones Graves que pueden ser irreparables",1080,"Situación Crítica. Correccción Urgente","SI","VER PLAN DE ACCION"]
[null,8,"EJEMPLO 1","PRODUCCIÓN","AREA 2","Rutinarias","PUESTO 4","TAREA 2","050 caída de objetos desprendidos","PELIGRO 2","Daños Materiales","DAÑO 8","MEDIDA 2","TECNICA 2","Si",10,"Muy Deficiente Se han detectado factores de riesgo significativos que determinan como muy posible la generación de fallos. El conjunto de medidas preventivas existentes respecto al riesgo resulta ineficaz",4,"Continuamente. Varias veces en su jornada laboral con tiempo prolongado",40,"Situación deficiente con exposición continuada, o muy deficiente con exposición frecuente. Normalmente la materialización del riesgo ocurre con frecuencia",100,"1 muerto o más",4000,"Situación Crítica. Correccción Urgente","SI","VER PLAN DE ACCION"]
[null,9,"EJEMPLO 1","CONTROL DE CALIDAD","PLANTA INDUSTRIAL","Rutinarias","PUESTO 5","TAREA 1","070 Choques contra objetos inmóviles","PELIGRO 1","DO y DM","DAÑO 9","MEDIDA 3","TECNICA 3","Si",1,"No se han detectado anomalía destacable alguna. El riesgo esta controlado. No se Valora",1,"Irregularmente",1,"Situación mejorable con exposición ocasional o esporádica. No es esperable que se materialice el riesgo aunque puede ser concebible",10,"Pequeñas lesiones que no requieren hospitalización",10,"No Intervenir, salvo que un analisis mas preciso lo justifique","SI","VER PLAN DE ACCION"]
[null,10,"EJEMPLO 1","CONTROL DE CALIDAD","PLANTA INDUSTRIAL","Rutinarias","PUESTO 5","TAREA 2","211 Incendios, Factor de inicio","PELIGRO 2","Lesión Corporal","DAÑO 10","MEDIDA 1","TECNICA 1","Si",2,"Se han detectado factores de riesgo de menor importancia. La eficacia del conjunto de medidas preventivas existentes respecto al riesgo no se ve reducida de forma apreciable",2,"Alguna vez en su jornada laboral y con periodo corto de tiempo",4,"Situación mejorable con exposición ocasional o esporádica. No es esperable que se materialice el riesgo aunque puede ser concebible",25,"Lesiones con incapacidad laboral transitoria (ILT)",100,"Mejorar si es posible. Sería conveniente justificar la intervención y su rentabilidad","NO","VER PLAN DE ACCION"]
[null,11,"EJEMPLO 1","CONTROL DE CALIDAD","PRODUCTO TERMINADO","Rutinarias","PUESTO 6","TAREA 1","150 Contactos térmicos","PELIGRO 1","Dolencia Ocupacional","DAÑO 11","MEDIDA 2","TECNICA 2","Si",6,"Se ha detectado algún factor de riesgo significativo que precisa ser corregido. La eficacia del conjunto de medidas preventivas existentes se ve reducida de forma apreciable",3,"Varias veces en su jornada laboral, aunque sea con tiempos cortos",18,"Situación deficiente con exposición frecuente u ocasional o esporádica. La materialización del riesgo es posible que suceda varias veces en el ciclo de vida laboral",60,"Lesiones Graves que pueden ser irreparables",1080,"Situación Crítica. Correccción Urgente","NO","VER PLAN DE ACCION"]
[null,12,"EJEMPLO 1","CONTROL DE CALIDAD","PRODUCTO TERMINADO","Rutinarias","PUESTO 6","TAREA 2","020 Caída de personas al mismo nivel","PELIGRO 2","Daños Materiales","DAÑO 12","MEDIDA 3","TECNICA 3","Si",10,"Muy Deficiente Se han detectado factores de riesgo significativos que determinan como muy posible la generación de fallos. El conjunto de medidas preventivas existentes respecto al riesgo resulta ineficaz",4,"Continuamente. Varias veces en su jornada laboral con tiempo prolongado",40,"Situación deficiente con exposición continuada, o muy deficiente con exposición frecuente. Normalmente la materialización del riesgo ocurre con frecuencia",100,"1 muerto o más",4000,"Situación Crítica. Correccción Urgente","NO","VER PLAN DE ACCION"]
[null,13,"EJEMPLO 1","EXPEDICIÓN","PREPARACION DE EMBARQUE","Rutinarias","PUESTO 7","TAREA 1","010 caída de personas a distinto nivel","PELIGRO 1","DO y DM","DAÑO 13","MEDIDA 1","TECNICA 1","Si",1,"No se han detectado anomalía destacable alguna. El riesgo esta controlado. No se Valora",1,"Irregularmente",1,"Situación mejorable con exposición ocasional o esporádica. No es esperable que se materialice el riesgo aunque puede ser concebible",10,"Pequeñas lesiones que no requieren hospitalización",10,"No Intervenir, salvo que un analisis mas preciso lo justifique","NO","VER PLAN DE ACCION"]
[null,14,"EJEMPLO 1","EXPEDICIÓN","PREPARACION DE EMBARQUE","Rutinarias","PUESTO 7","TAREA 2","030 Caída de objetos por desplome o derrumbamiento","PELIGRO 2","Lesión Corporal","DAÑO 14","MEDIDA 2","TECNICA 2","Si",2,"Se han detectado factores de riesgo de menor importancia. La eficacia del conjunto de medidas preventivas existentes respecto al riesgo no se ve reducida de forma apreciable",2,"Alguna vez en su jornada laboral y con periodo corto de tiempo",4,"Situación mejorable con exposición ocasional o esporádica. No es esperable que se materialice el riesgo aunque puede ser concebible",60,"Lesiones Graves que pueden ser irreparables",240,"Corregir y adoptar medidas de control","NO","VER PLAN DE ACCION"]
[null,15,"EJEMPLO 1","EXPEDICIÓN","CARGA DE CAMIONES","Rutinarias","PUESTO 8","TAREA 1","080 choques contra objetos móviles","PELIGRO 1","Dolencia Ocupacional","DAÑO 15","MEDIDA 3","TECNICA 3","Si",6,"Se ha detectado algún factor de riesgo significativo que precisa ser corregido. La eficacia del conjunto de medidas preventivas existentes se ve reducida de forma apreciable",3,"Varias veces en su jornada laboral, aunque sea con tiempos cortos",18,"Situación deficiente con exposición frecuente u ocasional o esporádica. La materialización del riesgo es posible que suceda varias veces en el ciclo de vida laboral",25,"Lesiones con incapacidad laboral transitoria (ILT)",450,"Corregir y adoptar medidas de control","NO","VER PLAN DE ACCION"]
[null,16,"EJEMPLO 1","EXPEDICIÓN","CARGA DE CAMIONES","Rutinarias","PUESTO 8","TAREA 2","080 choques contra objetos móviles","PELIGRO 2","Daños Materiales","DAÑO 16","MEDIDA 1","TECNICA 1","Si",10,"Muy Deficiente Se han detectado factores de riesgo significativos que determinan como muy posible la generación de fallos. El conjunto de medidas preventivas existentes respecto al riesgo resulta ineficaz",4,"Continuamente. Varias veces en su jornada laboral con tiempo prolongado",40,"Situación deficiente con exposición continuada, o muy deficiente con exposición frecuente. Normalmente la materialización del riesgo ocurre con frecuencia",100,"1 muerto o más",4000,"Situación Crítica. Correccción Urgente","NO","VER PLAN DE ACCION"]
[null,17,"EJEMPLO 1","LABORATORIO","PRUEBAS DESTRUCTIVAS","No Rutinarias","PUESTO 9","TAREA 1","060 Pisadas sobre objetos","PELIGRO 1","DO y DM","DAÑO 17","MEDIDA 2","TECNICA 2","No",1,"No se han detectado anomalía destacable alguna. El riesgo esta controlado. No se Valora",1,"Irregularmente",1,"Situación mejorable con exposición ocasional o esporádica. No es esperable que se materialice el riesgo aunque puede ser concebible",10,"Pequeñas lesiones que no requieren hospitalización",4000,"Situación Crítica. Correccción Urgente","NO","VER PLAN DE ACCION"]
[null,18,"EJEMPLO 1","LABORATORIO","PRUEBAS DESTRUCTIVAS","No Rutinarias","PUESTO 9","TAREA 2","214 Incendios, Evacuación","PELIGRO 2","Lesión Corporal","DAÑO 18","MEDIDA 3","TECNICA 3","No",2,"Se han detectado factores de riesgo de menor importancia. La eficacia del conjunto de medidas preventivas existentes respecto al riesgo no se ve reducida de forma apreciable",2,"Alguna vez en su jornada laboral y con periodo corto de tiempo",4,"Situación mejorable con exposición ocasional o esporádica. No es esperable que se materialice el riesgo aunque puede ser concebible",25,"Lesiones con incapacidad laboral transitoria (ILT)",4000,"Situación Crítica. Correccción Urgente","SI","VER PLAN DE ACCION"]
[null,19,"EJEMPLO 1","LABORATORIO","PRUEBAS NO DESTRCUTIVAS","Rutinarias","PUESTO 10","TAREA 1","050 caída de objetos desprendidos","PELIGRO 1","Dolencia Ocupacional","DAÑO 19","MEDIDA 1","TECNICA 1","No",6,"Se ha detectado algún factor de riesgo significativo que precisa ser corregido. La eficacia del conjunto de medidas preventivas existentes se ve reducida de forma apreciable",3,"Varias veces en su jornada laboral, aunque sea con tiempos cortos",18,"Situación deficiente con exposición frecuente u ocasional o esporádica. La materialización del riesgo es posible que suceda varias veces en el ciclo de vida laboral",25,"Lesiones con incapacidad laboral transitoria (ILT)",4000,"Situación Crítica. Correccción Urgente","SI","VER PLAN DE ACCION"]
[null,20,"EJEMPLO 1","LABORATORIO","PRUEBAS NO DESTRCUTIVAS","Rutinarias","PUESTO 10","TAREA 2","070 Choques contra objetos inmóviles","PELIGRO 2","Daños Materiales","DAÑO 20","MEDIDA 2","TECNICA 2","Si",10,"Muy Deficiente Se han detectado factores de riesgo significativos que determinan como muy posible la generación de fallos. El conjunto de medidas preventivas existentes respecto al riesgo resulta ineficaz",4,"Continuamente. Varias veces en su jornada laboral con tiempo prolongado",40,"Situación deficiente con exposición continuada, o muy deficiente con exposición frecuente. Normalmente la materialización del riesgo ocurre con frecuencia",100,"1 muerto o más",4000,"Situación Crítica. Correccción Urgente","SI","VER PLAN DE ACCION"]
[null,21,"EJEMPLO 1","MANTENIMIENTO","TALLER HERRERIA","No Rutinarias","PUESTO 11","TAREA 1","211 Incendios, Factor de inicio","PELIGRO 1","DO y DM","DAÑO 21","MEDIDA 3","TECNICA 3","No",1,"No se han detectado anomalía destacable alguna. El riesgo esta controlado. No se Valora",1,"Irregularmente",1,"Situación mejorable con exposición ocasional o esporádica. No es esperable que se materialice el riesgo aunque puede ser concebible",10,"Pequeñas lesiones que no requieren hospitalización",4000,"Situación Crítica. Correccción Urgente","SI","VER PLAN DE ACCION"]
[null,22,"EJEMPLO 1","MANTENIMIENTO","TALLER HERRERIA","No Rutinarias","PUESTO 11","TAREA 2","370 Radiaciones no ionizantes","PELIGRO 2","Lesión Corporal","DAÑO 22","MEDIDA 1","TECNICA 1","Si",2,"Se han detectado factores de riesgo de menor importancia. La eficacia del conjunto de medidas preventivas existentes respecto al riesgo no se ve reducida de forma apreciable",2,"Alguna vez en su jornada laboral y con periodo corto de tiempo",4,"Situación mejorable con exposición ocasional o esporádica. No es esperable que se materialice el riesgo aunque puede ser concebible",25,"Lesiones con incapacidad laboral transitoria (ILT)",100,"Mejorar si es posible. Sería conveniente justificar la intervención y su rentabilidad","NO","VER PLAN DE ACCION"]
[null,23,"EJEMPLO 1","MANTENIMIENTO","TALLER ELECTRICIDAD","No Rutinarias","PUESTO 12","TAREA 1","490 Fatiga visual","PELIGRO 1","Dolencia Ocupacional","DAÑO 23","MEDIDA 2","TECNICA 2","No",6,"Se ha detectado algún factor de riesgo significativo que precisa ser corregido. La eficacia del conjunto de medidas preventivas existentes se ve reducida de forma apreciable",3,"Varias veces en su jornada laboral, aunque sea con tiempos cortos",18,"Situación deficiente con exposición frecuente u ocasional o esporádica. La materialización del riesgo es posible que suceda varias veces en el ciclo de vida laboral",25,"Lesiones con incapacidad laboral transitoria (ILT)",4000,"Situación Crítica. Correccción Urgente","NO","VER PLAN DE ACCION"]
[null,24,"EJEMPLO 1","MANTENIMIENTO","TALLER ELECTRICIDAD","No Rutinarias","PUESTO 12","TAREA 2","211 Incendios, Factor de inicio","PELIGRO 2","Daños Materiales","DAÑO 24","MEDIDA 3","TECNICA 3","No",10,"Muy Deficiente Se han detectado factores de riesgo significativos que determinan como muy posible la generación de fallos. El conjunto de medidas preventivas existentes respecto al riesgo resulta ineficaz",4,"Continuamente. Varias veces en su jornada laboral con tiempo prolongado",40,"Situación deficiente con exposición continuada, o muy deficiente con exposición frecuente. Normalmente la materialización del riesgo ocurre con frecuencia",100,"1 muerto o más",4000,"Situación Crítica. Correccción Urgente","SI","VER PLAN DE ACCION"]

{"sheet":"ND","index":2,"n_rows":5,"n_cols":3,"rows_kept":5,"hidden":true}
["ND","Nivel de Deficiencia","Significado"]
[10,"Muy Deficiente (MD)","Muy Deficiente Se han detectado factores de riesgo significativos que determinan como muy posible la generación de fallos. El conjunto de medidas preventivas existentes respecto al riesgo resulta ineficaz"]
[6,"Deficiente","Se ha detectado algún factor de riesgo significativo que precisa ser corregido. La eficacia del conjunto de medidas preventivas existentes se ve reducida de forma apreciable"]
[2,"Mejorable","Se han detectado factores de riesgo de menor importancia. La eficacia del conjunto de medidas preventivas existentes respecto al riesgo no se ve reducida de forma apreciable"]
[1,"Aceptable","No se han detectado anomalía destacable alguna. El riesgo esta controlado. No se Valora"]

{"sheet":"NE","index":3,"n_rows":5,"n_cols":3,"rows_kept":5,"hidden":true}
["NE","Nivel de Exposición","Significado"]
[4,"Continuada (EC)","Continuamente. Varias veces en su jornada laboral con tiempo prolongado"]
[3,"Frecuente (EF)","Varias veces en su jornada laboral, aunque sea con tiempos cortos"]
[2,"Ocasional (EO)","Alguna vez en su jornada laboral y con periodo corto de tiempo"]
[1,"Esporádica (EE)","Irregularmente"]

{"sheet":"NP","index":4,"n_rows":41,"n_cols":3,"rows_kept":41,"hidden":true}
["NP","Nivel de Probabilidad","Significado"]
[40,"Muy Alta (MA)","Situación deficiente con exposición continuada, o muy deficiente con exposición frecuente. Normalmente la materialización del riesgo ocurre con frecuencia"]
[39,"Muy Alta (MA)","Situación deficiente con exposición continuada, o muy deficiente con exposición frecuente. Normalmente la materialización del riesgo ocurre con frecuencia"]
[38,"Muy Alta (MA)","Situación deficiente con exposición continuada, o muy deficiente con exposición frecuente. Normalmente la materialización del riesgo ocurre con frecuencia"]
[37,"Muy Alta (MA)","Situación deficiente con exposición continuada, o muy deficiente con exposición frecuente. Normalmente la materialización del riesgo ocurre con frecuencia"]
[36,"Muy Alta (MA)","Situación deficiente con exposición continuada, o muy deficiente con exposición frecuente. Normalmente la materialización del riesgo ocurre con frecuencia"]
[35,"Muy Alta (MA)","Situación deficiente con exposición continuada, o muy deficiente con exposición frecuente. Normalmente la materialización del riesgo ocurre con frecuencia"]
[34,"Muy Alta (MA)","Situación deficiente con exposición continuada, o muy deficiente con exposición frecuente. Normalmente la materialización del riesgo ocurre con frecuencia"]
[33,"Muy Alta (MA)","Situación deficiente con exposición continuada, o muy deficiente con exposición frecuente. Normalmente la materialización del riesgo ocurre con frecuencia"]
[32,"Muy Alta (MA)","Situación deficiente con exposición continuada, o muy deficiente con exposición frecuente. Normalmente la materialización del riesgo ocurre con frecuencia"]
[31,"Muy Alta (MA)","Situación deficiente con exposición continuada, o muy deficiente con exposición frecuente. Normalmente la materialización del riesgo ocurre con frecuencia"]
[30,"Muy Alta (MA)","Situación deficiente con exposición continuada, o muy deficiente con exposición frecuente. Normalmente la materialización del riesgo ocurre con frecuencia"]
[29,"Muy Alta (MA)","Situación deficiente con exposición continuada, o muy deficiente con exposición frecuente. Normalmente la materialización del riesgo ocurre con frecuencia"]
[28,"Muy Alta (MA)","Situación deficiente con exposición continuada, o muy deficiente con exposición frecuente. Normalmente la materialización del riesgo ocurre con frecuencia"]
[27,"Muy Alta (MA)","Situación deficiente con exposición continuada, o muy deficiente con exposición frecuente. Normalmente la materialización del riesgo ocurre con frecuencia"]
[26,"Muy Alta (MA)","Situación deficiente con exposición continuada, o muy deficiente con exposición frecuente. Normalmente la materialización del riesgo ocurre con frecuencia"]
[25,"Muy Alta (MA)","Situación deficiente con exposición continuada, o muy deficiente con exposición frecuente. Normalmente la materialización del riesgo ocurre con frecuencia"]
[24,"Muy Alta (MA)","Situación deficiente con exposición continuada, o muy deficiente con exposición frecuente. Normalmente la materialización del riesgo ocurre con frecuencia"]
[23,"Alta (A)","Situación deficiente con exposición frecuente u ocasional o esporádica. La materialización del riesgo es posible que suceda varias veces en el ciclo de vida laboral"]
[22,"Alta (A)","Situación deficiente con exposición frecuente u ocasional o esporádica. La materialización del riesgo es posible que suceda varias veces en el ciclo de vida laboral"]
[21,"Alta (A)","Situación deficiente con exposición frecuente u ocasional o esporádica. La materialización del riesgo es posible que suceda varias veces en el ciclo de vida laboral"]
[20,"Alta (A)","Situación deficiente con exposición frecuente u ocasional o esporádica. La materialización del riesgo es posible que suceda varias veces en el ciclo de vida laboral"]
[19,"Alta (A)","Situación deficiente con exposición frecuente u ocasional o esporádica. La materialización del riesgo es posible que suceda varias veces en el ciclo de vida laboral"]
[18,"Alta (A)","Situación deficiente con exposición frecuente u ocasional o esporádica. La materialización del riesgo es posible que suceda varias veces en el ciclo de vida laboral"]
[17,"Alta (A)","Situación deficiente con exposición frecuente u ocasional o esporádica. La materialización del riesgo es posible que suceda varias veces en el ciclo de vida laboral"]
[16,"Alta (A)","Situación deficiente con exposición frecuente u ocasional o esporádica. La materialización del riesgo es posible que suceda varias veces en el ciclo de vida laboral"]
[15,"Alta (A)","Situación deficiente con exposición frecuente u ocasional o esporádica. La materialización del riesgo es posible que suceda varias veces en el ciclo de vida laboral"]
[14,"Alta (A)","Situación deficiente con exposición frecuente u ocasional o esporádica. La materialización del riesgo es posible que suceda varias veces en el ciclo de vida laboral"]
[13,"Alta (A)","Situación deficiente con exposición frecuente u ocasional o esporádica. La materialización del riesgo es posible que suceda varias veces en el ciclo de vida laboral"]
[12,"Alta (A)","Situación deficiente con exposición frecuente u ocasional o esporádica. La materialización del riesgo es posible que suceda varias veces en el ciclo de vida laboral"]
[11,"Alta (A)","Situación deficiente con exposición frecuente u ocasional o esporádica. La materialización del riesgo es posible que suceda varias veces en el ciclo de vida laboral"]
[10,"Alta (A)","Situación deficiente con exposición frecuente u ocasional o esporádica. La materialización del riesgo es posible que suceda varias veces en el ciclo de vida laboral"]
[9,"Media (M)","Situación deficiente con exposición esporádica, o bien situación mejorable con exposición continuada o frecuente. Es posible que suceda el daño alguna vez"]
[8,"Media (M)","Situación deficiente con exposición esporádica, o bien situación mejorable con exposición continuada o frecuente. Es posible que suceda el daño alguna vez"]
[7,"Media (M)","Situación deficiente con exposición esporádica, o bien situación mejorable con exposición continuada o frecuente. Es posible que suceda el daño alguna vez"]
[6,"Media (M)","Situación deficiente con exposición esporádica, o bien situación mejorable con exposición continuada o frecuente. Es posible que suceda el daño alguna vez"]
[5,"Baja (B)","Situación mejorable con exposición ocasional o esporádica. No es esperable que se materialice el riesgo aunque puede ser concebible"]
[4,"Baja (B)","Situación mejorable con exposición ocasional o esporádica. No es esperable que se materialice el riesgo aunque puede ser concebible"]
[3,"Baja (B)","Situación mejorable con exposición ocasional o esporádica. No es esperable que se materialice el riesgo aunque puede ser concebible"]
[2,"Baja (B)","Situación mejorable con exposición ocasional o esporádica. No es esperable que se materialice el riesgo aunque puede ser concebible"]
[1,"Baja (B)","Situación mejorable con exposición ocasional o esporádica. No es esperable que se materialice el riesgo aunque puede ser concebible"]

{"sheet":"NC","index":5,"n_rows":6,"n_cols":4,"rows_kept":6,"hidden":true,"merged":[[0,0,1,0],[0,1,1,1],[0,2,0,3]]}
["NC","Nivel de Consecuencias","Significado"]
[null,null,"Daños Personales","Daños materiales"]
[100,"Mortal o Catastrofico (M)","1 muerto o más","Destrucción total del sitema (dificil renovarlo)"]
[60,"Muy Grave (MG)","Lesiones Graves que pueden ser irreparables","Destrucción parcial del sistema (compleja y costoza reparación)"]
[25,"Grave (G)","Lesiones con incapacidad laboral transitoria (ILT)","Se requiere paro de proceso para efectuar la reparación"]
[10,"Leve (L)","Pequeñas lesiones que no requieren hospitalización","Reparable sin necesidad de paro del proceso"]

{"sheet":"NR o NI","index":6,"n_rows":4002,"n_cols":3,"rows_kept":4002,"hidden":true}
["NR","Nivel de riesgo y de intervención","Significado"]
[4000,1,"Situación Crítica. Correccción Urgente"]
[3999,1,"Situación Crítica. Correccción Urgente"]
[3998,1,"Situación Crítica. Correccción Urgente"]
[3997,1,"Situación Crítica. Correccción Urgente"]
[3996,1,"Situación Crítica. Correccción Urgente"]
[3995,1,"Situación Crítica. Correccción Urgente"]
[3994,1,"Situación Crítica. Correccción Urgente"]
[3993,1,"Situación Crítica. Correccción Urgente"]
[3992,1,"Situación Crítica. Correccción Urgente"]
[3991,1,"Situación Crítica. Correccción Urgente"]
[3990,1,"Situación Crítica. Correccción Urgente"]
[3989,1,"Situación Crítica. Correccción Urgente"]
[3988,1,"Situación Crítica. Correccción Urgente"]
[3987,1,"Situación Crítica. Correccción Urgente"]
[3986,1,"Situación Crítica. Correccción Urgente"]
[3985,1,"Situación Crítica. Correccción Urgente"]
[3984,1,"Situación Crítica. Correccción Urgente"]
[3983,1,"Situación Crítica. Correccción Urgente"]
[3982,1,"Situación Crítica. Correccción Urgente"]
[3981,1,"Situación Crítica. Correccción Urgente"]
[3980,1,"Situación Crítica. Correccción Urgente"]
[3979,1,"Situación Crítica. Correccción Urgente"]
[3978,1,"Situación Crítica. Correccción Urgente"]
[3977,1,"Situación Crítica. Correccción Urgente"]
[3976,1,"Situación Crítica. Correccción Urgente"]
[3975,1,"Situación Crítica. Correccción Urgente"]
[3974,1,"Situación Crítica. Correccción Urgente"]
[3973,1,"Situación Crítica. Correccción Urgente"]
[3972,1,"Situación Crítica. Correccción Urgente"]
[3971,1,"Situación Crítica. Correccción Urgente"]
[3970,1,"Situación Crítica. Correccción Urgente"]
[3969,1,"Situación Crítica. Correccción Urgente"]
[3968,1,"Situación Crítica. Correccción Urgente"]
[3967,1,"Situación Crítica. Correccción Urgente"]
[3966,1,"Situación Crítica. Correccción Urgente"]
[3965,1,"Situación Crítica. Correccción Urgente"]
[3964,1,"Situación Crítica. Correccción Urgente"]
[3963,1,"Situación Crítica. Correccción Urgente"]
[3962,1,"Situación Crítica. Correccción Urgente"]
[3961,1,"Situación Crítica. Correccción Urgente"]
[3960,1,"Situación Crítica. Correccción Urgente"]
[3959,1,"Situación Crítica. Correccción Urgente"]
[3958,1,"Situación Crítica. Correccción Urgente"]
[3957,1,"Situación Crítica. Correccción Urgente"]
[3956,1,"Situación Crítica. Correccción Urgente"]
[3955,1,"Situación Crítica. Correccción Urgente"]
[3954,1,"Situación Crítica. Correccción Urgente"]
[3953,1,"Situación Crítica. Correccción Urgente"]
[3952,1,"Situación Crítica. Correccción Urgente"]
[3951,1,"Situación Crítica. Correccción Urgente"]
[3950,1,"Situación Crítica. Correccción Urgente"]
[3949,1,"Situación Crítica. Correccción Urgente"]
[3948,1,"Situación Crítica. Correccción Urgente"]
[3947,1,"Situación Crítica. Correccción Urgente"]
[3946,1,"Situación Crítica. Correccción Urgente"]
[3945,1,"Situación Crítica. Correccción Urgente"]
[3944,1,"Situación Crítica. Correccción Urgente"]
[3943,1,"Situación Crítica. Correccción Urgente"]
[3942,1,"Situación Crítica. Correccción Urgente"]
[3941,1,"Situación Crítica. Correccción Urgente"]
[3940,1,"Situación Crítica. Correccción Urgente"]
[3939,1,"Situación Crítica. Correccción Urgente"]
[3938,1,"Situación Crítica. Correccción Urgente"]
[3937,1,"Situación Crítica. Correccción Urgente"]
[3936,1,"Situación Crítica. Correccción Urgente"]
[3935,1,"Situación Crítica. Correccción Urgente"]
[3934,1,"Situación Crítica. Correccción Urgente"]
[3933,1,"Situación Crítica. Correccción Urgente"]
[3932,1,"Situación Crítica. Correccción Urgente"]
[3931,1,"Situación Crítica. Correccción Urgente"]
[3930,1,"Situación Crítica. Correccción Urgente"]
[3929,1,"Situación Crítica. Correccción Urgente"]
[3928,1,"Situación Crítica. Correccción Urgente"]
[3927,1,"Situación Crítica. Correccción Urgente"]
[3926,1,"Situación Crítica. Correccción Urgente"]
[3925,1,"Situación Crítica. Correccción Urgente"]
[3924,1,"Situación Crítica. Correccción Urgente"]
[3923,1,"Situación Crítica. Correccción Urgente"]
[3922,1,"Situación Crítica. Correccción Urgente"]
[3921,1,"Situación Crítica. Correccción Urgente"]
[3920,1,"Situación Crítica. Correccción Urgente"]
[3919,1,"Situación Crítica. Correccción Urgente"]
[3918,1,"Situación Crítica. Correccción Urgente"]
[3917,1,"Situación Crítica. Correccción Urgente"]
[3916,1,"Situación Crítica. Correccción Urgente"]
[3915,1,"Situación Crítica. Correccción Urgente"]
[3914,1,"Situación Crítica. Correccción Urgente"]
[3913,1,"Situación Crítica. Correccción Urgente"]
[3912,1,"Situación Crítica. Correccción Urgente"]
[3911,1,"Situación Crítica. Correccción Urgente"]
[3910,1,"Situación Crítica. Correccción Urgente"]
[3909,1,"Situación Crítica. Correccción Urgente"]
[3908,1,"Situación Crítica. Correccción Urgente"]
[3907,1,"Situación Crítica. Correccción Urgente"]
[3906,1,"Situación Crítica. Correccción Urgente"]
[3905,1,"Situación Crítica. Correccción Urgente"]
[3904,1,"Situación Crítica. Correccción Urgente"]
[3903,1,"Situación Crítica. Correccción Urgente"]
[3902,1,"Situación Crítica. Correccción Urgente"]
[3901,1,"Situación Crítica. Correccción Urgente"]
[3900,1,"Situación Crítica. Correccción Urgente"]
[3899,1,"Situación Crítica. Correccción Urgente"]
[3898,1,"Situación Crítica. Correccción Urgente"]
[3897,1,"Situación Crítica. Correccción Urgente"]
[3896,1,"Situación Crítica. Correccción Urgente"]
[3895,1,"Situación Crítica. Correccción Urgente"]
[3894,1,"Situación Crítica. Correccción Urgente"]
[3893,1,"Situación Crítica. Correccción Urgente"]
[3892,1,"Situación Crítica. Correccción Urgente"]
[3891,1,"Situación Crítica. Correccción Urgente"]
[3890,1,"Situación Crítica. Correccción Urgente"]
[3889,1,"Situación Crítica. Correccción Urgente"]
[3888,1,"Situación Crítica. Correccción Urgente"]
[3887,1,"Situación Crítica. Correccción Urgente"]
[3886,1,"Situación Crítica. Correccción Urgente"]
[3885,1,"Situación Crítica. Correccción Urgente"]
[3884,1,"Situación Crítica. Correccción Urgente"]
[3883,1,"Situación Crítica. Correccción Urgente"]
[3882,1,"Situación Crítica. Correccción Urgente"]
[3881,1,"Situación Crítica. Correccción Urgente"]
[3880,1,"Situación Crítica. Correccción Urgente"]
[3879,1,"Situación Crítica. Correccción Urgente"]
[3878,1,"Situación Crítica. Correccción Urgente"]
[3877,1,"Situación Crítica. Correccción Urgente"]
[3876,1,"Situación Crítica. Correccción Urgente"]
[3875,1,"Situación Crítica. Correccción Urgente"]
[3874,1,"Situación Crítica. Correccción Urgente"]
[3873,1,"Situación Crítica. Correccción Urgente"]
[3872,1,"Situación Crítica. Correccción Urgente"]
[3871,1,"Situación Crítica. Correccción Urgente"]
[3870,1,"Situación Crítica. Correccción Urgente"]
[3869,1,"Situación Crítica. Correccción Urgente"]
[3868,1,"Situación Crítica. Correccción Urgente"]
[3867,1,"Situación Crítica. Correccción Urgente"]
[3866,1,"Situación Crítica. Correccción Urgente"]
[3865,1,"Situación Crítica. Correccción Urgente"]
[3864,1,"Situación Crítica. Correccción Urgente"]
[3863,1,"Situación Crítica. Correccción Urgente"]
[3862,1,"Situación Crítica. Correccción Urgente"]
[3861,1,"Situación Crítica. Correccción Urgente"]
[3860,1,"Situación Crítica. Correccción Urgente"]
[3859,1,"Situación Crítica. Correccción Urgente"]
[3858,1,"Situación Crítica. Correccción Urgente"]
[3857,1,"Situación Crítica. Correccción Urgente"]
[3856,1,"Situación Crítica. Correccción Urgente"]
[3855,1,"Situación Crítica. Correccción Urgente"]
[3854,1,"Situación Crítica. Correccción Urgente"]
[3853,1,"Situación Crítica. Correccción Urgente"]
[3852,1,"Situación Crítica. Correccción Urgente"]
[3851,1,"Situación Crítica. Correccción Urgente"]
[3850,1,"Situación Crítica. Correccción Urgente"]
[3849,1,"Situación Crítica. Correccción Urgente"]
[3848,1,"Situación Crítica. Correccción Urgente"]
[3847,1,"Situación Crítica. Correccción Urgente"]
[3846,1,"Situación Crítica. Correccción Urgente"]
[3845,1,"Situación Crítica. Correccción Urgente"]
[3844,1,"Situación Crítica. Correccción Urgente"]
[3843,1,"Situación Crítica. Correccción Urgente"]
[3842,1,"Situación Crítica. Correccción Urgente"]
[3841,1,"Situación Crítica. Correccción Urgente"]
[3840,1,"Situación Crítica. Correccción Urgente"]
[3839,1,"Situación Crítica. Correccción Urgente"]
[3838,1,"Situación Crítica. Correccción Urgente"]
[3837,1,"Situación Crítica. Correccción Urgente"]
[3836,1,"Situación Crítica. Correccción Urgente"]
[3835,1,"Situación Crítica. Correccción Urgente"]
[3834,1,"Situación Crítica. Correccción Urgente"]
[3833,1,"Situación Crítica. Correccción Urgente"]
[3832,1,"Situación Crítica. Correccción Urgente"]
[3831,1,"Situación Crítica. Correccción Urgente"]
[3830,1,"Situación Crítica. Correccción Urgente"]
[3829,1,"Situación Crítica. Correccción Urgente"]
[3828,1,"Situación Crítica. Correccción Urgente"]
[3827,1,"Situación Crítica. Correccción Urgente"]
[3826,1,"Situación Crítica. Correccción Urgente"]
[3825,1,"Situación Crítica. Correccción Urgente"]
[3824,1,"Situación Crítica. Correccción Urgente"]
[3823,1,"Situación Crítica. Correccción Urgente"]
[3822,1,"Situación Crítica. Correccción Urgente"]
[3821,1,"Situación Crítica. Correccción Urgente"]
[3820,1,"Situación Crítica. Correccción Urgente"]
[3819,1,"Situación Crítica. Correccción Urgente"]
[3818,1,"Situación Crítica. Correccción Urgente"]
[3817,1,"Situación Crítica. Correccción Urgente"]
[3816,1,"Situación Crítica. Correccción Urgente"]
[3815,1,"Situación Crítica. Correccción Urgente"]
[3814,1,"Situación Crítica. Correccción Urgente"]
[3813,1,"Situación Crítica. Correccción Urgente"]
[3812,1,"Situación Crítica. Correccción Urgente"]
[3811,1,"Situación Crítica. Correccción Urgente"]
[3810,1,"Situación Crítica. Correccción Urgente"]
[3809,1,"Situación Crítica. Correccción Urgente"]
[3808,1,"Situación Crítica. Correccción Urgente"]
[3807,1,"Situación Crítica. Correccción Urgente"]
[3806,1,"Situación Crítica. Correccción Urgente"]
[3805,1,"Situación Crítica. Correccción Urgente"]
[3804,1,"Situación Crítica. Correccción Urgente"]
[3803,1,"Situación Crítica. Correccción Urgente"]
[3802,1,"Situación Crítica. Correccción Urgente"]
[3801,1,"Situación Crítica. Correccción Urgente"]
[3800,1,"Situación Crítica. Correccción Urgente"]
[3799,1,"Situación Crítica. Correccción Urgente"]
[3798,1,"Situación Crítica. Correccción Urgente"]
[3797,1,"Situación Crítica. Correccción Urgente"]
[3796,1,"Situación Crítica. Correccción Urgente"]
[3795,1,"Situación Crítica. Correccción Urgente"]
[3794,1,"Situación Crítica. Correccción Urgente"]
[3793,1,"Situación Crítica. Correccción Urgente"]
[3792,1,"Situación Crítica. Correccción Urgente"]
[3791,1,"Situación Crítica. Correccción Urgente"]
[3790,1,"Situación Crítica. Correccción Urgente"]
[3789,1,"Situación Crítica. Correccción Urgente"]
[3788,1,"Situación Crítica. Correccción Urgente"]
[3787,1,"Situación Crítica. Correccción Urgente"]
[3786,1,"Situación Crítica. Correccción Urgente"]
[3785,1,"Situación Crítica. Correccción Urgente"]
[3784,1,"Situación Crítica. Correccción Urgente"]
[3783,1,"Situación Crítica. Correccción Urgente"]
[3782,1,"Situación Crítica. Correccción Urgente"]
[3781,1,"Situación Crítica. Correccción Urgente"]
[3780,1,"Situación Crítica. Correccción Urgente"]
[3779,1,"Situación Crítica. Correccción Urgente"]
[3778,1,"Situación Crítica. Correccción Urgente"]
[3777,1,"Situación Crítica. Correccción Urgente"]
[3776,1,"Situación Crítica. Correccción Urgente"]
[3775,1,"Situación Crítica. Correccción Urgente"]
[3774,1,"Situación Crítica. Correccción Urgente"]
[3773,1,"Situación Crítica. Correccción Urgente"]
[3772,1,"Situación Crítica. Correccción Urgente"]
[3771,1,"Situación Crítica. Correccción Urgente"]
[3770,1,"Situación Crítica. Correccción Urgente"]
[3769,1,"Situación Crítica. Correccción Urgente"]
[3768,1,"Situación Crítica. Correccción Urgente"]
[3767,1,"Situación Crítica. Correccción Urgente"]
[3766,1,"Situación Crítica. Correccción Urgente"]
[3765,1,"Situación Crítica. Correccción Urgente"]
[3764,1,"Situación Crítica. Correccción Urgente"]
[3763,1,"Situación Crítica. Correccción Urgente"]
[3762,1,"Situación Crítica. Correccción Urgente"]
[3761,1,"Situación Crítica. Correccción Urgente"]
[3760,1,"Situación Crítica. Correccción Urgente"]
[3759,1,"Situación Crítica. Correccción Urgente"]
[3758,1,"Situación Crítica. Correccción Urgente"]
[3757,1,"Situación Crítica. Correccción Urgente"]
[3756,1,"Situación Crítica. Correccción Urgente"]
[3755,1,"Situación Crítica. Correccción Urgente"]
[3754,1,"Situación Crítica. Correccción Urgente"]
[3753,1,"Situación Crítica. Correccción Urgente"]
[3752,1,"Situación Crítica. Correccción Urgente"]
[3751,1,"Situación Crítica. Correccción Urgente"]
[3750,1,"Situación Crítica. Correccción Urgente"]
[3749,1,"Situación Crítica. Correccción Urgente"]
[3748,1,"Situación Crítica. Correccción Urgente"]
[3747,1,"Situación Crítica. Correccción Urgente"]
[3746,1,"Situación Crítica. Correccción Urgente"]
[3745,1,"Situación Crítica. Correccción Urgente"]
[3744,1,"Situación Crítica. Correccción Urgente"]
[3743,1,"Situación Crítica. Correccción Urgente"]
[3742,1,"Situación Crítica. Correccción Urgente"]
[3741,1,"Situación Crítica. Correccción Urgente"]
[3740,1,"Situación Crítica. Correccción Urgente"]
[3739,1,"Situación Crítica. Correccción Urgente"]
[3738,1,"Situación Crítica. Correccción Urgente"]
[3737,1,"Situación Crítica. Correccción Urgente"]
[3736,1,"Situación Crítica. Correccción Urgente"]
[3735,1,"Situación Crítica. Correccción Urgente"]
[3734,1,"Situación Crítica. Correccción Urgente"]
[3733,1,"Situación Crítica. Correccción Urgente"]
[3732,1,"Situación Crítica. Correccción Urgente"]
[3731,1,"Situación Crítica. Correccción Urgente"]
[3730,1,"Situación Crítica. Correccción Urgente"]
[3729,1,"Situación Crítica. Correccción Urgente"]
[3728,1,"Situación Crítica. Correccción Urgente"]
[3727,1,"Situación Crítica. Correccción Urgente"]
[3726,1,"Situación Crítica. Correccción Urgente"]
[3725,1,"Situación Crítica. Correccción Urgente"]
[3724,1,"Situación Crítica. Correccción Urgente"]
[3723,1,"Situación Crítica. Correccción Urgente"]
[3722,1,"Situación Crítica. Correccción Urgente"]
[3721,1,"Situación Crítica. Correccción Urgente"]
[3720,1,"Situación Crítica. Correccción Urgente"]
[3719,1,"Situación Crítica. Correccción Urgente"]
[3718,1,"Situación Crítica. Correccción Urgente"]
[3717,1,"Situación Crítica. Correccción Urgente"]
[3716,1,"Situación Crítica. Correccción Urgente"]
[3715,1,"Situación Crítica. Correccción Urgente"]
[3714,1,"Situación Crítica. Correccción Urgente"]
[3713,1,"Situación Crítica. Correccción Urgente"]
[3712,1,"Situación Crítica. Correccción Urgente"]
[3711,1,"Situación Crítica. Correccción Urgente"]
[3710,1,"Situación Crítica. Correccción Urgente"]
[3709,1,"Situación Crítica. Correccción Urgente"]
[3708,1,"Situación Crítica. Correccción Urgente"]
[3707,1,"Situación Crítica. Correccción Urgente"]
[3706,1,"Situación Crítica. Correccción Urgente"]
[3705,1,"Situación Crítica. Correccción Urgente"]
[3704,1,"Situación Crítica. Correccción Urgente"]
[3703,1,"Situación Crítica. Correccción Urgente"]
[3702,1,"Situación Crítica. Correccción Urgente"]
[3701,1,"Situación Crítica. Correccción Urgente"]
[3700,1,"Situación Crítica. Correccción Urgente"]
[3699,1,"Situación Crítica. Correccción Urgente"]
[3698,1,"Situación Crítica. Correccción Urgente"]
[3697,1,"Situación Crítica. Correccción Urgente"]
[3696,1,"Situación Crítica. Correccción Urgente"]
[3695,1,"Situación Crítica. Correccción Urgente"]
[3694,1,"Situación Crítica. Correccción Urgente"]
[3693,1,"Situación Crítica. Correccción Urgente"]
[3692,1,"Situación Crítica. Correccción Urgente"]
[3691,1,"Situación Crítica. Correccción Urgente"]
[3690,1,"Situación Crítica. Correccción Urgente"]
[3689,1,"Situación Crítica. Correccción Urgente"]
[3688,1,"Situación Crítica. Correccción Urgente"]
[3687,1,"Situación Crítica. Correccción Urgente"]
[3686,1,"Situación Crítica. Correccción Urgente"]
[3685,1,"Situación Crítica. Correccción Urgente"]
[3684,1,"Situación Crítica. Correccción Urgente"]
[3683,1,"Situación Crítica. Correccción Urgente"]
[3682,1,"Situación Crítica. Correccción Urgente"]
[3681,1,"Situación Crítica. Correccción Urgente"]
[3680,1,"Situación Crítica. Correccción Urgente"]
[3679,1,"Situación Crítica. Correccción Urgente"]
[3678,1,"Situación Crítica. Correccción Urgente"]
[3677,1,"Situación Crítica. Correccción Urgente"]
[3676,1,"Situación Crítica. Correccción Urgente"]
[3675,1,"Situación Crítica. Correccción Urgente"]
[3674,1,"Situación Crítica. Correccción Urgente"]
[3673,1,"Situación Crítica. Correccción Urgente"]
[3672,1,"Situación Crítica. Correccción Urgente"]
[3671,1,"Situación Crítica. Correccción Urgente"]
[3670,1,"Situación Crítica. Correccción Urgente"]
[3669,1,"Situación Crítica. Correccción Urgente"]
[3668,1,"Situación Crítica. Correccción Urgente"]
[3667,1,"Situación Crítica. Correccción Urgente"]
[3666,1,"Situación Crítica. Correccción Urgente"]
[3665,1,"Situación Crítica. Correccción Urgente"]
[3664,1,"Situación Crítica. Correccción Urgente"]
[3663,1,"Situación Crítica. Correccción Urgente"]
[3662,1,"Situación Crítica. Correccción Urgente"]
[3661,1,"Situación Crítica. Correccción Urgente"]
[3660,1,"Situación Crítica. Correccción Urgente"]
[3659,1,"Situación Crítica. Correccción Urgente"]
[3658,1,"Situación Crítica. Correccción Urgente"]
[3657,1,"Situación Crítica. Correccción Urgente"]
[3656,1,"Situación Crítica. Correccción Urgente"]
[3655,1,"Situación Crítica. Correccción Urgente"]
[3654,1,"Situación Crítica. Correccción Urgente"]
[3653,1,"Situación Crítica. Correccción Urgente"]
[3652,1,"Situación Crítica. Correccción Urgente"]
[3651,1,"Situación Crítica. Correccción Urgente"]
[3650,1,"Situación Crítica. Correccción Urgente"]
[3649,1,"Situación Crítica. Correccción Urgente"]
[3648,1,"Situación Crítica. Correccción Urgente"]
[3647,1,"Situación Crítica. Correccción Urgente"]
[3646,1,"Situación Crítica. Correccción Urgente"]
[3645,1,"Situación Crítica. Correccción Urgente"]
[3644,1,"Situación Crítica. Correccción Urgente"]
[3643,1,"Situación Crítica. Correccción Urgente"]
[3642,1,"Situación Crítica. Correccción Urgente"]
[3641,1,"Situación Crítica. Correccción Urgente"]
[3640,1,"Situación Crítica. Correccción Urgente"]
[3639,1,"Situación Crítica. Correccción Urgente"]
[3638,1,"Situación Crítica. Correccción Urgente"]
[3637,1,"Situación Crítica. Correccción Urgente"]
[3636,1,"Situación Crítica. Correccción Urgente"]
[3635,1,"Situación Crítica. Correccción Urgente"]
[3634,1,"Situación Crítica. Correccción Urgente"]
[3633,1,"Situación Crítica. Correccción Urgente"]
[3632,1,"Situación Crítica. Correccción Urgente"]
[3631,1,"Situación Crítica. Correccción Urgente"]
[3630,1,"Situación Crítica. Correccción Urgente"]
[3629,1,"Situación Crítica. Correccción Urgente"]
[3628,1,"Situación Crítica. Correccción Urgente"]
[3627,1,"Situación Crítica. Correccción Urgente"]
[3626,1,"Situación Crítica. Correccción Urgente"]
[3625,1,"Situación Crítica. Correccción Urgente"]
[3624,1,"Situación Crítica. Correccción Urgente"]
[3623,1,"Situación Crítica. Correccción Urgente"]
[3622,1,"Situación Crítica. Correccción Urgente"]
[3621,1,"Situación Crítica. Correccción Urgente"]
[3620,1,"Situación Crítica. Correccción Urgente"]
[3619,1,"Situación Crítica. Correccción Urgente"]
[3618,1,"Situación Crítica. Correccción Urgente"]
[3617,1,"Situación Crítica. Correccción Urgente"]
[3616,1,"Situación Crítica. Correccción Urgente"]
[3615,1,"Situación Crítica. Correccción Urgente"]
[3614,1,"Situación Crítica. Correccción Urgente"]
[3613,1,"Situación Crítica. Correccción Urgente"]
[3612,1,"Situación Crítica. Correccción Urgente"]
[3611,1,"Situación Crítica. Correccción Urgente"]
[3610,1,"Situación Crítica. Correccción Urgente"]
[3609,1,"Situación Crítica. Correccción Urgente"]
[3608,1,"Situación Crítica. Correccción Urgente"]
[3607,1,"Situación Crítica. Correccción Urgente"]
[3606,1,"Situación Crítica. Correccción Urgente"]
[3605,1,"Situación Crítica. Correccción Urgente"]
[3604,1,"Situación Crítica. Correccción Urgente"]
[3603,1,"Situación Crítica. Correccción Urgente"]
[3602,1,"Situación Crítica. Correccción Urgente"]
[3601,1,"Situación Crítica. Correccción Urgente"]
[3600,1,"Situación Crítica. Correccción Urgente"]
[3599,1,"Situación Crítica. Correccción Urgente"]
[3598,1,"Situación Crítica. Correccción Urgente"]
[3597,1,"Situación Crítica. Correccción Urgente"]
[3596,1,"Situación Crítica. Correccción Urgente"]
[3595,1,"Situación Crítica. Correccción Urgente"]
[3594,1,"Situación Crítica. Correccción Urgente"]
[3593,1,"Situación Crítica. Correccción Urgente"]
[3592,1,"Situación Crítica. Correccción Urgente"]
[3591,1,"Situación Crítica. Correccción Urgente"]
[3590,1,"Situación Crítica. Correccción Urgente"]
[3589,1,"Situación Crítica. Correccción Urgente"]
[3588,1,"Situación Crítica. Correccción Urgente"]
[3587,1,"Situación Crítica. Correccción Urgente"]
[3586,1,"Situación Crítica. Correccción Urgente"]
[3585,1,"Situación Crítica. Correccción Urgente"]
[3584,1,"Situación Crítica. Correccción Urgente"]
[3583,1,"Situación Crítica. Correccción Urgente"]
[3582,1,"Situación Crítica. Correccción Urgente"]
[3581,1,"Situación Crítica. Correccción Urgente"]
[3580,1,"Situación Crítica. Correccción Urgente"]
[3579,1,"Situación Crítica. Correccción Urgente"]
[3578,1,"Situación Crítica. Correccción Urgente"]
[3577,1,"Situación Crítica. Correccción Urgente"]
[3576,1,"Situación Crítica. Correccción Urgente"]
[3575,1,"Situación Crítica. Correccción Urgente"]
[3574,1,"Situación Crítica. Correccción Urgente"]
[3573,1,"Situación Crítica. Correccción Urgente"]
[3572,1,"Situación Crítica. Correccción Urgente"]
[3571,1,"Situación Crítica. Correccción Urgente"]
[3570,1,"Situación Crítica. Correccción Urgente"]
[3569,1,"Situación Crítica. Correccción Urgente"]
[3568,1,"Situación Crítica. Correccción Urgente"]
[3567,1,"Situación Crítica. Correccción Urgente"]
[3566,1,"Situación Crítica. Correccción Urgente"]
[3565,1,"Situación Crítica. Correccción Urgente"]
[3564,1,"Situación Crítica. Correccción Urgente"]
[3563,1,"Situación Crítica. Correccción Urgente"]
[3562,1,"Situación Crítica. Correccción Urgente"]
[3561,1,"Situación Crítica. Correccción Urgente"]
[3560,1,"Situación Crítica. Correccción Urgente"]
[3559,1,"Situación Crítica. Correccción Urgente"]
[3558,1,"Situación Crítica. Correccción Urgente"]
[3557,1,"Situación Crítica. Correccción Urgente"]
[3556,1,"Situación Crítica. Correccción Urgente"]
[3555,1,"Situación Crítica. Correccción Urgente"]
[3554,1,"Situación Crítica. Correccción Urgente"]
[3553,1,"Situación Crítica. Correccción Urgente"]
[3552,1,"Situación Crítica. Correccción Urgente"]
[3551,1,"Situación Crítica. Correccción Urgente"]
[3550,1,"Situación Crítica. Correccción Urgente"]
[3549,1,"Situación Crítica. Correccción Urgente"]
[3548,1,"Situación Crítica. Correccción Urgente"]
[3547,1,"Situación Crítica. Correccción Urgente"]
[3546,1,"Situación Crítica. Correccción Urgente"]
[3545,1,"Situación Crítica. Correccción Urgente"]
[3544,1,"Situación Crítica. Correccción Urgente"]
[3543,1,"Situación Crítica. Correccción Urgente"]
[3542,1,"Situación Crítica. Correccción Urgente"]
[3541,1,"Situación Crítica. Correccción Urgente"]
[3540,1,"Situación Crítica. Correccción Urgente"]
[3539,1,"Situación Crítica. Correccción Urgente"]
[3538,1,"Situación Crítica. Correccción Urgente"]
[3537,1,"Situación Crítica. Correccción Urgente"]
[3536,1,"Situación Crítica. Correccción Urgente"]
[3535,1,"Situación Crítica. Correccción Urgente"]
[3534,1,"Situación Crítica. Correccción Urgente"]
[3533,1,"Situación Crítica. Correccción Urgente"]
[3532,1,"Situación Crítica. Correccción Urgente"]
[3531,1,"Situación Crítica. Correccción Urgente"]
[3530,1,"Situación Crítica. Correccción Urgente"]
[3529,1,"Situación Crítica. Correccción Urgente"]
[3528,1,"Situación Crítica. Correccción Urgente"]
[3527,1,"Situación Crítica. Correccción Urgente"]
[3526,1,"Situación Crítica. Correccción Urgente"]
[3525,1,"Situación Crítica. Correccción Urgente"]
[3524,1,"Situación Crítica. Correccción Urgente"]
[3523,1,"Situación Crítica. Correccción Urgente"]
[3522,1,"Situación Crítica. Correccción Urgente"]
[3521,1,"Situación Crítica. Correccción Urgente"]
[3520,1,"Situación Crítica. Correccción Urgente"]
[3519,1,"Situación Crítica. Correccción Urgente"]
[3518,1,"Situación Crítica. Correccción Urgente"]
[3517,1,"Situación Crítica. Correccción Urgente"]
[3516,1,"Situación Crítica. Correccción Urgente"]
[3515,1,"Situación Crítica. Correccción Urgente"]
[3514,1,"Situación Crítica. Correccción Urgente"]
[3513,1,"Situación Crítica. Correccción Urgente"]
[3512,1,"Situación Crítica. Correccción Urgente"]
[3511,1,"Situación Crítica. Correccción Urgente"]
[3510,1,"Situación Crítica. Correccción Urgente"]
[3509,1,"Situación Crítica. Correccción Urgente"]
[3508,1,"Situación Crítica. Correccción Urgente"]
[3507,1,"Situación Crítica. Correccción Urgente"]
[3506,1,"Situación Crítica. Correccción Urgente"]
[3505,1,"Situación Crítica. Correccción Urgente"]
[3504,1,"Situación Crítica. Correccción Urgente"]
[3503,1,"Situación Crítica. Correccción Urgente"]
[3502,1,"Situación Crítica. Correccción Urgente"]
[3501,1,"Situación Crítica. Correccción Urgente"]
[3500,1,"Situación Crítica. Correccción Urgente"]
[3499,1,"Situación Crítica. Correccción Urgente"]
[3498,1,"Situación Crítica. Correccción Urgente"]
[3497,1,"Situación Crítica. Correccción Urgente"]
[3496,1,"Situación Crítica. Correccción Urgente"]
[3495,1,"Situación Crítica. Correccción Urgente"]
[3494,1,"Situación Crítica. Correccción Urgente"]
[3493,1,"Situación Crítica. Correccción Urgente"]
[3492,1,"Situación Crítica. Correccción Urgente"]
[3491,1,"Situación Crítica. Correccción Urgente"]
[3490,1,"Situación Crítica. Correccción Urgente"]
[3489,1,"Situación Crítica. Correccción Urgente"]
[3488,1,"Situación Crítica. Correccción Urgente"]
[3487,1,"Situación Crítica. Correccción Urgente"]
[3486,1,"Situación Crítica. Correccción Urgente"]
[3485,1,"Situación Crítica. Correccción Urgente"]
[3484,1,"Situación Crítica. Correccción Urgente"]
[3483,1,"Situación Crítica. Correccción Urgente"]
[3482,1,"Situación Crítica. Correccción Urgente"]
[3481,1,"Situación Crítica. Correccción Urgente"]
[3480,1,"Situación Crítica. Correccción Urgente"]
[3479,1,"Situación Crítica. Correccción Urgente"]
[3478,1,"Situación Crítica. Correccción Urgente"]
[3477,1,"Situación Crítica. Correccción Urgente"]
[3476,1,"Situación Crítica. Correccción Urgente"]
[3475,1,"Situación Crítica. Correccción Urgente"]
[3474,1,"Situación Crítica. Correccción Urgente"]
[3473,1,"Situación Crítica. Correccción Urgente"]
[3472,1,"Situación Crítica. Correccción Urgente"]
[3471,1,"Situación Crítica. Correccción Urgente"]
[3470,1,"Situación Crítica. Correccción Urgente"]
[3469,1,"Situación Crítica. Correccción Urgente"]
[3468,1,"Situación Crítica. Correccción Urgente"]
[3467,1,"Situación Crítica. Correccción Urgente"]
[3466,1,"Situación Crítica. Correccción Urgente"]
[3465,1,"Situación Crítica. Correccción Urgente"]
[3464,1,"Situación Crítica. Correccción Urgente"]
[3463,1,"Situación Crítica. Correccción Urgente"]
[3462,1,"Situación Crítica. Correccción Urgente"]
[3461,1,"Situación Crítica. Correccción Urgente"]
[3460,1,"Situación Crítica. Correccción Urgente"]
[3459,1,"Situación Crítica. Correccción Urgente"]
[3458,1,"Situación Crítica. Correccción Urgente"]
[3457,1,"Situación Crítica. Correccción Urgente"]
[3456,1,"Situación Crítica. Correccción Urgente"]
[3455,1,"Situación Crítica. Correccción Urgente"]
[3454,1,"Situación Crítica. Correccción Urgente"]
[3453,1,"Situación Crítica. Correccción Urgente"]
[3452,1,"Situación Crítica. Correccción Urgente"]
[3451,1,"Situación Crítica. Correccción Urgente"]
[3450,1,"Situación Crítica. Correccción Urgente"]
[3449,1,"Situación Crítica. Correccción Urgente"]
[3448,1,"Situación Crítica. Correccción Urgente"]
[3447,1,"Situación Crítica. Correccción Urgente"]
[3446,1,"Situación Crítica. Correccción Urgente"]
[3445,1,"Situación Crítica. Correccción Urgente"]
[3444,1,"Situación Crítica. Correccción Urgente"]
[3443,1,"Situación Crítica. Correccción Urgente"]
[3442,1,"Situación Crítica. Correccción Urgente"]
[3441,1,"Situación Crítica. Correccción Urgente"]
[3440,1,"Situación Crítica. Correccción Urgente"]
[3439,1,"Situación Crítica. Correccción Urgente"]
[3438,1,"Situación Crítica. Correccción Urgente"]
[3437,1,"Situación Crítica. Correccción Urgente"]
[3436,1,"Situación Crítica. Correccción Urgente"]
[3435,1,"Situación Crítica. Correccción Urgente"]
[3434,1,"Situación Crítica. Correccción Urgente"]
[3433,1,"Situación Crítica. Correccción Urgente"]
[3432,1,"Situación Crítica. Correccción Urgente"]
[3431,1,"Situación Crítica. Correccción Urgente"]
[3430,1,"Situación Crítica. Correccción Urgente"]
[3429,1,"Situación Crítica. Correccción Urgente"]
[3428,1,"Situación Crítica. Correccción Urgente"]
[3427,1,"Situación Crítica. Correccción Urgente"]
[3426,1,"Situación Crítica. Correccción Urgente"]
[3425,1,"Situación Crítica. Correccción Urgente"]
[3424,1,"Situación Crítica. Correccción Urgente"]
[3423,1,"Situación Crítica. Correccción Urgente"]
[3422,1,"Situación Crítica. Correccción Urgente"]
[3421,1,"Situación Crítica. Correccción Urgente"]
[3420,1,"Situación Crítica. Correccción Urgente"]
[3419,1,"Situación Crítica. Correccción Urgente"]
[3418,1,"Situación Crítica. Correccción Urgente"]
[3417,1,"Situación Crítica. Correccción Urgente"]
[3416,1,"Situación Crítica. Correccción Urgente"]
[3415,1,"Situación Crítica. Correccción Urgente"]
[3414,1,"Situación Crítica. Correccción Urgente"]
[3413,1,"Situación Crítica. Correccción Urgente"]
[3412,1,"Situación Crítica. Correccción Urgente"]
[3411,1,"Situación Crítica. Correccción Urgente"]
[3410,1,"Situación Crítica. Correccción Urgente"]
[3409,1,"Situación Crítica. Correccción Urgente"]
[3408,1,"Situación Crítica. Correccción Urgente"]
[3407,1,"Situación Crítica. Correccción Urgente"]
[3406,1,"Situación Crítica. Correccción Urgente"]
[3405,1,"Situación Crítica. Correccción Urgente"]
[3404,1,"Situación Crítica. Correccción Urgente"]
[3403,1,"Situación Crítica. Correccción Urgente"]
[3402,1,"Situación Crítica. Correccción Urgente"]
[3401,1,"Situación Crítica. Correccción Urgente"]
[3400,1,"Situación Crítica. Correccción Urgente"]
[3399,1,"Situación Crítica. Correccción Urgente"]
[3398,1,"Situación Crítica. Correccción Urgente"]
[3397,1,"Situación Crítica. Correccción Urgente"]
[3396,1,"Situación Crítica. Correccción Urgente"]
[3395,1,"Situación Crítica. Correccción Urgente"]
[3394,1,"Situación Crítica. Correccción Urgente"]
[3393,1,"Situación Crítica. Correccción Urgente"]
[3392,1,"Situación Crítica. Correccción Urgente"]
[3391,1,"Situación Crítica. Correccción Urgente"]
[3390,1,"Situación Crítica. Correccción Urgente"]
[3389,1,"Situación Crítica. Correccción Urgente"]
[3388,1,"Situación Crítica. Correccción Urgente"]
[3387,1,"Situación Crítica. Correccción Urgente"]
[3386,1,"Situación Crítica. Correccción Urgente"]
[3385,1,"Situación Crítica. Correccción Urgente"]
[3384,1,"Situación Crítica. Correccción Urgente"]
[3383,1,"Situación Crítica. Correccción Urgente"]
[3382,1,"Situación Crítica. Correccción Urgente"]
[3381,1,"Situación Crítica. Correccción Urgente"]
[3380,1,"Situación Crítica. Correccción Urgente"]
[3379,1,"Situación Crítica. Correccción Urgente"]
[3378,1,"Situación Crítica. Correccción Urgente"]
[3377,1,"Situación Crítica. Correccción Urgente"]
[3376,1,"Situación Crítica. Correccción Urgente"]
[3375,1,"Situación Crítica. Correccción Urgente"]
[3374,1,"Situación Crítica. Correccción Urgente"]
[3373,1,"Situación Crítica. Correccción Urgente"]
[3372,1,"Situación Crítica. Correccción Urgente"]
[3371,1,"Situación Crítica. Correccción Urgente"]
[3370,1,"Situación Crítica. Correccción Urgente"]
[3369,1,"Situación Crítica. Correccción Urgente"]
[3368,1,"Situación Crítica. Correccción Urgente"]
[3367,1,"Situación Crítica. Correccción Urgente"]
[3366,1,"Situación Crítica. Correccción Urgente"]
[3365,1,"Situación Crítica. Correccción Urgente"]
[3364,1,"Situación Crítica. Correccción Urgente"]
[3363,1,"Situación Crítica. Correccción Urgente"]
[3362,1,"Situación Crítica. Correccción Urgente"]
[3361,1,"Situación Crítica. Correccción Urgente"]
[3360,1,"Situación Crítica. Correccción Urgente"]
[3359,1,"Situación Crítica. Correccción Urgente"]
[3358,1,"Situación Crítica. Correccción Urgente"]
[3357,1,"Situación Crítica. Correccción Urgente"]
[3356,1,"Situación Crítica. Correccción Urgente"]
[3355,1,"Situación Crítica. Correccción Urgente"]
[3354,1,"Situación Crítica. Correccción Urgente"]
[3353,1,"Situación Crítica. Correccción Urgente"]
[3352,1,"Situación Crítica. Correccción Urgente"]
[3351,1,"Situación Crítica. Correccción Urgente"]
[3350,1,"Situación Crítica. Correccción Urgente"]
[3349,1,"Situación Crítica. Correccción Urgente"]
[3348,1,"Situación Crítica. Correccción Urgente"]
[3347,1,"Situación Crítica. Correccción Urgente"]
[3346,1,"Situación Crítica. Correccción Urgente"]
[3345,1,"Situación Crítica. Correccción Urgente"]
[3344,1,"Situación Crítica. Correccción Urgente"]
[3343,1,"Situación Crítica. Correccción Urgente"]
[3342,1,"Situación Crítica. Correccción Urgente"]
[3341,1,"Situación Crítica. Correccción Urgente"]
[3340,1,"Situación Crítica. Correccción Urgente"]
[3339,1,"Situación Crítica. Correccción Urgente"]
[3338,1,"Situación Crítica. Correccción Urgente"]
[3337,1,"Situación Crítica. Correccción Urgente"]
[3336,1,"Situación Crítica. Correccción Urgente"]
[3335,1,"Situación Crítica. Correccción Urgente"]
[3334,1,"Situación Crítica. Correccción Urgente"]
[3333,1,"Situación Crítica. Correccción Urgente"]
[3332,1,"Situación Crítica. Correccción Urgente"]
[3331,1,"Situación Crítica. Correccción Urgente"]
[3330,1,"Situación Crítica. Correccción Urgente"]
[3329,1,"Situación Crítica. Correccción Urgente"]
[3328,1,"Situación Crítica. Correccción Urgente"]
[3327,1,"Situación Crítica. Correccción Urgente"]
[3326,1,"Situación Crítica. Correccción Urgente"]
[3325,1,"Situación Crítica. Correccción Urgente"]
[3324,1,"Situación Crítica. Correccción Urgente"]
[3323,1,"Situación Crítica. Correccción Urgente"]
[3322,1,"Situación Crítica. Correccción Urgente"]
[3321,1,"Situación Crítica. Correccción Urgente"]
[3320,1,"Situación Crítica. Correccción Urgente"]
[3319,1,"Situación Crítica. Correccción Urgente"]
[3318,1,"Situación Crítica. Correccción Urgente"]
[3317,1,"Situación Crítica. Correccción Urgente"]
[3316,1,"Situación Crítica. Correccción Urgente"]
[3315,1,"Situación Crítica. Correccción Urgente"]
[3314,1,"Situación Crítica. Correccción Urgente"]
[3313,1,"Situación Crítica. Correccción Urgente"]
[3312,1,"Situación Crítica. Correccción Urgente"]
[3311,1,"Situación Crítica. Correccción Urgente"]
[3310,1,"Situación Crítica. Correccción Urgente"]
[3309,1,"Situación Crítica. Correccción Urgente"]
[3308,1,"Situación Crítica. Correccción Urgente"]
[3307,1,"Situación Crítica. Correccción Urgente"]
[3306,1,"Situación Crítica. Correccción Urgente"]
[3305,1,"Situación Crítica. Correccción Urgente"]
[3304,1,"Situación Crítica. Correccción Urgente"]
[3303,1,"Situación Crítica. Correccción Urgente"]
[3302,1,"Situación Crítica. Correccción Urgente"]
[3301,1,"Situación Crítica. Correccción Urgente"]
[3300,1,"Situación Crítica. Correccción Urgente"]
[3299,1,"Situación Crítica. Correccción Urgente"]
[3298,1,"Situación Crítica. Correccción Urgente"]
[3297,1,"Situación Crítica. Correccción Urgente"]
[3296,1,"Situación Crítica. Correccción Urgente"]
[3295,1,"Situación Crítica. Correccción Urgente"]
[3294,1,"Situación Crítica. Correccción Urgente"]
[3293,1,"Situación Crítica. Correccción Urgente"]
[3292,1,"Situación Crítica. Correccción Urgente"]
[3291,1,"Situación Crítica. Correccción Urgente"]
[3290,1,"Situación Crítica. Correccción Urgente"]
[3289,1,"Situación Crítica. Correccción Urgente"]
[3288,1,"Situación Crítica. Correccción Urgente"]
[3287,1,"Situación Crítica. Correccción Urgente"]
[3286,1,"Situación Crítica. Correccción Urgente"]
[3285,1,"Situación Crítica. Correccción Urgente"]
[3284,1,"Situación Crítica. Correccción Urgente"]
[3283,1,"Situación Crítica. Correccción Urgente"]
[3282,1,"Situación Crítica. Correccción Urgente"]
[3281,1,"Situación Crítica. Correccción Urgente"]
[3280,1,"Situación Crítica. Correccción Urgente"]
[3279,1,"Situación Crítica. Correccción Urgente"]
[3278,1,"Situación Crítica. Correccción Urgente"]
[3277,1,"Situación Crítica. Correccción Urgente"]
[3276,1,"Situación Crítica. Correccción Urgente"]
[3275,1,"Situación Crítica. Correccción Urgente"]
[3274,1,"Situación Crítica. Correccción Urgente"]
[3273,1,"Situación Crítica. Correccción Urgente"]
[3272,1,"Situación Crítica. Correccción Urgente"]
[3271,1,"Situación Crítica. Correccción Urgente"]
[3270,1,"Situación Crítica. Correccción Urgente"]
[3269,1,"Situación Crítica. Correccción Urgente"]
[3268,1,"Situación Crítica. Correccción Urgente"]
[3267,1,"Situación Crítica. Correccción Urgente"]
[3266,1,"Situación Crítica. Correccción Urgente"]
[3265,1,"Situación Crítica. Correccción Urgente"]
[3264,1,"Situación Crítica. Correccción Urgente"]
[3263,1,"Situación Crítica. Correccción Urgente"]
[3262,1,"Situación Crítica. Correccción Urgente"]
[3261,1,"Situación Crítica. Correccción Urgente"]
[3260,1,"Situación Crítica. Correccción Urgente"]
[3259,1,"Situación Crítica. Correccción Urgente"]
[3258,1,"Situación Crítica. Correccción Urgente"]
[3257,1,"Situación Crítica. Correccción Urgente"]
[3256,1,"Situación Crítica. Correccción Urgente"]
[3255,1,"Situación Crítica. Correccción Urgente"]
[3254,1,"Situación Crítica. Correccción Urgente"]
[3253,1,"Situación Crítica. Correccción Urgente"]
[3252,1,"Situación Crítica. Correccción Urgente"]
[3251,1,"Situación Crítica. Correccción Urgente"]
[3250,1,"Situación Crítica. Correccción Urgente"]
[3249,1,"Situación Crítica. Correccción Urgente"]
[3248,1,"Situación Crítica. Correccción Urgente"]
[3247,1,"Situación Crítica. Correccción Urgente"]
[3246,1,"Situación Crítica. Correccción Urgente"]
[3245,1,"Situación Crítica. Correccción Urgente"]
[3244,1,"Situación Crítica. Correccción Urgente"]
[3243,1,"Situación Crítica. Correccción Urgente"]
[3242,1,"Situación Crítica. Correccción Urgente"]
[3241,1,"Situación Crítica. Correccción Urgente"]
[3240,1,"Situación Crítica. Correccción Urgente"]
[3239,1,"Situación Crítica. Correccción Urgente"]
[3238,1,"Situación Crítica. Correccción Urgente"]
[3237,1,"Situación Crítica. Correccción Urgente"]
[3236,1,"Situación Crítica. Correccción Urgente"]
[3235,1,"Situación Crítica. Correccción Urgente"]
[3234,1,"Situación Crítica. Correccción Urgente"]
[3233,1,"Situación Crítica. Correccción Urgente"]
[3232,1,"Situación Crítica. Correccción Urgente"]
[3231,1,"Situación Crítica. Correccción Urgente"]
[3230,1,"Situación Crítica. Correccción Urgente"]
[3229,1,"Situación Crítica. Correccción Urgente"]
[3228,1,"Situación Crítica. Correccción Urgente"]
[3227,1,"Situación Crítica. Correccción Urgente"]
[3226,1,"Situación Crítica. Correccción Urgente"]
[3225,1,"Situación Crítica. Correccción Urgente"]
[3224,1,"Situación Crítica. Correccción Urgente"]
[3223,1,"Situación Crítica. Correccción Urgente"]
[3222,1,"Situación Crítica. Correccción Urgente"]
[3221,1,"Situación Crítica. Correccción Urgente"]
[3220,1,"Situación Crítica. Correccción Urgente"]
[3219,1,"Situación Crítica. Correccción Urgente"]
[3218,1,"Situación Crítica. Correccción Urgente"]
[3217,1,"Situación Crítica. Correccción Urgente"]
[3216,1,"Situación Crítica. Correccción Urgente"]
[3215,1,"Situación Crítica. Correccción Urgente"]
[3214,1,"Situación Crítica. Correccción Urgente"]
[3213,1,"Situación Crítica. Correccción Urgente"]
[3212,1,"Situación Crítica. Correccción Urgente"]
[3211,1,"Situación Crítica. Correccción Urgente"]
[3210,1,"Situación Crítica. Correccción Urgente"]
[3209,1,"Situación Crítica. Correccción Urgente"]
[3208,1,"Situación Crítica. Correccción Urgente"]
[3207,1,"Situación Crítica. Correccción Urgente"]
[3206,1,"Situación Crítica. Correccción Urgente"]
[3205,1,"Situación Crítica. Correccción Urgente"]
[3204,1,"Situación Crítica. Correccción Urgente"]
[3203,1,"Situación Crítica. Correccción Urgente"]
[3202,1,"Situación Crítica. Correccción Urgente"]
[3201,1,"Situación Crítica. Correccción Urgente"]
[3200,1,"Situación Crítica. Correccción Urgente"]
[3199,1,"Situación Crítica. Correccción Urgente"]
[3198,1,"Situación Crítica. Correccción Urgente"]
[3197,1,"Situación Crítica. Correccción Urgente"]
[3196,1,"Situación Crítica. Correccción Urgente"]
[3195,1,"Situación Crítica. Correccción Urgente"]
[3194,1,"Situación Crítica. Correccción Urgente"]
[3193,1,"Situación Crítica. Correccción Urgente"]
[3192,1,"Situación Crítica. Correccción Urgente"]
[3191,1,"Situación Crítica. Correccción Urgente"]
[3190,1,"Situación Crítica. Correccción Urgente"]
[3189,1,"Situación Crítica. Correccción Urgente"]
[3188,1,"Situación Crítica. Correccción Urgente"]
[3187,1,"Situación Crítica. Correccción Urgente"]
[3186,1,"Situación Crítica. Correccción Urgente"]
[3185,1,"Situación Crítica. Correccción Urgente"]
[3184,1,"Situación Crítica. Correccción Urgente"]
[3183,1,"Situación Crítica. Correccción Urgente"]
[3182,1,"Situación Crítica. Correccción Urgente"]
[3181,1,"Situación Crítica. Correccción Urgente"]
[3180,1,"Situación Crítica. Correccción Urgente"]
[3179,1,"Situación Crítica. Correccción Urgente"]
[3178,1,"Situación Crítica. Correccción Urgente"]
[3177,1,"Situación Crítica. Correccción Urgente"]
[3176,1,"Situación Crítica. Correccción Urgente"]
[3175,1,"Situación Crítica. Correccción Urgente"]
[3174,1,"Situación Crítica. Correccción Urgente"]
[3173,1,"Situación Crítica. Correccción Urgente"]
[3172,1,"Situación Crítica. Correccción Urgente"]
[3171,1,"Situación Crítica. Correccción Urgente"]
[3170,1,"Situación Crítica. Correccción Urgente"]
[3169,1,"Situación Crítica. Correccción Urgente"]
[3168,1,"Situación Crítica. Correccción Urgente"]
[3167,1,"Situación Crítica. Correccción Urgente"]
[3166,1,"Situación Crítica. Correccción Urgente"]
[3165,1,"Situación Crítica. Correccción Urgente"]
[3164,1,"Situación Crítica. Correccción Urgente"]
[3163,1,"Situación Crítica. Correccción Urgente"]
[3162,1,"Situación Crítica. Correccción Urgente"]
[3161,1,"Situación Crítica. Correccción Urgente"]
[3160,1,"Situación Crítica. Correccción Urgente"]
[3159,1,"Situación Crítica. Correccción Urgente"]
[3158,1,"Situación Crítica. Correccción Urgente"]
[3157,1,"Situación Crítica. Correccción Urgente"]
[3156,1,"Situación Crítica. Correccción Urgente"]
[3155,1,"Situación Crítica. Correccción Urgente"]
[3154,1,"Situación Crítica. Correccción Urgente"]
[3153,1,"Situación Crítica. Correccción Urgente"]
[3152,1,"Situación Crítica. Correccción Urgente"]
[3151,1,"Situación Crítica. Correccción Urgente"]
[3150,1,"Situación Crítica. Correccción Urgente"]
[3149,1,"Situación Crítica. Correccción Urgente"]
[3148,1,"Situación Crítica. Correccción Urgente"]
[3147,1,"Situación Crítica. Correccción Urgente"]
[3146,1,"Situación Crítica. Correccción Urgente"]
[3145,1,"Situación Crítica. Correccción Urgente"]
[3144,1,"Situación Crítica. Correccción Urgente"]
[3143,1,"Situación Crítica. Correccción Urgente"]
[3142,1,"Situación Crítica. Correccción Urgente"]
[3141,1,"Situación Crítica. Correccción Urgente"]
[3140,1,"Situación Crítica. Correccción Urgente"]
[3139,1,"Situación Crítica. Correccción Urgente"]
[3138,1,"Situación Crítica. Correccción Urgente"]
[3137,1,"Situación Crítica. Correccción Urgente"]
[3136,1,"Situación Crítica. Correccción Urgente"]
[3135,1,"Situación Crítica. Correccción Urgente"]
[3134,1,"Situación Crítica. Correccción Urgente"]
[3133,1,"Situación Crítica. Correccción Urgente"]
[3132,1,"Situación Crítica. Correccción Urgente"]
[3131,1,"Situación Crítica. Correccción Urgente"]
[3130,1,"Situación Crítica. Correccción Urgente"]
[3129,1,"Situación Crítica. Correccción Urgente"]
[3128,1,"Situación Crítica. Correccción Urgente"]
[3127,1,"Situación Crítica. Correccción Urgente"]
[3126,1,"Situación Crítica. Correccción Urgente"]
[3125,1,"Situación Crítica. Correccción Urgente"]
[3124,1,"Situación Crítica. Correccción Urgente"]
[3123,1,"Situación Crítica. Correccción Urgente"]
[3122,1,"Situación Crítica. Correccción Urgente"]
[3121,1,"Situación Crítica. Correccción Urgente"]
[3120,1,"Situación Crítica. Correccción Urgente"]
[3119,1,"Situación Crítica. Correccción Urgente"]
[3118,1,"Situación Crítica. Correccción Urgente"]
[3117,1,"Situación Crítica. Correccción Urgente"]
[3116,1,"Situación Crítica. Correccción Urgente"]
[3115,1,"Situación Crítica. Correccción Urgente"]
[3114,1,"Situación Crítica. Correccción Urgente"]
[3113,1,"Situación Crítica. Correccción Urgente"]
[3112,1,"Situación Crítica. Correccción Urgente"]
[3111,1,"Situación Crítica. Correccción Urgente"]
[3110,1,"Situación Crítica. Correccción Urgente"]
[3109,1,"Situación Crítica. Correccción Urgente"]
[3108,1,"Situación Crítica. Correccción Urgente"]
[3107,1,"Situación Crítica. Correccción Urgente"]
[3106,1,"Situación Crítica. Correccción Urgente"]
[3105,1,"Situación Crítica. Correccción Urgente"]
[3104,1,"Situación Crítica. Correccción Urgente"]
[3103,1,"Situación Crítica. Correccción Urgente"]
[3102,1,"Situación Crítica. Correccción Urgente"]
[3101,1,"Situación Crítica. Correccción Urgente"]
[3100,1,"Situación Crítica. Correccción Urgente"]
[3099,1,"Situación Crítica. Correccción Urgente"]
[3098,1,"Situación Crítica. Correccción Urgente"]
[3097,1,"Situación Crítica. Correccción Urgente"]
[3096,1,"Situación Crítica. Correccción Urgente"]
[3095,1,"Situación Crítica. Correccción Urgente"]
[3094,1,"Situación Crítica. Correccción Urgente"]
[3093,1,"Situación Crítica. Correccción Urgente"]
[3092,1,"Situación Crítica. Correccción Urgente"]
[3091,1,"Situación Crítica. Correccción Urgente"]
[3090,1,"Situación Crítica. Correccción Urgente"]
[3089,1,"Situación Crítica. Correccción Urgente"]
[3088,1,"Situación Crítica. Correccción Urgente"]
[3087,1,"Situación Crítica. Correccción Urgente"]
[3086,1,"Situación Crítica. Correccción Urgente"]
[3085,1,"Situación Crítica. Correccción Urgente"]
[3084,1,"Situación Crítica. Correccción Urgente"]
[3083,1,"Situación Crítica. Correccción Urgente"]
[3082,1,"Situación Crítica. Correccción Urgente"]
[3081,1,"Situación Crítica. Correccción Urgente"]
[3080,1,"Situación Crítica. Correccción Urgente"]
[3079,1,"Situación Crítica. Correccción Urgente"]
[3078,1,"Situación Crítica. Correccción Urgente"]
[3077,1,"Situación Crítica. Correccción Urgente"]
[3076,1,"Situación Crítica. Correccción Urgente"]
[3075,1,"Situación Crítica. Correccción Urgente"]
[3074,1,"Situación Crítica. Correccción Urgente"]
[3073,1,"Situación Crítica. Correccción Urgente"]
[3072,1,"Situación Crítica. Correccción Urgente"]
[3071,1,"Situación Crítica. Correccción Urgente"]
[3070,1,"Situación Crítica. Correccción Urgente"]
[3069,1,"Situación Crítica. Correccción Urgente"]
[3068,1,"Situación Crítica. Correccción Urgente"]
[3067,1,"Situación Crítica. Correccción Urgente"]
[3066,1,"Situación Crítica. Correccción Urgente"]
[3065,1,"Situación Crítica. Correccción Urgente"]
[3064,1,"Situación Crítica. Correccción Urgente"]
[3063,1,"Situación Crítica. Correccción Urgente"]
[3062,1,"Situación Crítica. Correccción Urgente"]
[3061,1,"Situación Crítica. Correccción Urgente"]
[3060,1,"Situación Crítica. Correccción Urgente"]
[3059,1,"Situación Crítica. Correccción Urgente"]
[3058,1,"Situación Crítica. Correccción Urgente"]
[3057,1,"Situación Crítica. Correccción Urgente"]
[3056,1,"Situación Crítica. Correccción Urgente"]
[3055,1,"Situación Crítica. Correccción Urgente"]
[3054,1,"Situación Crítica. Correccción Urgente"]
[3053,1,"Situación Crítica. Correccción Urgente"]
[3052,1,"Situación Crítica. Correccción Urgente"]
[3051,1,"Situación Crítica. Correccción Urgente"]
[3050,1,"Situación Crítica. Correccción Urgente"]
[3049,1,"Situación Crítica. Correccción Urgente"]
[3048,1,"Situación Crítica. Correccción Urgente"]
[3047,1,"Situación Crítica. Correccción Urgente"]
[3046,1,"Situación Crítica. Correccción Urgente"]
[3045,1,"Situación Crítica. Correccción Urgente"]
[3044,1,"Situación Crítica. Correccción Urgente"]
[3043,1,"Situación Crítica. Correccción Urgente"]
[3042,1,"Situación Crítica. Correccción Urgente"]
[3041,1,"Situación Crítica. Correccción Urgente"]
[3040,1,"Situación Crítica. Correccción Urgente"]
[3039,1,"Situación Crítica. Correccción Urgente"]
[3038,1,"Situación Crítica. Correccción Urgente"]
[3037,1,"Situación Crítica. Correccción Urgente"]
[3036,1,"Situación Crítica. Correccción Urgente"]
[3035,1,"Situación Crítica. Correccción Urgente"]
[3034,1,"Situación Crítica. Correccción Urgente"]
[3033,1,"Situación Crítica. Correccción Urgente"]
[3032,1,"Situación Crítica. Correccción Urgente"]
[3031,1,"Situación Crítica. Correccción Urgente"]
[3030,1,"Situación Crítica. Correccción Urgente"]
[3029,1,"Situación Crítica. Correccción Urgente"]
[3028,1,"Situación Crítica. Correccción Urgente"]
[3027,1,"Situación Crítica. Correccción Urgente"]
[3026,1,"Situación Crítica. Correccción Urgente"]
[3025,1,"Situación Crítica. Correccción Urgente"]
[3024,1,"Situación Crítica. Correccción Urgente"]
[3023,1,"Situación Crítica. Correccción Urgente"]
[3022,1,"Situación Crítica. Correccción Urgente"]
[3021,1,"Situación Crítica. Correccción Urgente"]
[3020,1,"Situación Crítica. Correccción Urgente"]
[3019,1,"Situación Crítica. Correccción Urgente"]
[3018,1,"Situación Crítica. Correccción Urgente"]
[3017,1,"Situación Crítica. Correccción Urgente"]
[3016,1,"Situación Crítica. Correccción Urgente"]
[3015,1,"Situación Crítica. Correccción Urgente"]
[3014,1,"Situación Crítica. Correccción Urgente"]
[3013,1,"Situación Crítica. Correccción Urgente"]
[3012,1,"Situación Crítica. Correccción Urgente"]
[3011,1,"Situación Crítica. Correccción Urgente"]
[3010,1,"Situación Crítica. Correccción Urgente"]
[3009,1,"Situación Crítica. Correccción Urgente"]
[3008,1,"Situación Crítica. Correccción Urgente"]
[3007,1,"Situación Crítica. Correccción Urgente"]
[3006,1,"Situación Crítica. Correccción Urgente"]
[3005,1,"Situación Crítica. Correccción Urgente"]
[3004,1,"Situación Crítica. Correccción Urgente"]
[3003,1,"Situación Crítica. Correccción Urgente"]
[3002,1,"Situación Crítica. Correccción Urgente"]
[3001,1,"Situación Crítica. Correccción Urgente"]
[3000,1,"Situación Crítica. Correccción Urgente"]
[2999,1,"Situación Crítica. Correccción Urgente"]
[2998,1,"Situación Crítica. Correccción Urgente"]
[2997,1,"Situación Crítica. Correccción Urgente"]
[2996,1,"Situación Crítica. Correccción Urgente"]
[2995,1,"Situación Crítica. Correccción Urgente"]
[2994,1,"Situación Crítica. Correccción Urgente"]
[2993,1,"Situación Crítica. Correccción Urgente"]
[2992,1,"Situación Crítica. Correccción Urgente"]
[2991,1,"Situación Crítica. Correccción Urgente"]
[2990,1,"Situación Crítica. Correccción Urgente"]
[2989,1,"Situación Crítica. Correccción Urgente"]
[2988,1,"Situación Crítica. Correccción Urgente"]
[2987,1,"Situación Crítica. Correccción Urgente"]
[2986,1,"Situación Crítica. Correccción Urgente"]
[2985,1,"Situación Crítica. Correccción Urgente"]
[2984,1,"Situación Crítica. Correccción Urgente"]
[2983,1,"Situación Crítica. Correccción Urgente"]
[2982,1,"Situación Crítica. Correccción Urgente"]
[2981,1,"Situación Crítica. Correccción Urgente"]
[2980,1,"Situación Crítica. Correccción Urgente"]
[2979,1,"Situación Crítica. Correccción Urgente"]
[2978,1,"Situación Crítica. Correccción Urgente"]
[2977,1,"Situación Crítica. Correccción Urgente"]
[2976,1,"Situación Crítica. Correccción Urgente"]
[2975,1,"Situación Crítica. Correccción Urgente"]
[2974,1,"Situación Crítica. Correccción Urgente"]
[2973,1,"Situación Crítica. Correccción Urgente"]
[2972,1,"Situación Crítica. Correccción Urgente"]
[2971,1,"Situación Crítica. Correccción Urgente"]
[2970,1,"Situación Crítica. Correccción Urgente"]
[2969,1,"Situación Crítica. Correccción Urgente"]
[2968,1,"Situación Crítica. Correccción Urgente"]
[2967,1,"Situación Crítica. Correccción Urgente"]
[2966,1,"Situación Crítica. Correccción Urgente"]
[2965,1,"Situación Crítica. Correccción Urgente"]
[2964,1,"Situación Crítica. Correccción Urgente"]
[2963,1,"Situación Crítica. Correccción Urgente"]
[2962,1,"Situación Crítica. Correccción Urgente"]
[2961,1,"Situación Crítica. Correccción Urgente"]
[2960,1,"Situación Crítica. Correccción Urgente"]
[2959,1,"Situación Crítica. Correccción Urgente"]
[2958,1,"Situación Crítica. Correccción Urgente"]
[2957,1,"Situación Crítica. Correccción Urgente"]
[2956,1,"Situación Crítica. Correccción Urgente"]
[2955,1,"Situación Crítica. Correccción Urgente"]
[2954,1,"Situación Crítica. Correccción Urgente"]
[2953,1,"Situación Crítica. Correccción Urgente"]
[2952,1,"Situación Crítica. Correccción Urgente"]
[2951,1,"Situación Crítica. Correccción Urgente"]
[2950,1,"Situación Crítica. Correccción Urgente"]
[2949,1,"Situación Crítica. Correccción Urgente"]
[2948,1,"Situación Crítica. Correccción Urgente"]
[2947,1,"Situación Crítica. Correccción Urgente"]
[2946,1,"Situación Crítica. Correccción Urgente"]
[2945,1,"Situación Crítica. Correccción Urgente"]
[2944,1,"Situación Crítica. Correccción Urgente"]
[2943,1,"Situación Crítica. Correccción Urgente"]
[2942,1,"Situación Crítica. Correccción Urgente"]
[2941,1,"Situación Crítica. Correccción Urgente"]
[2940,1,"Situación Crítica. Correccción Urgente"]
[2939,1,"Situación Crítica. Correccción Urgente"]
[2938,1,"Situación Crítica. Correccción Urgente"]
[2937,1,"Situación Crítica. Correccción Urgente"]
[2936,1,"Situación Crítica. Correccción Urgente"]
[2935,1,"Situación Crítica. Correccción Urgente"]
[2934,1,"Situación Crítica. Correccción Urgente"]
[2933,1,"Situación Crítica. Correccción Urgente"]
[2932,1,"Situación Crítica. Correccción Urgente"]
[2931,1,"Situación Crítica. Correccción Urgente"]
[2930,1,"Situación Crítica. Correccción Urgente"]
[2929,1,"Situación Crítica. Correccción Urgente"]
[2928,1,"Situación Crítica. Correccción Urgente"]
[2927,1,"Situación Crítica. Correccción Urgente"]
[2926,1,"Situación Crítica. Correccción Urgente"]
[2925,1,"Situación Crítica. Correccción Urgente"]
[2924,1,"Situación Crítica. Correccción Urgente"]
[2923,1,"Situación Crítica. Correccción Urgente"]
[2922,1,"Situación Crítica. Correccción Urgente"]
[2921,1,"Situación Crítica. Correccción Urgente"]
[2920,1,"Situación Crítica. Correccción Urgente"]
[2919,1,"Situación Crítica. Correccción Urgente"]
[2918,1,"Situación Crítica. Correccción Urgente"]
[2917,1,"Situación Crítica. Correccción Urgente"]
[2916,1,"Situación Crítica. Correccción Urgente"]
[2915,1,"Situación Crítica. Correccción Urgente"]
[2914,1,"Situación Crítica. Correccción Urgente"]
[2913,1,"Situación Crítica. Correccción Urgente"]
[2912,1,"Situación Crítica. Correccción Urgente"]
[2911,1,"Situación Crítica. Correccción Urgente"]
[2910,1,"Situación Crítica. Correccción Urgente"]
[2909,1,"Situación Crítica. Correccción Urgente"]
[2908,1,"Situación Crítica. Correccción Urgente"]
[2907,1,"Situación Crítica. Correccción Urgente"]
[2906,1,"Situación Crítica. Correccción Urgente"]
[2905,1,"Situación Crítica. Correccción Urgente"]
[2904,1,"Situación Crítica. Correccción Urgente"]
[2903,1,"Situación Crítica. Correccción Urgente"]
[2902,1,"Situación Crítica. Correccción Urgente"]
[2901,1,"Situación Crítica. Correccción Urgente"]
[2900,1,"Situación Crítica. Correccción Urgente"]
[2899,1,"Situación Crítica. Correccción Urgente"]
[2898,1,"Situación Crítica. Correccción Urgente"]
[2897,1,"Situación Crítica. Correccción Urgente"]
[2896,1,"Situación Crítica. Correccción Urgente"]
[2895,1,"Situación Crítica. Correccción Urgente"]
[2894,1,"Situación Crítica. Correccción Urgente"]
[2893,1,"Situación Crítica. Correccción Urgente"]
[2892,1,"Situación Crítica. Correccción Urgente"]
[2891,1,"Situación Crítica. Correccción Urgente"]
[2890,1,"Situación Crítica. Correccción Urgente"]
[2889,1,"Situación Crítica. Correccción Urgente"]
[2888,1,"Situación Crítica. Correccción Urgente"]
[2887,1,"Situación Crítica. Correccción Urgente"]
[2886,1,"Situación Crítica. Correccción Urgente"]
[2885,1,"Situación Crítica. Correccción Urgente"]
[2884,1,"Situación Crítica. Correccción Urgente"]
[2883,1,"Situación Crítica. Correccción Urgente"]
[2882,1,"Situación Crítica. Correccción Urgente"]
[2881,1,"Situación Crítica. Correccción Urgente"]
[2880,1,"Situación Crítica. Correccción Urgente"]
[2879,1,"Situación Crítica. Correccción Urgente"]
[2878,1,"Situación Crítica. Correccción Urgente"]
[2877,1,"Situación Crítica. Correccción Urgente"]
[2876,1,"Situación Crítica. Correccción Urgente"]
[2875,1,"Situación Crítica. Correccción Urgente"]
[2874,1,"Situación Crítica. Correccción Urgente"]
[2873,1,"Situación Crítica. Correccción Urgente"]
[2872,1,"Situación Crítica. Correccción Urgente"]
[2871,1,"Situación Crítica. Correccción Urgente"]
[2870,1,"Situación Crítica. Correccción Urgente"]
[2869,1,"Situación Crítica. Correccción Urgente"]
[2868,1,"Situación Crítica. Correccción Urgente"]
[2867,1,"Situación Crítica. Correccción Urgente"]
[2866,1,"Situación Crítica. Correccción Urgente"]
[2865,1,"Situación Crítica. Correccción Urgente"]
[2864,1,"Situación Crítica. Correccción Urgente"]
[2863,1,"Situación Crítica. Correccción Urgente"]
[2862,1,"Situación Crítica. Correccción Urgente"]
[2861,1,"Situación Crítica. Correccción Urgente"]
[2860,1,"Situación Crítica. Correccción Urgente"]
[2859,1,"Situación Crítica. Correccción Urgente"]
[2858,1,"Situación Crítica. Correccción Urgente"]
[2857,1,"Situación Crítica. Correccción Urgente"]
[2856,1,"Situación Crítica. Correccción Urgente"]
[2855,1,"Situación Crítica. Correccción Urgente"]
[2854,1,"Situación Crítica. Correccción Urgente"]
[2853,1,"Situación Crítica. Correccción Urgente"]
[2852,1,"Situación Crítica. Correccción Urgente"]
[2851,1,"Situación Crítica. Correccción Urgente"]
[2850,1,"Situación Crítica. Correccción Urgente"]
[2849,1,"Situación Crítica. Correccción Urgente"]
[2848,1,"Situación Crítica. Correccción Urgente"]
[2847,1,"Situación Crítica. Correccción Urgente"]
[2846,1,"Situación Crítica. Correccción Urgente"]
[2845,1,"Situación Crítica. Correccción Urgente"]
[2844,1,"Situación Crítica. Correccción Urgente"]
[2843,1,"Situación Crítica. Correccción Urgente"]
[2842,1,"Situación Crítica. Correccción Urgente"]
[2841,1,"Situación Crítica. Correccción Urgente"]
[2840,1,"Situación Crítica. Correccción Urgente"]
[2839,1,"Situación Crítica. Correccción Urgente"]
[2838,1,"Situación Crítica. Correccción Urgente"]
[2837,1,"Situación Crítica. Correccción Urgente"]
[2836,1,"Situación Crítica. Correccción Urgente"]
[2835,1,"Situación Crítica. Correccción Urgente"]
[2834,1,"Situación Crítica. Correccción Urgente"]
[2833,1,"Situación Crítica. Correccción Urgente"]
[2832,1,"Situación Crítica. Correccción Urgente"]
[2831,1,"Situación Crítica. Correccción Urgente"]
[2830,1,"Situación Crítica. Correccción Urgente"]
[2829,1,"Situación Crítica. Correccción Urgente"]
[2828,1,"Situación Crítica. Correccción Urgente"]
[2827,1,"Situación Crítica. Correccción Urgente"]
[2826,1,"Situación Crítica. Correccción Urgente"]
[2825,1,"Situación Crítica. Correccción Urgente"]
[2824,1,"Situación Crítica. Correccción Urgente"]
[2823,1,"Situación Crítica. Correccción Urgente"]
[2822,1,"Situación Crítica. Correccción Urgente"]
[2821,1,"Situación Crítica. Correccción Urgente"]
[2820,1,"Situación Crítica. Correccción Urgente"]
[2819,1,"Situación Crítica. Correccción Urgente"]
[2818,1,"Situación Crítica. Correccción Urgente"]
[2817,1,"Situación Crítica. Correccción Urgente"]
[2816,1,"Situación Crítica. Correccción Urgente"]
[2815,1,"Situación Crítica. Correccción Urgente"]
[2814,1,"Situación Crítica. Correccción Urgente"]
[2813,1,"Situación Crítica. Correccción Urgente"]
[2812,1,"Situación Crítica. Correccción Urgente"]
[2811,1,"Situación Crítica. Correccción Urgente"]
[2810,1,"Situación Crítica. Correccción Urgente"]
[2809,1,"Situación Crítica. Correccción Urgente"]
[2808,1,"Situación Crítica. Correccción Urgente"]
[2807,1,"Situación Crítica. Correccción Urgente"]
[2806,1,"Situación Crítica. Correccción Urgente"]
[2805,1,"Situación Crítica. Correccción Urgente"]
[2804,1,"Situación Crítica. Correccción Urgente"]
[2803,1,"Situación Crítica. Correccción Urgente"]
[2802,1,"Situación Crítica. Correccción Urgente"]
[2801,1,"Situación Crítica. Correccción Urgente"]
[2800,1,"Situación Crítica. Correccción Urgente"]
[2799,1,"Situación Crítica. Correccción Urgente"]
[2798,1,"Situación Crítica. Correccción Urgente"]
[2797,1,"Situación Crítica. Correccción Urgente"]
[2796,1,"Situación Crítica. Correccción Urgente"]
[2795,1,"Situación Crítica. Correccción Urgente"]
[2794,1,"Situación Crítica. Correccción Urgente"]
[2793,1,"Situación Crítica. Correccción Urgente"]
[2792,1,"Situación Crítica. Correccción Urgente"]
[2791,1,"Situación Crítica. Correccción Urgente"]
[2790,1,"Situación Crítica. Correccción Urgente"]
[2789,1,"Situación Crítica. Correccción Urgente"]
[2788,1,"Situación Crítica. Correccción Urgente"]
[2787,1,"Situación Crítica. Correccción Urgente"]
[2786,1,"Situación Crítica. Correccción Urgente"]
[2785,1,"Situación Crítica. Correccción Urgente"]
[2784,1,"Situación Crítica. Correccción Urgente"]
[2783,1,"Situación Crítica. Correccción Urgente"]
[2782,1,"Situación Crítica. Correccción Urgente"]
[2781,1,"Situación Crítica. Correccción Urgente"]
[2780,1,"Situación Crítica. Correccción Urgente"]
[2779,1,"Situación Crítica. Correccción Urgente"]
[2778,1,"Situación Crítica. Correccción Urgente"]
[2777,1,"Situación Crítica. Correccción Urgente"]
[2776,1,"Situación Crítica. Correccción Urgente"]
[2775,1,"Situación Crítica. Correccción Urgente"]
[2774,1,"Situación Crítica. Correccción Urgente"]
[2773,1,"Situación Crítica. Correccción Urgente"]
[2772,1,"Situación Crítica. Correccción Urgente"]
[2771,1,"Situación Crítica. Correccción Urgente"]
[2770,1,"Situación Crítica. Correccción Urgente"]
[2769,1,"Situación Crítica. Correccción Urgente"]
[2768,1,"Situación Crítica. Correccción Urgente"]
[2767,1,"Situación Crítica. Correccción Urgente"]
[2766,1,"Situación Crítica. Correccción Urgente"]
[2765,1,"Situación Crítica. Correccción Urgente"]
[2764,1,"Situación Crítica. Correccción Urgente"]
[2763,1,"Situación Crítica. Correccción Urgente"]
[2762,1,"Situación Crítica. Correccción Urgente"]
[2761,1,"Situación Crítica. Correccción Urgente"]
[2760,1,"Situación Crítica. Correccción Urgente"]
[2759,1,"Situación Crítica. Correccción Urgente"]
[2758,1,"Situación Crítica. Correccción Urgente"]
[2757,1,"Situación Crítica. Correccción Urgente"]
[2756,1,"Situación Crítica. Correccción Urgente"]
[2755,1,"Situación Crítica. Correccción Urgente"]
[2754,1,"Situación Crítica. Correccción Urgente"]
[2753,1,"Situación Crítica. Correccción Urgente"]
[2752,1,"Situación Crítica. Correccción Urgente"]
[2751,1,"Situación Crítica. Correccción Urgente"]
[2750,1,"Situación Crítica. Correccción Urgente"]
[2749,1,"Situación Crítica. Correccción Urgente"]
[2748,1,"Situación Crítica. Correccción Urgente"]
[2747,1,"Situación Crítica. Correccción Urgente"]
[2746,1,"Situación Crítica. Correccción Urgente"]
[2745,1,"Situación Crítica. Correccción Urgente"]
[2744,1,"Situación Crítica. Correccción Urgente"]
[2743,1,"Situación Crítica. Correccción Urgente"]
[2742,1,"Situación Crítica. Correccción Urgente"]
[2741,1,"Situación Crítica. Correccción Urgente"]
[2740,1,"Situación Crítica. Correccción Urgente"]
[2739,1,"Situación Crítica. Correccción Urgente"]
[2738,1,"Situación Crítica. Correccción Urgente"]
[2737,1,"Situación Crítica. Correccción Urgente"]
[2736,1,"Situación Crítica. Correccción Urgente"]
[2735,1,"Situación Crítica. Correccción Urgente"]
[2734,1,"Situación Crítica. Correccción Urgente"]
[2733,1,"Situación Crítica. Correccción Urgente"]
[2732,1,"Situación Crítica. Correccción Urgente"]
[2731,1,"Situación Crítica. Correccción Urgente"]
[2730,1,"Situación Crítica. Correccción Urgente"]
[2729,1,"Situación Crítica. Correccción Urgente"]
[2728,1,"Situación Crítica. Correccción Urgente"]
[2727,1,"Situación Crítica. Correccción Urgente"]
[2726,1,"Situación Crítica. Correccción Urgente"]
[2725,1,"Situación Crítica. Correccción Urgente"]
[2724,1,"Situación Crítica. Correccción Urgente"]
[2723,1,"Situación Crítica. Correccción Urgente"]
[2722,1,"Situación Crítica. Correccción Urgente"]
[2721,1,"Situación Crítica. Correccción Urgente"]
[2720,1,"Situación Crítica. Correccción Urgente"]
[2719,1,"Situación Crítica. Correccción Urgente"]
[2718,1,"Situación Crítica. Correccción Urgente"]
[2717,1,"Situación Crítica. Correccción Urgente"]
[2716,1,"Situación Crítica. Correccción Urgente"]
[2715,1,"Situación Crítica. Correccción Urgente"]
[2714,1,"Situación Crítica. Correccción Urgente"]
[2713,1,"Situación Crítica. Correccción Urgente"]
[2712,1,"Situación Crítica. Correccción Urgente"]
[2711,1,"Situación Crítica. Correccción Urgente"]
[2710,1,"Situación Crítica. Correccción Urgente"]
[2709,1,"Situación Crítica. Correccción Urgente"]
[2708,1,"Situación Crítica. Correccción Urgente"]
[2707,1,"Situación Crítica. Correccción Urgente"]
[2706,1,"Situación Crítica. Correccción Urgente"]
[2705,1,"Situación Crítica. Correccción Urgente"]
[2704,1,"Situación Crítica. Correccción Urgente"]
[2703,1,"Situación Crítica. Correccción Urgente"]
[2702,1,"Situación Crítica. Correccción Urgente"]
[2701,1,"Situación Crítica. Correccción Urgente"]
[2700,1,"Situación Crítica. Correccción Urgente"]
[2699,1,"Situación Crítica. Correccción Urgente"]
[2698,1,"Situación Crítica. Correccción Urgente"]
[2697,1,"Situación Crítica. Correccción Urgente"]
[2696,1,"Situación Crítica. Correccción Urgente"]
[2695,1,"Situación Crítica. Correccción Urgente"]
[2694,1,"Situación Crítica. Correccción Urgente"]
[2693,1,"Situación Crítica. Correccción Urgente"]
[2692,1,"Situación Crítica. Correccción Urgente"]
[2691,1,"Situación Crítica. Correccción Urgente"]
[2690,1,"Situación Crítica. Correccción Urgente"]
[2689,1,"Situación Crítica. Correccción Urgente"]
[2688,1,"Situación Crítica. Correccción Urgente"]
[2687,1,"Situación Crítica. Correccción Urgente"]
[2686,1,"Situación Crítica. Correccción Urgente"]
[2685,1,"Situación Crítica. Correccción Urgente"]
[2684,1,"Situación Crítica. Correccción Urgente"]
[2683,1,"Situación Crítica. Correccción Urgente"]
[2682,1,"Situación Crítica. Correccción Urgente"]
[2681,1,"Situación Crítica. Correccción Urgente"]
[2680,1,"Situación Crítica. Correccción Urgente"]
[2679,1,"Situación Crítica. Correccción Urgente"]
[2678,1,"Situación Crítica. Correccción Urgente"]
[2677,1,"Situación Crítica. Correccción Urgente"]
[2676,1,"Situación Crítica. Correccción Urgente"]
[2675,1,"Situación Crítica. Correccción Urgente"]
[2674,1,"Situación Crítica. Correccción Urgente"]
[2673,1,"Situación Crítica. Correccción Urgente"]
[2672,1,"Situación Crítica. Correccción Urgente"]
[2671,1,"Situación Crítica. Correccción Urgente"]
[2670,1,"Situación Crítica. Correccción Urgente"]
[2669,1,"Situación Crítica. Correccción Urgente"]
[2668,1,"Situación Crítica. Correccción Urgente"]
[2667,1,"Situación Crítica. Correccción Urgente"]
[2666,1,"Situación Crítica. Correccción Urgente"]
[2665,1,"Situación Crítica. Correccción Urgente"]
[2664,1,"Situación Crítica. Correccción Urgente"]
[2663,1,"Situación Crítica. Correccción Urgente"]
[2662,1,"Situación Crítica. Correccción Urgente"]
[2661,1,"Situación Crítica. Correccción Urgente"]
[2660,1,"Situación Crítica. Correccción Urgente"]
[2659,1,"Situación Crítica. Correccción Urgente"]
[2658,1,"Situación Crítica. Correccción Urgente"]
[2657,1,"Situación Crítica. Correccción Urgente"]
[2656,1,"Situación Crítica. Correccción Urgente"]
[2655,1,"Situación Crítica. Correccción Urgente"]
[2654,1,"Situación Crítica. Correccción Urgente"]
[2653,1,"Situación Crítica. Correccción Urgente"]
[2652,1,"Situación Crítica. Correccción Urgente"]
[2651,1,"Situación Crítica. Correccción Urgente"]
[2650,1,"Situación Crítica. Correccción Urgente"]
[2649,1,"Situación Crítica. Correccción Urgente"]
[2648,1,"Situación Crítica. Correccción Urgente"]
[2647,1,"Situación Crítica. Correccción Urgente"]
[2646,1,"Situación Crítica. Correccción Urgente"]
[2645,1,"Situación Crítica. Correccción Urgente"]
[2644,1,"Situación Crítica. Correccción Urgente"]
[2643,1,"Situación Crítica. Correccción Urgente"]
[2642,1,"Situación Crítica. Correccción Urgente"]
[2641,1,"Situación Crítica. Correccción Urgente"]
[2640,1,"Situación Crítica. Correccción Urgente"]
[2639,1,"Situación Crítica. Correccción Urgente"]
[2638,1,"Situación Crítica. Correccción Urgente"]
[2637,1,"Situación Crítica. Correccción Urgente"]
[2636,1,"Situación Crítica. Correccción Urgente"]
[2635,1,"Situación Crítica. Correccción Urgente"]
[2634,1,"Situación Crítica. Correccción Urgente"]
[2633,1,"Situación Crítica. Correccción Urgente"]
[2632,1,"Situación Crítica. Correccción Urgente"]
[2631,1,"Situación Crítica. Correccción Urgente"]
[2630,1,"Situación Crítica. Correccción Urgente"]
[2629,1,"Situación Crítica. Correccción Urgente"]
[2628,1,"Situación Crítica. Correccción Urgente"]
[2627,1,"Situación Crítica. Correccción Urgente"]
[2626,1,"Situación Crítica. Correccción Urgente"]
[2625,1,"Situación Crítica. Correccción Urgente"]
[2624,1,"Situación Crítica. Correccción Urgente"]
[2623,1,"Situación Crítica. Correccción Urgente"]
[2622,1,"Situación Crítica. Correccción Urgente"]
[2621,1,"Situación Crítica. Correccción Urgente"]
[2620,1,"Situación Crítica. Correccción Urgente"]
[2619,1,"Situación Crítica. Correccción Urgente"]
[2618,1,"Situación Crítica. Correccción Urgente"]
[2617,1,"Situación Crítica. Correccción Urgente"]
[2616,1,"Situación Crítica. Correccción Urgente"]
[2615,1,"Situación Crítica. Correccción Urgente"]
[2614,1,"Situación Crítica. Correccción Urgente"]
[2613,1,"Situación Crítica. Correccción Urgente"]
[2612,1,"Situación Crítica. Correccción Urgente"]
[2611,1,"Situación Crítica. Correccción Urgente"]
[2610,1,"Situación Crítica. Correccción Urgente"]
[2609,1,"Situación Crítica. Correccción Urgente"]
[2608,1,"Situación Crítica. Correccción Urgente"]
[2607,1,"Situación Crítica. Correccción Urgente"]
[2606,1,"Situación Crítica. Correccción Urgente"]
[2605,1,"Situación Crítica. Correccción Urgente"]
[2604,1,"Situación Crítica. Correccción Urgente"]
[2603,1,"Situación Crítica. Correccción Urgente"]
[2602,1,"Situación Crítica. Correccción Urgente"]
[2601,1,"Situación Crítica. Correccción Urgente"]
[2600,1,"Situación Crítica. Correccción Urgente"]
[2599,1,"Situación Crítica. Correccción Urgente"]
[2598,1,"Situación Crítica. Correccción Urgente"]
[2597,1,"Situación Crítica. Correccción Urgente"]
[2596,1,"Situación Crítica. Correccción Urgente"]
[2595,1,"Situación Crítica. Correccción Urgente"]
[2594,1,"Situación Crítica. Correccción Urgente"]
[2593,1,"Situación Crítica. Correccción Urgente"]
[2592,1,"Situación Crítica. Correccción Urgente"]
[2591,1,"Situación Crítica. Correccción Urgente"]
[2590,1,"Situación Crítica. Correccción Urgente"]
[2589,1,"Situación Crítica. Correccción Urgente"]
[2588,1,"Situación Crítica. Correccción Urgente"]
[2587,1,"Situación Crítica. Correccción Urgente"]
[2586,1,"Situación Crítica. Correccción Urgente"]
[2585,1,"Situación Crítica. Correccción Urgente"]
[2584,1,"Situación Crítica. Correccción Urgente"]
[2583,1,"Situación Crítica. Correccción Urgente"]
[2582,1,"Situación Crítica. Correccción Urgente"]
[2581,1,"Situación Crítica. Correccción Urgente"]
[2580,1,"Situación Crítica. Correccción Urgente"]
[2579,1,"Situación Crítica. Correccción Urgente"]
[2578,1,"Situación Crítica. Correccción Urgente"]
[2577,1,"Situación Crítica. Correccción Urgente"]
[2576,1,"Situación Crítica. Correccción Urgente"]
[2575,1,"Situación Crítica. Correccción Urgente"]
[2574,1,"Situación Crítica. Correccción Urgente"]
[2573,1,"Situación Crítica. Correccción Urgente"]
[2572,1,"Situación Crítica. Correccción Urgente"]
[2571,1,"Situación Crítica. Correccción Urgente"]
[2570,1,"Situación Crítica. Correccción Urgente"]
[2569,1,"Situación Crítica. Correccción Urgente"]
[2568,1,"Situación Crítica. Correccción Urgente"]
[2567,1,"Situación Crítica. Correccción Urgente"]
[2566,1,"Situación Crítica. Correccción Urgente"]
[2565,1,"Situación Crítica. Correccción Urgente"]
[2564,1,"Situación Crítica. Correccción Urgente"]
[2563,1,"Situación Crítica. Correccción Urgente"]
[2562,1,"Situación Crítica. Correccción Urgente"]
[2561,1,"Situación Crítica. Correccción Urgente"]
[2560,1,"Situación Crítica. Correccción Urgente"]
[2559,1,"Situación Crítica. Correccción Urgente"]
[2558,1,"Situación Crítica. Correccción Urgente"]
[2557,1,"Situación Crítica. Correccción Urgente"]
[2556,1,"Situación Crítica. Correccción Urgente"]
[2555,1,"Situación Crítica. Correccción Urgente"]
[2554,1,"Situación Crítica. Correccción Urgente"]
[2553,1,"Situación Crítica. Correccción Urgente"]
[2552,1,"Situación Crítica. Correccción Urgente"]
[2551,1,"Situación Crítica. Correccción Urgente"]
[2550,1,"Situación Crítica. Correccción Urgente"]
[2549,1,"Situación Crítica. Correccción Urgente"]
[2548,1,"Situación Crítica. Correccción Urgente"]
[2547,1,"Situación Crítica. Correccción Urgente"]
[2546,1,"Situación Crítica. Correccción Urgente"]
[2545,1,"Situación Crítica. Correccción Urgente"]
[2544,1,"Situación Crítica. Correccción Urgente"]
[2543,1,"Situación Crítica. Correccción Urgente"]
[2542,1,"Situación Crítica. Correccción Urgente"]
[2541,1,"Situación Crítica. Correccción Urgente"]
[2540,1,"Situación Crítica. Correccción Urgente"]
[2539,1,"Situación Crítica. Correccción Urgente"]
[2538,1,"Situación Crítica. Correccción Urgente"]
[2537,1,"Situación Crítica. Correccción Urgente"]
[2536,1,"Situación Crítica. Correccción Urgente"]
[2535,1,"Situación Crítica. Correccción Urgente"]
[2534,1,"Situación Crítica. Correccción Urgente"]
[2533,1,"Situación Crítica. Correccción Urgente"]
[2532,1,"Situación Crítica. Correccción Urgente"]
[2531,1,"Situación Crítica. Correccción Urgente"]
[2530,1,"Situación Crítica. Correccción Urgente"]
[2529,1,"Situación Crítica. Correccción Urgente"]
[2528,1,"Situación Crítica. Correccción Urgente"]
[2527,1,"Situación Crítica. Correccción Urgente"]
[2526,1,"Situación Crítica. Correccción Urgente"]
[2525,1,"Situación Crítica. Correccción Urgente"]
[2524,1,"Situación Crítica. Correccción Urgente"]
[2523,1,"Situación Crítica. Correccción Urgente"]
[2522,1,"Situación Crítica. Correccción Urgente"]
[2521,1,"Situación Crítica. Correccción Urgente"]
[2520,1,"Situación Crítica. Correccción Urgente"]
[2519,1,"Situación Crítica. Correccción Urgente"]
[2518,1,"Situación Crítica. Correccción Urgente"]
[2517,1,"Situación Crítica. Correccción Urgente"]
[2516,1,"Situación Crítica. Correccción Urgente"]
[2515,1,"Situación Crítica. Correccción Urgente"]
[2514,1,"Situación Crítica. Correccción Urgente"]
[2513,1,"Situación Crítica. Correccción Urgente"]
[2512,1,"Situación Crítica. Correccción Urgente"]
[2511,1,"Situación Crítica. Correccción Urgente"]
[2510,1,"Situación Crítica. Correccción Urgente"]
[2509,1,"Situación Crítica. Correccción Urgente"]
[2508,1,"Situación Crítica. Correccción Urgente"]
[2507,1,"Situación Crítica. Correccción Urgente"]
[2506,1,"Situación Crítica. Correccción Urgente"]
[2505,1,"Situación Crítica. Correccción Urgente"]
[2504,1,"Situación Crítica. Correccción Urgente"]
[2503,1,"Situación Crítica. Correccción Urgente"]
[2502,1,"Situación Crítica. Correccción Urgente"]
[2501,1,"Situación Crítica. Correccción Urgente"]
[2500,1,"Situación Crítica. Correccción Urgente"]
[2499,1,"Situación Crítica. Correccción Urgente"]
[2498,1,"Situación Crítica. Correccción Urgente"]
[2497,1,"Situación Crítica. Correccción Urgente"]
[2496,1,"Situación Crítica. Correccción Urgente"]
[2495,1,"Situación Crítica. Correccción Urgente"]
[2494,1,"Situación Crítica. Correccción Urgente"]
[2493,1,"Situación Crítica. Correccción Urgente"]
[2492,1,"Situación Crítica. Correccción Urgente"]
[2491,1,"Situación Crítica. Correccción Urgente"]
[2490,1,"Situación Crítica. Correccción Urgente"]
[2489,1,"Situación Crítica. Correccción Urgente"]
[2488,1,"Situación Crítica. Correccción Urgente"]
[2487,1,"Situación Crítica. Correccción Urgente"]
[2486,1,"Situación Crítica. Correccción Urgente"]
[2485,1,"Situación Crítica. Correccción Urgente"]
[2484,1,"Situación Crítica. Correccción Urgente"]
[2483,1,"Situación Crítica. Correccción Urgente"]
[2482,1,"Situación Crítica. Correccción Urgente"]
[2481,1,"Situación Crítica. Correccción Urgente"]
[2480,1,"Situación Crítica. Correccción Urgente"]
[2479,1,"Situación Crítica. Correccción Urgente"]
[2478,1,"Situación Crítica. Correccción Urgente"]
[2477,1,"Situación Crítica. Correccción Urgente"]
[2476,1,"Situación Crítica. Correccción Urgente"]
[2475,1,"Situación Crítica. Correccción Urgente"]
[2474,1,"Situación Crítica. Correccción Urgente"]
[2473,1,"Situación Crítica. Correccción Urgente"]
[2472,1,"Situación Crítica. Correccción Urgente"]
[2471,1,"Situación Crítica. Correccción Urgente"]
[2470,1,"Situación Crítica. Correccción Urgente"]
[2469,1,"Situación Crítica. Correccción Urgente"]
[2468,1,"Situación Crítica. Correccción Urgente"]
[2467,1,"Situación Crítica. Correccción Urgente"]
[2466,1,"Situación Crítica. Correccción Urgente"]
[2465,1,"Situación Crítica. Correccción Urgente"]
[2464,1,"Situación Crítica. Correccción Urgente"]
[2463,1,"Situación Crítica. Correccción Urgente"]
[2462,1,"Situación Crítica. Correccción Urgente"]
[2461,1,"Situación Crítica. Correccción Urgente"]
[2460,1,"Situación Crítica. Correccción Urgente"]
[2459,1,"Situación Crítica. Correccción Urgente"]
[2458,1,"Situación Crítica. Correccción Urgente"]
[2457,1,"Situación Crítica. Correccción Urgente"]
[2456,1,"Situación Crítica. Correccción Urgente"]
[2455,1,"Situación Crítica. Correccción Urgente"]
[2454,1,"Situación Crítica. Correccción Urgente"]
[2453,1,"Situación Crítica. Correccción Urgente"]
[2452,1,"Situación Crítica. Correccción Urgente"]
[2451,1,"Situación Crítica. Correccción Urgente"]
[2450,1,"Situación Crítica. Correccción Urgente"]
[2449,1,"Situación Crítica. Correccción Urgente"]
[2448,1,"Situación Crítica. Correccción Urgente"]
[2447,1,"Situación Crítica. Correccción Urgente"]
[2446,1,"Situación Crítica. Correccción Urgente"]
[2445,1,"Situación Crítica. Correccción Urgente"]
[2444,1,"Situación Crítica. Correccción Urgente"]
[2443,1,"Situación Crítica. Correccción Urgente"]
[2442,1,"Situación Crítica. Correccción Urgente"]
[2441,1,"Situación Crítica. Correccción Urgente"]
[2440,1,"Situación Crítica. Correccción Urgente"]
[2439,1,"Situación Crítica. Correccción Urgente"]
[2438,1,"Situación Crítica. Correccción Urgente"]
[2437,1,"Situación Crítica. Correccción Urgente"]
[2436,1,"Situación Crítica. Correccción Urgente"]
[2435,1,"Situación Crítica. Correccción Urgente"]
[2434,1,"Situación Crítica. Correccción Urgente"]
[2433,1,"Situación Crítica. Correccción Urgente"]
[2432,1,"Situación Crítica. Correccción Urgente"]
[2431,1,"Situación Crítica. Correccción Urgente"]
[2430,1,"Situación Crítica. Correccción Urgente"]
[2429,1,"Situación Crítica. Correccción Urgente"]
[2428,1,"Situación Crítica. Correccción Urgente"]
[2427,1,"Situación Crítica. Correccción Urgente"]
[2426,1,"Situación Crítica. Correccción Urgente"]
[2425,1,"Situación Crítica. Correccción Urgente"]
[2424,1,"Situación Crítica. Correccción Urgente"]
[2423,1,"Situación Crítica. Correccción Urgente"]
[2422,1,"Situación Crítica. Correccción Urgente"]
[2421,1,"Situación Crítica. Correccción Urgente"]
[2420,1,"Situación Crítica. Correccción Urgente"]
[2419,1,"Situación Crítica. Correccción Urgente"]
[2418,1,"Situación Crítica. Correccción Urgente"]
[2417,1,"Situación Crítica. Correccción Urgente"]
[2416,1,"Situación Crítica. Correccción Urgente"]
[2415,1,"Situación Crítica. Correccción Urgente"]
[2414,1,"Situación Crítica. Correccción Urgente"]
[2413,1,"Situación Crítica. Correccción Urgente"]
[2412,1,"Situación Crítica. Correccción Urgente"]
[2411,1,"Situación Crítica. Correccción Urgente"]
[2410,1,"Situación Crítica. Correccción Urgente"]
[2409,1,"Situación Crítica. Correccción Urgente"]
[2408,1,"Situación Crítica. Correccción Urgente"]
[2407,1,"Situación Crítica. Correccción Urgente"]
[2406,1,"Situación Crítica. Correccción Urgente"]
[2405,1,"Situación Crítica. Correccción Urgente"]
[2404,1,"Situación Crítica. Correccción Urgente"]
[2403,1,"Situación Crítica. Correccción Urgente"]
[2402,1,"Situación Crítica. Correccción Urgente"]
[2401,1,"Situación Crítica. Correccción Urgente"]
[2400,1,"Situación Crítica. Correccción Urgente"]
[2399,1,"Situación Crítica. Correccción Urgente"]
[2398,1,"Situación Crítica. Correccción Urgente"]
[2397,1,"Situación Crítica. Correccción Urgente"]
[2396,1,"Situación Crítica. Correccción Urgente"]
[2395,1,"Situación Crítica. Correccción Urgente"]
[2394,1,"Situación Crítica. Correccción Urgente"]
[2393,1,"Situación Crítica. Correccción Urgente"]
[2392,1,"Situación Crítica. Correccción Urgente"]
[2391,1,"Situación Crítica. Correccción Urgente"]
[2390,1,"Situación Crítica. Correccción Urgente"]
[2389,1,"Situación Crítica. Correccción Urgente"]
[2388,1,"Situación Crítica. Correccción Urgente"]
[2387,1,"Situación Crítica. Correccción Urgente"]
[2386,1,"Situación Crítica. Correccción Urgente"]
[2385,1,"Situación Crítica. Correccción Urgente"]
[2384,1,"Situación Crítica. Correccción Urgente"]
[2383,1,"Situación Crítica. Correccción Urgente"]
[2382,1,"Situación Crítica. Correccción Urgente"]
[2381,1,"Situación Crítica. Correccción Urgente"]
[2380,1,"Situación Crítica. Correccción Urgente"]
[2379,1,"Situación Crítica. Correccción Urgente"]
[2378,1,"Situación Crítica. Correccción Urgente"]
[2377,1,"Situación Crítica. Correccción Urgente"]
[2376,1,"Situación Crítica. Correccción Urgente"]
[2375,1,"Situación Crítica. Correccción Urgente"]
[2374,1,"Situación Crítica. Correccción Urgente"]
[2373,1,"Situación Crítica. Correccción Urgente"]
[2372,1,"Situación Crítica. Correccción Urgente"]
[2371,1,"Situación Crítica. Correccción Urgente"]
[2370,1,"Situación Crítica. Correccción Urgente"]
[2369,1,"Situación Crítica. Correccción Urgente"]
[2368,1,"Situación Crítica. Correccción Urgente"]
[2367,1,"Situación Crítica. Correccción Urgente"]
[2366,1,"Situación Crítica. Correccción Urgente"]
[2365,1,"Situación Crítica. Correccción Urgente"]
[2364,1,"Situación Crítica. Correccción Urgente"]
[2363,1,"Situación Crítica. Correccción Urgente"]
[2362,1,"Situación Crítica. Correccción Urgente"]
[2361,1,"Situación Crítica. Correccción Urgente"]
[2360,1,"Situación Crítica. Correccción Urgente"]
[2359,1,"Situación Crítica. Correccción Urgente"]
[2358,1,"Situación Crítica. Correccción Urgente"]
[2357,1,"Situación Crítica. Correccción Urgente"]
[2356,1,"Situación Crítica. Correccción Urgente"]
[2355,1,"Situación Crítica. Correccción Urgente"]
[2354,1,"Situación Crítica. Correccción Urgente"]
[2353,1,"Situación Crítica. Correccción Urgente"]
[2352,1,"Situación Crítica. Correccción Urgente"]
[2351,1,"Situación Crítica. Correccción Urgente"]
[2350,1,"Situación Crítica. Correccción Urgente"]
[2349,1,"Situación Crítica. Correccción Urgente"]
[2348,1,"Situación Crítica. Correccción Urgente"]
[2347,1,"Situación Crítica. Correccción Urgente"]
[2346,1,"Situación Crítica. Correccción Urgente"]
[2345,1,"Situación Crítica. Correccción Urgente"]
[2344,1,"Situación Crítica. Correccción Urgente"]
[2343,1,"Situación Crítica. Correccción Urgente"]
[2342,1,"Situación Crítica. Correccción Urgente"]
[2341,1,"Situación Crítica. Correccción Urgente"]
[2340,1,"Situación Crítica. Correccción Urgente"]
[2339,1,"Situación Crítica. Correccción Urgente"]
[2338,1,"Situación Crítica. Correccción Urgente"]
[2337,1,"Situación Crítica. Correccción Urgente"]
[2336,1,"Situación Crítica. Correccción Urgente"]
[2335,1,"Situación Crítica. Correccción Urgente"]
[2334,1,"Situación Crítica. Correccción Urgente"]
[2333,1,"Situación Crítica. Correccción Urgente"]
[2332,1,"Situación Crítica. Correccción Urgente"]
[2331,1,"Situación Crítica. Correccción Urgente"]
[2330,1,"Situación Crítica. Correccción Urgente"]
[2329,1,"Situación Crítica. Correccción Urgente"]
[2328,1,"Situación Crítica. Correccción Urgente"]
[2327,1,"Situación Crítica. Correccción Urgente"]
[2326,1,"Situación Crítica. Correccción Urgente"]
[2325,1,"Situación Crítica. Correccción Urgente"]
[2324,1,"Situación Crítica. Correccción Urgente"]
[2323,1,"Situación Crítica. Correccción Urgente"]
[2322,1,"Situación Crítica. Correccción Urgente"]
[2321,1,"Situación Crítica. Correccción Urgente"]
[2320,1,"Situación Crítica. Correccción Urgente"]
[2319,1,"Situación Crítica. Correccción Urgente"]
[2318,1,"Situación Crítica. Correccción Urgente"]
[2317,1,"Situación Crítica. Correccción Urgente"]
[2316,1,"Situación Crítica. Correccción Urgente"]
[2315,1,"Situación Crítica. Correccción Urgente"]
[2314,1,"Situación Crítica. Correccción Urgente"]
[2313,1,"Situación Crítica. Correccción Urgente"]
[2312,1,"Situación Crítica. Correccción Urgente"]
[2311,1,"Situación Crítica. Correccción Urgente"]
[2310,1,"Situación Crítica. Correccción Urgente"]
[2309,1,"Situación Crítica. Correccción Urgente"]
[2308,1,"Situación Crítica. Correccción Urgente"]
[2307,1,"Situación Crítica. Correccción Urgente"]
[2306,1,"Situación Crítica. Correccción Urgente"]
[2305,1,"Situación Crítica. Correccción Urgente"]
[2304,1,"Situación Crítica. Correccción Urgente"]
[2303,1,"Situación Crítica. Correccción Urgente"]
[2302,1,"Situación Crítica. Correccción Urgente"]
[2301,1,"Situación Crítica. Correccción Urgente"]
[2300,1,"Situación Crítica. Correccción Urgente"]
[2299,1,"Situación Crítica. Correccción Urgente"]
[2298,1,"Situación Crítica. Correccción Urgente"]
[2297,1,"Situación Crítica. Correccción Urgente"]
[2296,1,"Situación Crítica. Correccción Urgente"]
[2295,1,"Situación Crítica. Correccción Urgente"]
[2294,1,"Situación Crítica. Correccción Urgente"]
[2293,1,"Situación Crítica. Correccción Urgente"]
[2292,1,"Situación Crítica. Correccción Urgente"]
[2291,1,"Situación Crítica. Correccción Urgente"]
[2290,1,"Situación Crítica. Correccción Urgente"]
[2289,1,"Situación Crítica. Correccción Urgente"]
[2288,1,"Situación Crítica. Correccción Urgente"]
[2287,1,"Situación Crítica. Correccción Urgente"]
[2286,1,"Situación Crítica. Correccción Urgente"]
[2285,1,"Situación Crítica. Correccción Urgente"]
[2284,1,"Situación Crítica. Correccción Urgente"]
[2283,1,"Situación Crítica. Correccción Urgente"]
[2282,1,"Situación Crítica. Correccción Urgente"]
[2281,1,"Situación Crítica. Correccción Urgente"]
[2280,1,"Situación Crítica. Correccción Urgente"]
[2279,1,"Situación Crítica. Correccción Urgente"]
[2278,1,"Situación Crítica. Correccción Urgente"]
[2277,1,"Situación Crítica. Correccción Urgente"]
[2276,1,"Situación Crítica. Correccción Urgente"]
[2275,1,"Situación Crítica. Correccción Urgente"]
[2274,1,"Situación Crítica. Correccción Urgente"]
[2273,1,"Situación Crítica. Correccción Urgente"]
[2272,1,"Situación Crítica. Correccción Urgente"]
[2271,1,"Situación Crítica. Correccción Urgente"]
[2270,1,"Situación Crítica. Correccción Urgente"]
[2269,1,"Situación Crítica. Correccción Urgente"]
[2268,1,"Situación Crítica. Correccción Urgente"]
[2267,1,"Situación Crítica. Correccción Urgente"]
[2266,1,"Situación Crítica. Correccción Urgente"]
[2265,1,"Situación Crítica. Correccción Urgente"]
[2264,1,"Situación Crítica. Correccción Urgente"]
[2263,1,"Situación Crítica. Correccción Urgente"]
[2262,1,"Situación Crítica. Correccción Urgente"]
[2261,1,"Situación Crítica. Correccción Urgente"]
[2260,1,"Situación Crítica. Correccción Urgente"]
[2259,1,"Situación Crítica. Correccción Urgente"]
[2258,1,"Situación Crítica. Correccción Urgente"]
[2257,1,"Situación Crítica. Correccción Urgente"]
[2256,1,"Situación Crítica. Correccción Urgente"]
[2255,1,"Situación Crítica. Correccción Urgente"]
[2254,1,"Situación Crítica. Correccción Urgente"]
[2253,1,"Situación Crítica. Correccción Urgente"]
[2252,1,"Situación Crítica. Correccción Urgente"]
[2251,1,"Situación Crítica. Correccción Urgente"]
[2250,1,"Situación Crítica. Correccción Urgente"]
[2249,1,"Situación Crítica. Correccción Urgente"]
[2248,1,"Situación Crítica. Correccción Urgente"]
[2247,1,"Situación Crítica. Correccción Urgente"]
[2246,1,"Situación Crítica. Correccción Urgente"]
[2245,1,"Situación Crítica. Correccción Urgente"]
[2244,1,"Situación Crítica. Correccción Urgente"]
[2243,1,"Situación Crítica. Correccción Urgente"]
[2242,1,"Situación Crítica. Correccción Urgente"]
[2241,1,"Situación Crítica. Correccción Urgente"]
[2240,1,"Situación Crítica. Correccción Urgente"]
[2239,1,"Situación Crítica. Correccción Urgente"]
[2238,1,"Situación Crítica. Correccción Urgente"]
[2237,1,"Situación Crítica. Correccción Urgente"]
[2236,1,"Situación Crítica. Correccción Urgente"]
[2235,1,"Situación Crítica. Correccción Urgente"]
[2234,1,"Situación Crítica. Correccción Urgente"]
[2233,1,"Situación Crítica. Correccción Urgente"]
[2232,1,"Situación Crítica. Correccción Urgente"]
[2231,1,"Situación Crítica. Correccción Urgente"]
[2230,1,"Situación Crítica. Correccción Urgente"]
[2229,1,"Situación Crítica. Correccción Urgente"]
[2228,1,"Situación Crítica. Correccción Urgente"]
[2227,1,"Situación Crítica. Correccción Urgente"]
[2226,1,"Situación Crítica. Correccción Urgente"]
[2225,1,"Situación Crítica. Correccción Urgente"]
[2224,1,"Situación Crítica. Correccción Urgente"]
[2223,1,"Situación Crítica. Correccción Urgente"]
[2222,1,"Situación Crítica. Correccción Urgente"]
[2221,1,"Situación Crítica. Correccción Urgente"]
[2220,1,"Situación Crítica. Correccción Urgente"]
[2219,1,"Situación Crítica. Correccción Urgente"]
[2218,1,"Situación Crítica. Correccción Urgente"]
[2217,1,"Situación Crítica. Correccción Urgente"]
[2216,1,"Situación Crítica. Correccción Urgente"]
[2215,1,"Situación Crítica. Correccción Urgente"]
[2214,1,"Situación Crítica. Correccción Urgente"]
[2213,1,"Situación Crítica. Correccción Urgente"]
[2212,1,"Situación Crítica. Correccción Urgente"]
[2211,1,"Situación Crítica. Correccción Urgente"]
[2210,1,"Situación Crítica. Correccción Urgente"]
[2209,1,"Situación Crítica. Correccción Urgente"]
[2208,1,"Situación Crítica. Correccción Urgente"]
[2207,1,"Situación Crítica. Correccción Urgente"]
[2206,1,"Situación Crítica. Correccción Urgente"]
[2205,1,"Situación Crítica. Correccción Urgente"]
[2204,1,"Situación Crítica. Correccción Urgente"]
[2203,1,"Situación Crítica. Correccción Urgente"]
[2202,1,"Situación Crítica. Correccción Urgente"]
[2201,1,"Situación Crítica. Correccción Urgente"]
[2200,1,"Situación Crítica. Correccción Urgente"]
[2199,1,"Situación Crítica. Correccción Urgente"]
[2198,1,"Situación Crítica. Correccción Urgente"]
[2197,1,"Situación Crítica. Correccción Urgente"]
[2196,1,"Situación Crítica. Correccción Urgente"]
[2195,1,"Situación Crítica. Correccción Urgente"]
[2194,1,"Situación Crítica. Correccción Urgente"]
[2193,1,"Situación Crítica. Correccción Urgente"]
[2192,1,"Situación Crítica. Correccción Urgente"]
[2191,1,"Situación Crítica. Correccción Urgente"]
[2190,1,"Situación Crítica. Correccción Urgente"]
[2189,1,"Situación Crítica. Correccción Urgente"]
[2188,1,"Situación Crítica. Correccción Urgente"]
[2187,1,"Situación Crítica. Correccción Urgente"]
[2186,1,"Situación Crítica. Correccción Urgente"]
[2185,1,"Situación Crítica. Correccción Urgente"]
[2184,1,"Situación Crítica. Correccción Urgente"]
[2183,1,"Situación Crítica. Correccción Urgente"]
[2182,1,"Situación Crítica. Correccción Urgente"]
[2181,1,"Situación Crítica. Correccción Urgente"]
[2180,1,"Situación Crítica. Correccción Urgente"]
[2179,1,"Situación Crítica. Correccción Urgente"]
[2178,1,"Situación Crítica. Correccción Urgente"]
[2177,1,"Situación Crítica. Correccción Urgente"]
[2176,1,"Situación Crítica. Correccción Urgente"]
[2175,1,"Situación Crítica. Correccción Urgente"]
[2174,1,"Situación Crítica. Correccción Urgente"]
[2173,1,"Situación Crítica. Correccción Urgente"]
[2172,1,"Situación Crítica. Correccción Urgente"]
[2171,1,"Situación Crítica. Correccción Urgente"]
[2170,1,"Situación Crítica. Correccción Urgente"]
[2169,1,"Situación Crítica. Correccción Urgente"]
[2168,1,"Situación Crítica. Correccción Urgente"]
[2167,1,"Situación Crítica. Correccción Urgente"]
[2166,1,"Situación Crítica. Correccción Urgente"]
[2165,1,"Situación Crítica. Correccción Urgente"]
[2164,1,"Situación Crítica. Correccción Urgente"]
[2163,1,"Situación Crítica. Correccción Urgente"]
[2162,1,"Situación Crítica. Correccción Urgente"]
[2161,1,"Situación Crítica. Correccción Urgente"]
[2160,1,"Situación Crítica. Correccción Urgente"]
[2159,1,"Situación Crítica. Correccción Urgente"]
[2158,1,"Situación Crítica. Correccción Urgente"]
[2157,1,"Situación Crítica. Correccción Urgente"]
[2156,1,"Situación Crítica. Correccción Urgente"]
[2155,1,"Situación Crítica. Correccción Urgente"]
[2154,1,"Situación Crítica. Correccción Urgente"]
[2153,1,"Situación Crítica. Correccción Urgente"]
[2152,1,"Situación Crítica. Correccción Urgente"]
[2151,1,"Situación Crítica. Correccción Urgente"]
[2150,1,"Situación Crítica. Correccción Urgente"]
[2149,1,"Situación Crítica. Correccción Urgente"]
[2148,1,"Situación Crítica. Correccción Urgente"]
[2147,1,"Situación Crítica. Correccción Urgente"]
[2146,1,"Situación Crítica. Correccción Urgente"]
[2145,1,"Situación Crítica. Correccción Urgente"]
[2144,1,"Situación Crítica. Correccción Urgente"]
[2143,1,"Situación Crítica. Correccción Urgente"]
[2142,1,"Situación Crítica. Correccción Urgente"]
[2141,1,"Situación Crítica. Correccción Urgente"]
[2140,1,"Situación Crítica. Correccción Urgente"]
[2139,1,"Situación Crítica. Correccción Urgente"]
[2138,1,"Situación Crítica. Correccción Urgente"]
[2137,1,"Situación Crítica. Correccción Urgente"]
[2136,1,"Situación Crítica. Correccción Urgente"]
[2135,1,"Situación Crítica. Correccción Urgente"]
[2134,1,"Situación Crítica. Correccción Urgente"]
[2133,1,"Situación Crítica. Correccción Urgente"]
[2132,1,"Situación Crítica. Correccción Urgente"]
[2131,1,"Situación Crítica. Correccción Urgente"]
[2130,1,"Situación Crítica. Correccción Urgente"]
[2129,1,"Situación Crítica. Correccción Urgente"]
[2128,1,"Situación Crítica. Correccción Urgente"]
[2127,1,"Situación Crítica. Correccción Urgente"]
[2126,1,"Situación Crítica. Correccción Urgente"]
[2125,1,"Situación Crítica. Correccción Urgente"]
[2124,1,"Situación Crítica. Correccción Urgente"]
[2123,1,"Situación Crítica. Correccción Urgente"]
[2122,1,"Situación Crítica. Correccción Urgente"]
[2121,1,"Situación Crítica. Correccción Urgente"]
[2120,1,"Situación Crítica. Correccción Urgente"]
[2119,1,"Situación Crítica. Correccción Urgente"]
[2118,1,"Situación Crítica. Correccción Urgente"]
[2117,1,"Situación Crítica. Correccción Urgente"]
[2116,1,"Situación Crítica. Correccción Urgente"]
[2115,1,"Situación Crítica. Correccción Urgente"]
[2114,1,"Situación Crítica. Correccción Urgente"]
[2113,1,"Situación Crítica. Correccción Urgente"]
[2112,1,"Situación Crítica. Correccción Urgente"]
[2111,1,"Situación Crítica. Correccción Urgente"]
[2110,1,"Situación Crítica. Correccción Urgente"]
[2109,1,"Situación Crítica. Correccción Urgente"]
[2108,1,"Situación Crítica. Correccción Urgente"]
[2107,1,"Situación Crítica. Correccción Urgente"]
[2106,1,"Situación Crítica. Correccción Urgente"]
[2105,1,"Situación Crítica. Correccción Urgente"]
[2104,1,"Situación Crítica. Correccción Urgente"]
[2103,1,"Situación Crítica. Correccción Urgente"]
[2102,1,"Situación Crítica. Correccción Urgente"]
[2101,1,"Situación Crítica. Correccción Urgente"]
[2100,1,"Situación Crítica. Correccción Urgente"]
[2099,1,"Situación Crítica. Correccción Urgente"]
[2098,1,"Situación Crítica. Correccción Urgente"]
[2097,1,"Situación Crítica. Correccción Urgente"]
[2096,1,"Situación Crítica. Correccción Urgente"]
[2095,1,"Situación Crítica. Correccción Urgente"]
[2094,1,"Situación Crítica. Correccción Urgente"]
[2093,1,"Situación Crítica. Correccción Urgente"]
[2092,1,"Situación Crítica. Correccción Urgente"]
[2091,1,"Situación Crítica. Correccción Urgente"]
[2090,1,"Situación Crítica. Correccción Urgente"]
[2089,1,"Situación Crítica. Correccción Urgente"]
[2088,1,"Situación Crítica. Correccción Urgente"]
[2087,1,"Situación Crítica. Correccción Urgente"]
[2086,1,"Situación Crítica. Correccción Urgente"]
[2085,1,"Situación Crítica. Correccción Urgente"]
[2084,1,"Situación Crítica. Correccción Urgente"]
[2083,1,"Situación Crítica. Correccción Urgente"]
[2082,1,"Situación Crítica. Correccción Urgente"]
[2081,1,"Situación Crítica. Correccción Urgente"]
[2080,1,"Situación Crítica. Correccción Urgente"]
[2079,1,"Situación Crítica. Correccción Urgente"]
[2078,1,"Situación Crítica. Correccción Urgente"]
[2077,1,"Situación Crítica. Correccción Urgente"]
[2076,1,"Situación Crítica. Correccción Urgente"]
[2075,1,"Situación Crítica. Correccción Urgente"]
[2074,1,"Situación Crítica. Correccción Urgente"]
[2073,1,"Situación Crítica. Correccción Urgente"]
[2072,1,"Situación Crítica. Correccción Urgente"]
[2071,1,"Situación Crítica. Correccción Urgente"]
[2070,1,"Situación Crítica. Correccción Urgente"]
[2069,1,"Situación Crítica. Correccción Urgente"]
[2068,1,"Situación Crítica. Correccción Urgente"]
[2067,1,"Situación Crítica. Correccción Urgente"]
[2066,1,"Situación Crítica. Correccción Urgente"]
[2065,1,"Situación Crítica. Correccción Urgente"]
[2064,1,"Situación Crítica. Correccción Urgente"]
[2063,1,"Situación Crítica. Correccción Urgente"]
[2062,1,"Situación Crítica. Correccción Urgente"]
[2061,1,"Situación Crítica. Correccción Urgente"]
[2060,1,"Situación Crítica. Correccción Urgente"]
[2059,1,"Situación Crítica. Correccción Urgente"]
[2058,1,"Situación Crítica. Correccción Urgente"]
[2057,1,"Situación Crítica. Correccción Urgente"]
[2056,1,"Situación Crítica. Correccción Urgente"]
[2055,1,"Situación Crítica. Correccción Urgente"]
[2054,1,"Situación Crítica. Correccción Urgente"]
[2053,1,"Situación Crítica. Correccción Urgente"]
[2052,1,"Situación Crítica. Correccción Urgente"]
[2051,1,"Situación Crítica. Correccción Urgente"]
[2050,1,"Situación Crítica. Correccción Urgente"]
[2049,1,"Situación Crítica. Correccción Urgente"]
[2048,1,"Situación Crítica. Correccción Urgente"]
[2047,1,"Situación Crítica. Correccción Urgente"]
[2046,1,"Situación Crítica. Correccción Urgente"]
[2045,1,"Situación Crítica. Correccción Urgente"]
[2044,1,"Situación Crítica. Correccción Urgente"]
[2043,1,"Situación Crítica. Correccción Urgente"]
[2042,1,"Situación Crítica. Correccción Urgente"]
[2041,1,"Situación Crítica. Correccción Urgente"]
[2040,1,"Situación Crítica. Correccción Urgente"]
[2039,1,"Situación Crítica. Correccción Urgente"]
[2038,1,"Situación Crítica. Correccción Urgente"]
[2037,1,"Situación Crítica. Correccción Urgente"]
[2036,1,"Situación Crítica. Correccción Urgente"]
[2035,1,"Situación Crítica. Correccción Urgente"]
[2034,1,"Situación Crítica. Correccción Urgente"]
[2033,1,"Situación Crítica. Correccción Urgente"]
[2032,1,"Situación Crítica. Correccción Urgente"]
[2031,1,"Situación Crítica. Correccción Urgente"]
[2030,1,"Situación Crítica. Correccción Urgente"]
[2029,1,"Situación Crítica. Correccción Urgente"]
[2028,1,"Situación Crítica. Correccción Urgente"]
[2027,1,"Situación Crítica. Correccción Urgente"]
[2026,1,"Situación Crítica. Correccción Urgente"]
[2025,1,"Situación Crítica. Correccción Urgente"]
[2024,1,"Situación Crítica. Correccción Urgente"]
[2023,1,"Situación Crítica. Correccción Urgente"]
[2022,1,"Situación Crítica. Correccción Urgente"]
[2021,1,"Situación Crítica. Correccción Urgente"]
[2020,1,"Situación Crítica. Correccción Urgente"]
[2019,1,"Situación Crítica. Correccción Urgente"]
[2018,1,"Situación Crítica. Correccción Urgente"]
[2017,1,"Situación Crítica. Correccción Urgente"]
[2016,1,"Situación Crítica. Correccción Urgente"]
[2015,1,"Situación Crítica. Correccción Urgente"]
[2014,1,"Situación Crítica. Correccción Urgente"]
[2013,1,"Situación Crítica. Correccción Urgente"]
[2012,1,"Situación Crítica. Correccción Urgente"]
[2011,1,"Situación Crítica. Correccción Urgente"]
[2010,1,"Situación Crítica. Correccción Urgente"]
[2009,1,"Situación Crítica. Correccción Urgente"]
[2008,1,"Situación Crítica. Correccción Urgente"]
[2007,1,"Situación Crítica. Correccción Urgente"]
[2006,1,"Situación Crítica. Correccción Urgente"]
[2005,1,"Situación Crítica. Correccción Urgente"]
[2004,1,"Situación Crítica. Correccción Urgente"]
[2003,1,"Situación Crítica. Correccción Urgente"]
[2002,1,"Situación Crítica. Correccción Urgente"]
[2001,1,"Situación Crítica. Correccción Urgente"]
[2000,1,"Situación Crítica. Correccción Urgente"]
[1999,1,"Situación Crítica. Correccción Urgente"]
[1998,1,"Situación Crítica. Correccción Urgente"]
[1997,1,"Situación Crítica. Correccción Urgente"]
[1996,1,"Situación Crítica. Correccción Urgente"]
[1995,1,"Situación Crítica. Correccción Urgente"]
[1994,1,"Situación Crítica. Correccción Urgente"]
[1993,1,"Situación Crítica. Correccción Urgente"]
[1992,1,"Situación Crítica. Correccción Urgente"]
[1991,1,"Situación Crítica. Correccción Urgente"]
[1990,1,"Situación Crítica. Correccción Urgente"]
[1989,1,"Situación Crítica. Correccción Urgente"]
[1988,1,"Situación Crítica. Correccción Urgente"]
[1987,1,"Situación Crítica. Correccción Urgente"]
[1986,1,"Situación Crítica. Correccción Urgente"]
[1985,1,"Situación Crítica. Correccción Urgente"]
[1984,1,"Situación Crítica. Correccción Urgente"]
[1983,1,"Situación Crítica. Correccción Urgente"]
[1982,1,"Situación Crítica. Correccción Urgente"]
[1981,1,"Situación Crítica. Correccción Urgente"]
[1980,1,"Situación Crítica. Correccción Urgente"]
[1979,1,"Situación Crítica. Correccción Urgente"]
[1978,1,"Situación Crítica. Correccción Urgente"]
[1977,1,"Situación Crítica. Correccción Urgente"]
[1976,1,"Situación Crítica. Correccción Urgente"]
[1975,1,"Situación Crítica. Correccción Urgente"]
[1974,1,"Situación Crítica. Correccción Urgente"]
[1973,1,"Situación Crítica. Correccción Urgente"]
[1972,1,"Situación Crítica. Correccción Urgente"]
[1971,1,"Situación Crítica. Correccción Urgente"]
[1970,1,"Situación Crítica. Correccción Urgente"]
[1969,1,"Situación Crítica. Correccción Urgente"]
[1968,1,"Situación Crítica. Correccción Urgente"]
[1967,1,"Situación Crítica. Correccción Urgente"]
[1966,1,"Situación Crítica. Correccción Urgente"]
[1965,1,"Situación Crítica. Correccción Urgente"]
[1964,1,"Situación Crítica. Correccción Urgente"]
[1963,1,"Situación Crítica. Correccción Urgente"]
[1962,1,"Situación Crítica. Correccción Urgente"]
[1961,1,"Situación Crítica. Correccción Urgente"]
[1960,1,"Situación Crítica. Correccción Urgente"]
[1959,1,"Situación Crítica. Correccción Urgente"]
[1958,1,"Situación Crítica. Correccción Urgente"]
[1957,1,"Situación Crítica. Correccción Urgente"]
[1956,1,"Situación Crítica. Correccción Urgente"]
[1955,1,"Situación Crítica. Correccción Urgente"]
[1954,1,"Situación Crítica. Correccción Urgente"]
[1953,1,"Situación Crítica. Correccción Urgente"]
[1952,1,"Situación Crítica. Correccción Urgente"]
[1951,1,"Situación Crítica. Correccción Urgente"]
[1950,1,"Situación Crítica. Correccción Urgente"]
[1949,1,"Situación Crítica. Correccción Urgente"]
[1948,1,"Situación Crítica. Correccción Urgente"]
[1947,1,"Situación Crítica. Correccción Urgente"]
[1946,1,"Situación Crítica. Correccción Urgente"]
[1945,1,"Situación Crítica. Correccción Urgente"]
[1944,1,"Situación Crítica. Correccción Urgente"]
[1943,1,"Situación Crítica. Correccción Urgente"]
[1942,1,"Situación Crítica. Correccción Urgente"]
[1941,1,"Situación Crítica. Correccción Urgente"]
[1940,1,"Situación Crítica. Correccción Urgente"]
[1939,1,"Situación Crítica. Correccción Urgente"]
[1938,1,"Situación Crítica. Correccción Urgente"]
[1937,1,"Situación Crítica. Correccción Urgente"]
[1936,1,"Situación Crítica. Correccción Urgente"]
[1935,1,"Situación Crítica. Correccción Urgente"]
[1934,1,"Situación Crítica. Correccción Urgente"]
[1933,1,"Situación Crítica. Correccción Urgente"]
[1932,1,"Situación Crítica. Correccción Urgente"]
[1931,1,"Situación Crítica. Correccción Urgente"]
[1930,1,"Situación Crítica. Correccción Urgente"]
[1929,1,"Situación Crítica. Correccción Urgente"]
[1928,1,"Situación Crítica. Correccción Urgente"]
[1927,1,"Situación Crítica. Correccción Urgente"]
[1926,1,"Situación Crítica. Correccción Urgente"]
[1925,1,"Situación Crítica. Correccción Urgente"]
[1924,1,"Situación Crítica. Correccción Urgente"]
[1923,1,"Situación Crítica. Correccción Urgente"]
[1922,1,"Situación Crítica. Correccción Urgente"]
[1921,1,"Situación Crítica. Correccción Urgente"]
[1920,1,"Situación Crítica. Correccción Urgente"]
[1919,1,"Situación Crítica. Correccción Urgente"]
[1918,1,"Situación Crítica. Correccción Urgente"]
[1917,1,"Situación Crítica. Correccción Urgente"]
[1916,1,"Situación Crítica. Correccción Urgente"]
[1915,1,"Situación Crítica. Correccción Urgente"]
[1914,1,"Situación Crítica. Correccción Urgente"]
[1913,1,"Situación Crítica. Correccción Urgente"]
[1912,1,"Situación Crítica. Correccción Urgente"]
[1911,1,"Situación Crítica. Correccción Urgente"]
[1910,1,"Situación Crítica. Correccción Urgente"]
[1909,1,"Situación Crítica. Correccción Urgente"]
[1908,1,"Situación Crítica. Correccción Urgente"]
[1907,1,"Situación Crítica. Correccción Urgente"]
[1906,1,"Situación Crítica. Correccción Urgente"]
[1905,1,"Situación Crítica. Correccción Urgente"]
[1904,1,"Situación Crítica. Correccción Urgente"]
[1903,1,"Situación Crítica. Correccción Urgente"]
[1902,1,"Situación Crítica. Correccción Urgente"]
[1901,1,"Situación Crítica. Correccción Urgente"]
[1900,1,"Situación Crítica. Correccción Urgente"]
[1899,1,"Situación Crítica. Correccción Urgente"]
[1898,1,"Situación Crítica. Correccción Urgente"]
[1897,1,"Situación Crítica. Correccción Urgente"]
[1896,1,"Situación Crítica. Correccción Urgente"]
[1895,1,"Situación Crítica. Correccción Urgente"]
[1894,1,"Situación Crítica. Correccción Urgente"]
[1893,1,"Situación Crítica. Correccción Urgente"]
[1892,1,"Situación Crítica. Correccción Urgente"]
[1891,1,"Situación Crítica. Correccción Urgente"]
[1890,1,"Situación Crítica. Correccción Urgente"]
[1889,1,"Situación Crítica. Correccción Urgente"]
[1888,1,"Situación Crítica. Correccción Urgente"]
[1887,1,"Situación Crítica. Correccción Urgente"]
[1886,1,"Situación Crítica. Correccción Urgente"]
[1885,1,"Situación Crítica. Correccción Urgente"]
[1884,1,"Situación Crítica. Correccción Urgente"]
[1883,1,"Situación Crítica. Correccción Urgente"]
[1882,1,"Situación Crítica. Correccción Urgente"]
[1881,1,"Situación Crítica. Correccción Urgente"]
[1880,1,"Situación Crítica. Correccción Urgente"]
[1879,1,"Situación Crítica. Correccción Urgente"]
[1878,1,"Situación Crítica. Correccción Urgente"]
[1877,1,"Situación Crítica. Correccción Urgente"]
[1876,1,"Situación Crítica. Correccción Urgente"]
[1875,1,"Situación Crítica. Correccción Urgente"]
[1874,1,"Situación Crítica. Correccción Urgente"]
[1873,1,"Situación Crítica. Correccción Urgente"]
[1872,1,"Situación Crítica. Correccción Urgente"]
[1871,1,"Situación Crítica. Correccción Urgente"]
[1870,1,"Situación Crítica. Correccción Urgente"]
[1869,1,"Situación Crítica. Correccción Urgente"]
[1868,1,"Situación Crítica. Correccción Urgente"]
[1867,1,"Situación Crítica. Correccción Urgente"]
[1866,1,"Situación Crítica. Correccción Urgente"]
[1865,1,"Situación Crítica. Correccción Urgente"]
[1864,1,"Situación Crítica. Correccción Urgente"]
[1863,1,"Situación Crítica. Correccción Urgente"]
[1862,1,"Situación Crítica. Correccción Urgente"]
[1861,1,"Situación Crítica. Correccción Urgente"]
[1860,1,"Situación Crítica. Correccción Urgente"]
[1859,1,"Situación Crítica. Correccción Urgente"]
[1858,1,"Situación Crítica. Correccción Urgente"]
[1857,1,"Situación Crítica. Correccción Urgente"]
[1856,1,"Situación Crítica. Correccción Urgente"]
[1855,1,"Situación Crítica. Correccción Urgente"]
[1854,1,"Situación Crítica. Correccción Urgente"]
[1853,1,"Situación Crítica. Correccción Urgente"]
[1852,1,"Situación Crítica. Correccción Urgente"]
[1851,1,"Situación Crítica. Correccción Urgente"]
[1850,1,"Situación Crítica. Correccción Urgente"]
[1849,1,"Situación Crítica. Correccción Urgente"]
[1848,1,"Situación Crítica. Correccción Urgente"]
[1847,1,"Situación Crítica. Correccción Urgente"]
[1846,1,"Situación Crítica. Correccción Urgente"]
[1845,1,"Situación Crítica. Correccción Urgente"]
[1844,1,"Situación Crítica. Correccción Urgente"]
[1843,1,"Situación Crítica. Correccción Urgente"]
[1842,1,"Situación Crítica. Correccción Urgente"]
[1841,1,"Situación Crítica. Correccción Urgente"]
[1840,1,"Situación Crítica. Correccción Urgente"]
[1839,1,"Situación Crítica. Correccción Urgente"]
[1838,1,"Situación Crítica. Correccción Urgente"]
[1837,1,"Situación Crítica. Correccción Urgente"]
[1836,1,"Situación Crítica. Correccción Urgente"]
[1835,1,"Situación Crítica. Correccción Urgente"]
[1834,1,"Situación Crítica. Correccción Urgente"]
[1833,1,"Situación Crítica. Correccción Urgente"]
[1832,1,"Situación Crítica. Correccción Urgente"]
[1831,1,"Situación Crítica. Correccción Urgente"]
[1830,1,"Situación Crítica. Correccción Urgente"]
[1829,1,"Situación Crítica. Correccción Urgente"]
[1828,1,"Situación Crítica. Correccción Urgente"]
[1827,1,"Situación Crítica. Correccción Urgente"]
[1826,1,"Situación Crítica. Correccción Urgente"]
[1825,1,"Situación Crítica. Correccción Urgente"]
[1824,1,"Situación Crítica. Correccción Urgente"]
[1823,1,"Situación Crítica. Correccción Urgente"]
[1822,1,"Situación Crítica. Correccción Urgente"]
[1821,1,"Situación Crítica. Correccción Urgente"]
[1820,1,"Situación Crítica. Correccción Urgente"]
[1819,1,"Situación Crítica. Correccción Urgente"]
[1818,1,"Situación Crítica. Correccción Urgente"]
[1817,1,"Situación Crítica. Correccción Urgente"]
[1816,1,"Situación Crítica. Correccción Urgente"]
[1815,1,"Situación Crítica. Correccción Urgente"]
[1814,1,"Situación Crítica. Correccción Urgente"]
[1813,1,"Situación Crítica. Correccción Urgente"]
[1812,1,"Situación Crítica. Correccción Urgente"]
[1811,1,"Situación Crítica. Correccción Urgente"]
[1810,1,"Situación Crítica. Correccción Urgente"]
[1809,1,"Situación Crítica. Correccción Urgente"]
[1808,1,"Situación Crítica. Correccción Urgente"]
[1807,1,"Situación Crítica. Correccción Urgente"]
[1806,1,"Situación Crítica. Correccción Urgente"]
[1805,1,"Situación Crítica. Correccción Urgente"]
[1804,1,"Situación Crítica. Correccción Urgente"]
[1803,1,"Situación Crítica. Correccción Urgente"]
[1802,1,"Situación Crítica. Correccción Urgente"]
[1801,1,"Situación Crítica. Correccción Urgente"]
[1800,1,"Situación Crítica. Correccción Urgente"]
[1799,1,"Situación Crítica. Correccción Urgente"]
[1798,1,"Situación Crítica. Correccción Urgente"]
[1797,1,"Situación Crítica. Correccción Urgente"]
[1796,1,"Situación Crítica. Correccción Urgente"]
[1795,1,"Situación Crítica. Correccción Urgente"]
[1794,1,"Situación Crítica. Correccción Urgente"]
[1793,1,"Situación Crítica. Correccción Urgente"]
[1792,1,"Situación Crítica. Correccción Urgente"]
[1791,1,"Situación Crítica. Correccción Urgente"]
[1790,1,"Situación Crítica. Correccción Urgente"]
[1789,1,"Situación Crítica. Correccción Urgente"]
[1788,1,"Situación Crítica. Correccción Urgente"]
[1787,1,"Situación Crítica. Correccción Urgente"]
[1786,1,"Situación Crítica. Correccción Urgente"]
[1785,1,"Situación Crítica. Correccción Urgente"]
[1784,1,"Situación Crítica. Correccción Urgente"]
[1783,1,"Situación Crítica. Correccción Urgente"]
[1782,1,"Situación Crítica. Correccción Urgente"]
[1781,1,"Situación Crítica. Correccción Urgente"]
[1780,1,"Situación Crítica. Correccción Urgente"]
[1779,1,"Situación Crítica. Correccción Urgente"]
[1778,1,"Situación Crítica. Correccción Urgente"]
[1777,1,"Situación Crítica. Correccción Urgente"]
[1776,1,"Situación Crítica. Correccción Urgente"]
[1775,1,"Situación Crítica. Correccción Urgente"]
[1774,1,"Situación Crítica. Correccción Urgente"]
[1773,1,"Situación Crítica. Correccción Urgente"]
[1772,1,"Situación Crítica. Correccción Urgente"]
[1771,1,"Situación Crítica. Correccción Urgente"]
[1770,1,"Situación Crítica. Correccción Urgente"]
[1769,1,"Situación Crítica. Correccción Urgente"]
[1768,1,"Situación Crítica. Correccción Urgente"]
[1767,1,"Situación Crítica. Correccción Urgente"]
[1766,1,"Situación Crítica. Correccción Urgente"]
[1765,1,"Situación Crítica. Correccción Urgente"]
[1764,1,"Situación Crítica. Correccción Urgente"]
[1763,1,"Situación Crítica. Correccción Urgente"]
[1762,1,"Situación Crítica. Correccción Urgente"]
[1761,1,"Situación Crítica. Correccción Urgente"]
[1760,1,"Situación Crítica. Correccción Urgente"]
[1759,1,"Situación Crítica. Correccción Urgente"]
[1758,1,"Situación Crítica. Correccción Urgente"]
[1757,1,"Situación Crítica. Correccción Urgente"]
[1756,1,"Situación Crítica. Correccción Urgente"]
[1755,1,"Situación Crítica. Correccción Urgente"]
[1754,1,"Situación Crítica. Correccción Urgente"]
[1753,1,"Situación Crítica. Correccción Urgente"]
[1752,1,"Situación Crítica. Correccción Urgente"]
[1751,1,"Situación Crítica. Correccción Urgente"]
[1750,1,"Situación Crítica. Correccción Urgente"]
[1749,1,"Situación Crítica. Correccción Urgente"]
[1748,1,"Situación Crítica. Correccción Urgente"]
[1747,1,"Situación Crítica. Correccción Urgente"]
[1746,1,"Situación Crítica. Correccción Urgente"]
[1745,1,"Situación Crítica. Correccción Urgente"]
[1744,1,"Situación Crítica. Correccción Urgente"]
[1743,1,"Situación Crítica. Correccción Urgente"]
[1742,1,"Situación Crítica. Correccción Urgente"]
[1741,1,"Situación Crítica. Correccción Urgente"]
[1740,1,"Situación Crítica. Correccción Urgente"]
[1739,1,"Situación Crítica. Correccción Urgente"]
[1738,1,"Situación Crítica. Correccción Urgente"]
[1737,1,"Situación Crítica. Correccción Urgente"]
[1736,1,"Situación Crítica. Correccción Urgente"]
[1735,1,"Situación Crítica. Correccción Urgente"]
[1734,1,"Situación Crítica. Correccción Urgente"]
[1733,1,"Situación Crítica. Correccción Urgente"]
[1732,1,"Situación Crítica. Correccción Urgente"]
[1731,1,"Situación Crítica. Correccción Urgente"]
[1730,1,"Situación Crítica. Correccción Urgente"]
[1729,1,"Situación Crítica. Correccción Urgente"]
[1728,1,"Situación Crítica. Correccción Urgente"]
[1727,1,"Situación Crítica. Correccción Urgente"]
[1726,1,"Situación Crítica. Correccción Urgente"]
[1725,1,"Situación Crítica. Correccción Urgente"]
[1724,1,"Situación Crítica. Correccción Urgente"]
[1723,1,"Situación Crítica. Correccción Urgente"]
[1722,1,"Situación Crítica. Correccción Urgente"]
[1721,1,"Situación Crítica. Correccción Urgente"]
[1720,1,"Situación Crítica. Correccción Urgente"]
[1719,1,"Situación Crítica. Correccción Urgente"]
[1718,1,"Situación Crítica. Correccción Urgente"]
[1717,1,"Situación Crítica. Correccción Urgente"]
[1716,1,"Situación Crítica. Correccción Urgente"]
[1715,1,"Situación Crítica. Correccción Urgente"]
[1714,1,"Situación Crítica. Correccción Urgente"]
[1713,1,"Situación Crítica. Correccción Urgente"]
[1712,1,"Situación Crítica. Correccción Urgente"]
[1711,1,"Situación Crítica. Correccción Urgente"]
[1710,1,"Situación Crítica. Correccción Urgente"]
[1709,1,"Situación Crítica. Correccción Urgente"]
[1708,1,"Situación Crítica. Correccción Urgente"]
[1707,1,"Situación Crítica. Correccción Urgente"]
[1706,1,"Situación Crítica. Correccción Urgente"]
[1705,1,"Situación Crítica. Correccción Urgente"]
[1704,1,"Situación Crítica. Correccción Urgente"]
[1703,1,"Situación Crítica. Correccción Urgente"]
[1702,1,"Situación Crítica. Correccción Urgente"]
[1701,1,"Situación Crítica. Correccción Urgente"]
[1700,1,"Situación Crítica. Correccción Urgente"]
[1699,1,"Situación Crítica. Correccción Urgente"]
[1698,1,"Situación Crítica. Correccción Urgente"]
[1697,1,"Situación Crítica. Correccción Urgente"]
[1696,1,"Situación Crítica. Correccción Urgente"]
[1695,1,"Situación Crítica. Correccción Urgente"]
[1694,1,"Situación Crítica. Correccción Urgente"]
[1693,1,"Situación Crítica. Correccción Urgente"]
[1692,1,"Situación Crítica. Correccción Urgente"]
[1691,1,"Situación Crítica. Correccción Urgente"]
[1690,1,"Situación Crítica. Correccción Urgente"]
[1689,1,"Situación Crítica. Correccción Urgente"]
[1688,1,"Situación Crítica. Correccción Urgente"]
[1687,1,"Situación Crítica. Correccción Urgente"]
[1686,1,"Situación Crítica. Correccción Urgente"]
[1685,1,"Situación Crítica. Correccción Urgente"]
[1684,1,"Situación Crítica. Correccción Urgente"]
[1683,1,"Situación Crítica. Correccción Urgente"]
[1682,1,"Situación Crítica. Correccción Urgente"]
[1681,1,"Situación Crítica. Correccción Urgente"]
[1680,1,"Situación Crítica. Correccción Urgente"]
[1679,1,"Situación Crítica. Correccción Urgente"]
[1678,1,"Situación Crítica. Correccción Urgente"]
[1677,1,"Situación Crítica. Correccción Urgente"]
[1676,1,"Situación Crítica. Correccción Urgente"]
[1675,1,"Situación Crítica. Correccción Urgente"]
[1674,1,"Situación Crítica. Correccción Urgente"]
[1673,1,"Situación Crítica. Correccción Urgente"]
[1672,1,"Situación Crítica. Correccción Urgente"]
[1671,1,"Situación Crítica. Correccción Urgente"]
[1670,1,"Situación Crítica. Correccción Urgente"]
[1669,1,"Situación Crítica. Correccción Urgente"]
[1668,1,"Situación Crítica. Correccción Urgente"]
[1667,1,"Situación Crítica. Correccción Urgente"]
[1666,1,"Situación Crítica. Correccción Urgente"]
[1665,1,"Situación Crítica. Correccción Urgente"]
[1664,1,"Situación Crítica. Correccción Urgente"]
[1663,1,"Situación Crítica. Correccción Urgente"]
[1662,1,"Situación Crítica. Correccción Urgente"]
[1661,1,"Situación Crítica. Correccción Urgente"]
[1660,1,"Situación Crítica. Correccción Urgente"]
[1659,1,"Situación Crítica. Correccción Urgente"]
[1658,1,"Situación Crítica. Correccción Urgente"]
[1657,1,"Situación Crítica. Correccción Urgente"]
[1656,1,"Situación Crítica. Correccción Urgente"]
[1655,1,"Situación Crítica. Correccción Urgente"]
[1654,1,"Situación Crítica. Correccción Urgente"]
[1653,1,"Situación Crítica. Correccción Urgente"]
[1652,1,"Situación Crítica. Correccción Urgente"]
[1651,1,"Situación Crítica. Correccción Urgente"]
[1650,1,"Situación Crítica. Correccción Urgente"]
[1649,1,"Situación Crítica. Correccción Urgente"]
[1648,1,"Situación Crítica. Correccción Urgente"]
[1647,1,"Situación Crítica. Correccción Urgente"]
[1646,1,"Situación Crítica. Correccción Urgente"]
[1645,1,"Situación Crítica. Correccción Urgente"]
[1644,1,"Situación Crítica. Correccción Urgente"]
[1643,1,"Situación Crítica. Correccción Urgente"]
[1642,1,"Situación Crítica. Correccción Urgente"]
[1641,1,"Situación Crítica. Correccción Urgente"]
[1640,1,"Situación Crítica. Correccción Urgente"]
[1639,1,"Situación Crítica. Correccción Urgente"]
[1638,1,"Situación Crítica. Correccción Urgente"]
[1637,1,"Situación Crítica. Correccción Urgente"]
[1636,1,"Situación Crítica. Correccción Urgente"]
[1635,1,"Situación Crítica. Correccción Urgente"]
[1634,1,"Situación Crítica. Correccción Urgente"]
[1633,1,"Situación Crítica. Correccción Urgente"]
[1632,1,"Situación Crítica. Correccción Urgente"]
[1631,1,"Situación Crítica. Correccción Urgente"]
[1630,1,"Situación Crítica. Correccción Urgente"]
[1629,1,"Situación Crítica. Correccción Urgente"]
[1628,1,"Situación Crítica. Correccción Urgente"]
[1627,1,"Situación Crítica. Correccción Urgente"]
[1626,1,"Situación Crítica. Correccción Urgente"]
[1625,1,"Situación Crítica. Correccción Urgente"]
[1624,1,"Situación Crítica. Correccción Urgente"]
[1623,1,"Situación Crítica. Correccción Urgente"]
[1622,1,"Situación Crítica. Correccción Urgente"]
[1621,1,"Situación Crítica. Correccción Urgente"]
[1620,1,"Situación Crítica. Correccción Urgente"]
[1619,1,"Situación Crítica. Correccción Urgente"]
[1618,1,"Situación Crítica. Correccción Urgente"]
[1617,1,"Situación Crítica. Correccción Urgente"]
[1616,1,"Situación Crítica. Correccción Urgente"]
[1615,1,"Situación Crítica. Correccción Urgente"]
[1614,1,"Situación Crítica. Correccción Urgente"]
[1613,1,"Situación Crítica. Correccción Urgente"]
[1612,1,"Situación Crítica. Correccción Urgente"]
[1611,1,"Situación Crítica. Correccción Urgente"]
[1610,1,"Situación Crítica. Correccción Urgente"]
[1609,1,"Situación Crítica. Correccción Urgente"]
[1608,1,"Situación Crítica. Correccción Urgente"]
[1607,1,"Situación Crítica. Correccción Urgente"]
[1606,1,"Situación Crítica. Correccción Urgente"]
[1605,1,"Situación Crítica. Correccción Urgente"]
[1604,1,"Situación Crítica. Correccción Urgente"]
[1603,1,"Situación Crítica. Correccción Urgente"]
[1602,1,"Situación Crítica. Correccción Urgente"]
[1601,1,"Situación Crítica. Correccción Urgente"]
[1600,1,"Situación Crítica. Correccción Urgente"]
[1599,1,"Situación Crítica. Correccción Urgente"]
[1598,1,"Situación Crítica. Correccción Urgente"]
[1597,1,"Situación Crítica. Correccción Urgente"]
[1596,1,"Situación Crítica. Correccción Urgente"]
[1595,1,"Situación Crítica. Correccción Urgente"]
[1594,1,"Situación Crítica. Correccción Urgente"]
[1593,1,"Situación Crítica. Correccción Urgente"]
[1592,1,"Situación Crítica. Correccción Urgente"]
[1591,1,"Situación Crítica. Correccción Urgente"]
[1590,1,"Situación Crítica. Correccción Urgente"]
[1589,1,"Situación Crítica. Correccción Urgente"]
[1588,1,"Situación Crítica. Correccción Urgente"]
[1587,1,"Situación Crítica. Correccción Urgente"]
[1586,1,"Situación Crítica. Correccción Urgente"]
[1585,1,"Situación Crítica. Correccción Urgente"]
[1584,1,"Situación Crítica. Correccción Urgente"]
[1583,1,"Situación Crítica. Correccción Urgente"]
[1582,1,"Situación Crítica. Correccción Urgente"]
[1581,1,"Situación Crítica. Correccción Urgente"]
[1580,1,"Situación Crítica. Correccción Urgente"]
[1579,1,"Situación Crítica. Correccción Urgente"]
[1578,1,"Situación Crítica. Correccción Urgente"]
[1577,1,"Situación Crítica. Correccción Urgente"]
[1576,1,"Situación Crítica. Correccción Urgente"]
[1575,1,"Situación Crítica. Correccción Urgente"]
[1574,1,"Situación Crítica. Correccción Urgente"]
[1573,1,"Situación Crítica. Correccción Urgente"]
[1572,1,"Situación Crítica. Correccción Urgente"]
[1571,1,"Situación Crítica. Correccción Urgente"]
[1570,1,"Situación Crítica. Correccción Urgente"]
[1569,1,"Situación Crítica. Correccción Urgente"]
[1568,1,"Situación Crítica. Correccción Urgente"]
[1567,1,"Situación Crítica. Correccción Urgente"]
[1566,1,"Situación Crítica. Correccción Urgente"]
[1565,1,"Situación Crítica. Correccción Urgente"]
[1564,1,"Situación Crítica. Correccción Urgente"]
[1563,1,"Situación Crítica. Correccción Urgente"]
[1562,1,"Situación Crítica. Correccción Urgente"]
[1561,1,"Situación Crítica. Correccción Urgente"]
[1560,1,"Situación Crítica. Correccción Urgente"]
[1559,1,"Situación Crítica. Correccción Urgente"]
[1558,1,"Situación Crítica. Correccción Urgente"]
[1557,1,"Situación Crítica. Correccción Urgente"]
[1556,1,"Situación Crítica. Correccción Urgente"]
[1555,1,"Situación Crítica. Correccción Urgente"]
[1554,1,"Situación Crítica. Correccción Urgente"]
[1553,1,"Situación Crítica. Correccción Urgente"]
[1552,1,"Situación Crítica. Correccción Urgente"]
[1551,1,"Situación Crítica. Correccción Urgente"]
[1550,1,"Situación Crítica. Correccción Urgente"]
[1549,1,"Situación Crítica. Correccción Urgente"]
[1548,1,"Situación Crítica. Correccción Urgente"]
[1547,1,"Situación Crítica. Correccción Urgente"]
[1546,1,"Situación Crítica. Correccción Urgente"]
[1545,1,"Situación Crítica. Correccción Urgente"]
[1544,1,"Situación Crítica. Correccción Urgente"]
[1543,1,"Situación Crítica. Correccción Urgente"]
[1542,1,"Situación Crítica. Correccción Urgente"]
[1541,1,"Situación Crítica. Correccción Urgente"]
[1540,1,"Situación Crítica. Correccción Urgente"]
[1539,1,"Situación Crítica. Correccción Urgente"]
[1538,1,"Situación Crítica. Correccción Urgente"]
[1537,1,"Situación Crítica. Correccción Urgente"]
[1536,1,"Situación Crítica. Correccción Urgente"]
[1535,1,"Situación Crítica. Correccción Urgente"]
[1534,1,"Situación Crítica. Correccción Urgente"]
[1533,1,"Situación Crítica. Correccción Urgente"]
[1532,1,"Situación Crítica. Correccción Urgente"]
[1531,1,"Situación Crítica. Correccción Urgente"]
[1530,1,"Situación Crítica. Correccción Urgente"]
[1529,1,"Situación Crítica. Correccción Urgente"]
[1528,1,"Situación Crítica. Correccción Urgente"]
[1527,1,"Situación Crítica. Correccción Urgente"]
[1526,1,"Situación Crítica. Correccción Urgente"]
[1525,1,"Situación Crítica. Correccción Urgente"]
[1524,1,"Situación Crítica. Correccción Urgente"]
[1523,1,"Situación Crítica. Correccción Urgente"]
[1522,1,"Situación Crítica. Correccción Urgente"]
[1521,1,"Situación Crítica. Correccción Urgente"]
[1520,1,"Situación Crítica. Correccción Urgente"]
[1519,1,"Situación Crítica. Correccción Urgente"]
[1518,1,"Situación Crítica. Correccción Urgente"]
[1517,1,"Situación Crítica. Correccción Urgente"]
[1516,1,"Situación Crítica. Correccción Urgente"]
[1515,1,"Situación Crítica. Correccción Urgente"]
[1514,1,"Situación Crítica. Correccción Urgente"]
[1513,1,"Situación Crítica. Correccción Urgente"]
[1512,1,"Situación Crítica. Correccción Urgente"]
[1511,1,"Situación Crítica. Correccción Urgente"]
[1510,1,"Situación Crítica. Correccción Urgente"]
[1509,1,"Situación Crítica. Correccción Urgente"]
[1508,1,"Situación Crítica. Correccción Urgente"]
[1507,1,"Situación Crítica. Correccción Urgente"]
[1506,1,"Situación Crítica. Correccción Urgente"]
[1505,1,"Situación Crítica. Correccción Urgente"]
[1504,1,"Situación Crítica. Correccción Urgente"]
[1503,1,"Situación Crítica. Correccción Urgente"]
[1502,1,"Situación Crítica. Correccción Urgente"]
[1501,1,"Situación Crítica. Correccción Urgente"]
[1500,1,"Situación Crítica. Correccción Urgente"]
[1499,1,"Situación Crítica. Correccción Urgente"]
[1498,1,"Situación Crítica. Correccción Urgente"]
[1497,1,"Situación Crítica. Correccción Urgente"]
[1496,1,"Situación Crítica. Correccción Urgente"]
[1495,1,"Situación Crítica. Correccción Urgente"]
[1494,1,"Situación Crítica. Correccción Urgente"]
[1493,1,"Situación Crítica. Correccción Urgente"]
[1492,1,"Situación Crítica. Correccción Urgente"]
[1491,1,"Situación Crítica. Correccción Urgente"]
[1490,1,"Situación Crítica. Correccción Urgente"]
[1489,1,"Situación Crítica. Correccción Urgente"]
[1488,1,"Situación Crítica. Correccción Urgente"]
[1487,1,"Situación Crítica. Correccción Urgente"]
[1486,1,"Situación Crítica. Correccción Urgente"]
[1485,1,"Situación Crítica. Correccción Urgente"]
[1484,1,"Situación Crítica. Correccción Urgente"]
[1483,1,"Situación Crítica. Correccción Urgente"]
[1482,1,"Situación Crítica. Correccción Urgente"]
[1481,1,"Situación Crítica. Correccción Urgente"]
[1480,1,"Situación Crítica. Correccción Urgente"]
[1479,1,"Situación Crítica. Correccción Urgente"]
[1478,1,"Situación Crítica. Correccción Urgente"]
[1477,1,"Situación Crítica. Correccción Urgente"]
[1476,1,"Situación Crítica. Correccción Urgente"]
[1475,1,"Situación Crítica. Correccción Urgente"]
[1474,1,"Situación Crítica. Correccción Urgente"]
[1473,1,"Situación Crítica. Correccción Urgente"]
[1472,1,"Situación Crítica. Correccción Urgente"]
[1471,1,"Situación Crítica. Correccción Urgente"]
[1470,1,"Situación Crítica. Correccción Urgente"]
[1469,1,"Situación Crítica. Correccción Urgente"]
[1468,1,"Situación Crítica. Correccción Urgente"]
[1467,1,"Situación Crítica. Correccción Urgente"]
[1466,1,"Situación Crítica. Correccción Urgente"]
[1465,1,"Situación Crítica. Correccción Urgente"]
[1464,1,"Situación Crítica. Correccción Urgente"]
[1463,1,"Situación Crítica. Correccción Urgente"]
[1462,1,"Situación Crítica. Correccción Urgente"]
[1461,1,"Situación Crítica. Correccción Urgente"]
[1460,1,"Situación Crítica. Correccción Urgente"]
[1459,1,"Situación Crítica. Correccción Urgente"]
[1458,1,"Situación Crítica. Correccción Urgente"]
[1457,1,"Situación Crítica. Correccción Urgente"]
[1456,1,"Situación Crítica. Correccción Urgente"]
[1455,1,"Situación Crítica. Correccción Urgente"]
[1454,1,"Situación Crítica. Correccción Urgente"]
[1453,1,"Situación Crítica. Correccción Urgente"]
[1452,1,"Situación Crítica. Correccción Urgente"]
[1451,1,"Situación Crítica. Correccción Urgente"]
[1450,1,"Situación Crítica. Correccción Urgente"]
[1449,1,"Situación Crítica. Correccción Urgente"]
[1448,1,"Situación Crítica. Correccción Urgente"]
[1447,1,"Situación Crítica. Correccción Urgente"]
[1446,1,"Situación Crítica. Correccción Urgente"]
[1445,1,"Situación Crítica. Correccción Urgente"]
[1444,1,"Situación Crítica. Correccción Urgente"]
[1443,1,"Situación Crítica. Correccción Urgente"]
[1442,1,"Situación Crítica. Correccción Urgente"]
[1441,1,"Situación Crítica. Correccción Urgente"]
[1440,1,"Situación Crítica. Correccción Urgente"]
[1439,1,"Situación Crítica. Correccción Urgente"]
[1438,1,"Situación Crítica. Correccción Urgente"]
[1437,1,"Situación Crítica. Correccción Urgente"]
[1436,1,"Situación Crítica. Correccción Urgente"]
[1435,1,"Situación Crítica. Correccción Urgente"]
[1434,1,"Situación Crítica. Correccción Urgente"]
[1433,1,"Situación Crítica. Correccción Urgente"]
[1432,1,"Situación Crítica. Correccción Urgente"]
[1431,1,"Situación Crítica. Correccción Urgente"]
[1430,1,"Situación Crítica. Correccción Urgente"]
[1429,1,"Situación Crítica. Correccción Urgente"]
[1428,1,"Situación Crítica. Correccción Urgente"]
[1427,1,"Situación Crítica. Correccción Urgente"]
[1426,1,"Situación Crítica. Correccción Urgente"]
[1425,1,"Situación Crítica. Correccción Urgente"]
[1424,1,"Situación Crítica. Correccción Urgente"]
[1423,1,"Situación Crítica. Correccción Urgente"]
[1422,1,"Situación Crítica. Correccción Urgente"]
[1421,1,"Situación Crítica. Correccción Urgente"]
[1420,1,"Situación Crítica. Correccción Urgente"]
[1419,1,"Situación Crítica. Correccción Urgente"]
[1418,1,"Situación Crítica. Correccción Urgente"]
[1417,1,"Situación Crítica. Correccción Urgente"]
[1416,1,"Situación Crítica. Correccción Urgente"]
[1415,1,"Situación Crítica. Correccción Urgente"]
[1414,1,"Situación Crítica. Correccción Urgente"]
[1413,1,"Situación Crítica. Correccción Urgente"]
[1412,1,"Situación Crítica. Correccción Urgente"]
[1411,1,"Situación Crítica. Correccción Urgente"]
[1410,1,"Situación Crítica. Correccción Urgente"]
[1409,1,"Situación Crítica. Correccción Urgente"]
[1408,1,"Situación Crítica. Correccción Urgente"]
[1407,1,"Situación Crítica. Correccción Urgente"]
[1406,1,"Situación Crítica. Correccción Urgente"]
[1405,1,"Situación Crítica. Correccción Urgente"]
[1404,1,"Situación Crítica. Correccción Urgente"]
[1403,1,"Situación Crítica. Correccción Urgente"]
[1402,1,"Situación Crítica. Correccción Urgente"]
[1401,1,"Situación Crítica. Correccción Urgente"]
[1400,1,"Situación Crítica. Correccción Urgente"]
[1399,1,"Situación Crítica. Correccción Urgente"]
[1398,1,"Situación Crítica. Correccción Urgente"]
[1397,1,"Situación Crítica. Correccción Urgente"]
[1396,1,"Situación Crítica. Correccción Urgente"]
[1395,1,"Situación Crítica. Correccción Urgente"]
[1394,1,"Situación Crítica. Correccción Urgente"]
[1393,1,"Situación Crítica. Correccción Urgente"]
[1392,1,"Situación Crítica. Correccción Urgente"]
[1391,1,"Situación Crítica. Correccción Urgente"]
[1390,1,"Situación Crítica. Correccción Urgente"]
[1389,1,"Situación Crítica. Correccción Urgente"]
[1388,1,"Situación Crítica. Correccción Urgente"]
[1387,1,"Situación Crítica. Correccción Urgente"]
[1386,1,"Situación Crítica. Correccción Urgente"]
[1385,1,"Situación Crítica. Correccción Urgente"]
[1384,1,"Situación Crítica. Correccción Urgente"]
[1383,1,"Situación Crítica. Correccción Urgente"]
[1382,1,"Situación Crítica. Correccción Urgente"]
[1381,1,"Situación Crítica. Correccción Urgente"]
[1380,1,"Situación Crítica. Correccción Urgente"]
[1379,1,"Situación Crítica. Correccción Urgente"]
[1378,1,"Situación Crítica. Correccción Urgente"]
[1377,1,"Situación Crítica. Correccción Urgente"]
[1376,1,"Situación Crítica. Correccción Urgente"]
[1375,1,"Situación Crítica. Correccción Urgente"]
[1374,1,"Situación Crítica. Correccción Urgente"]
[1373,1,"Situación Crítica. Correccción Urgente"]
[1372,1,"Situación Crítica. Correccción Urgente"]
[1371,1,"Situación Crítica. Correccción Urgente"]
[1370,1,"Situación Crítica. Correccción Urgente"]
[1369,1,"Situación Crítica. Correccción Urgente"]
[1368,1,"Situación Crítica. Correccción Urgente"]
[1367,1,"Situación Crítica. Correccción Urgente"]
[1366,1,"Situación Crítica. Correccción Urgente"]
[1365,1,"Situación Crítica. Correccción Urgente"]
[1364,1,"Situación Crítica. Correccción Urgente"]
[1363,1,"Situación Crítica. Correccción Urgente"]
[1362,1,"Situación Crítica. Correccción Urgente"]
[1361,1,"Situación Crítica. Correccción Urgente"]
[1360,1,"Situación Crítica. Correccción Urgente"]
[1359,1,"Situación Crítica. Correccción Urgente"]
[1358,1,"Situación Crítica. Correccción Urgente"]
[1357,1,"Situación Crítica. Correccción Urgente"]
[1356,1,"Situación Crítica. Correccción Urgente"]
[1355,1,"Situación Crítica. Correccción Urgente"]
[1354,1,"Situación Crítica. Correccción Urgente"]
[1353,1,"Situación Crítica. Correccción Urgente"]
[1352,1,"Situación Crítica. Correccción Urgente"]
[1351,1,"Situación Crítica. Correccción Urgente"]
[1350,1,"Situación Crítica. Correccción Urgente"]
[1349,1,"Situación Crítica. Correccción Urgente"]
[1348,1,"Situación Crítica. Correccción Urgente"]
[1347,1,"Situación Crítica. Correccción Urgente"]
[1346,1,"Situación Crítica. Correccción Urgente"]
[1345,1,"Situación Crítica. Correccción Urgente"]
[1344,1,"Situación Crítica. Correccción Urgente"]
[1343,1,"Situación Crítica. Correccción Urgente"]
[1342,1,"Situación Crítica. Correccción Urgente"]
[1341,1,"Situación Crítica. Correccción Urgente"]
[1340,1,"Situación Crítica. Correccción Urgente"]
[1339,1,"Situación Crítica. Correccción Urgente"]
[1338,1,"Situación Crítica. Correccción Urgente"]
[1337,1,"Situación Crítica. Correccción Urgente"]
[1336,1,"Situación Crítica. Correccción Urgente"]
[1335,1,"Situación Crítica. Correccción Urgente"]
[1334,1,"Situación Crítica. Correccción Urgente"]
[1333,1,"Situación Crítica. Correccción Urgente"]
[1332,1,"Situación Crítica. Correccción Urgente"]
[1331,1,"Situación Crítica. Correccción Urgente"]
[1330,1,"Situación Crítica. Correccción Urgente"]
[1329,1,"Situación Crítica. Correccción Urgente"]
[1328,1,"Situación Crítica. Correccción Urgente"]
[1327,1,"Situación Crítica. Correccción Urgente"]
[1326,1,"Situación Crítica. Correccción Urgente"]
[1325,1,"Situación Crítica. Correccción Urgente"]
[1324,1,"Situación Crítica. Correccción Urgente"]
[1323,1,"Situación Crítica. Correccción Urgente"]
[1322,1,"Situación Crítica. Correccción Urgente"]
[1321,1,"Situación Crítica. Correccción Urgente"]
[1320,1,"Situación Crítica. Correccción Urgente"]
[1319,1,"Situación Crítica. Correccción Urgente"]
[1318,1,"Situación Crítica. Correccción Urgente"]
[1317,1,"Situación Crítica. Correccción Urgente"]
[1316,1,"Situación Crítica. Correccción Urgente"]
[1315,1,"Situación Crítica. Correccción Urgente"]
[1314,1,"Situación Crítica. Correccción Urgente"]
[1313,1,"Situación Crítica. Correccción Urgente"]
[1312,1,"Situación Crítica. Correccción Urgente"]
[1311,1,"Situación Crítica. Correccción Urgente"]
[1310,1,"Situación Crítica. Correccción Urgente"]
[1309,1,"Situación Crítica. Correccción Urgente"]
[1308,1,"Situación Crítica. Correccción Urgente"]
[1307,1,"Situación Crítica. Correccción Urgente"]
[1306,1,"Situación Crítica. Correccción Urgente"]
[1305,1,"Situación Crítica. Correccción Urgente"]
[1304,1,"Situación Crítica. Correccción Urgente"]
[1303,1,"Situación Crítica. Correccción Urgente"]
[1302,1,"Situación Crítica. Correccción Urgente"]
[1301,1,"Situación Crítica. Correccción Urgente"]
[1300,1,"Situación Crítica. Correccción Urgente"]
[1299,1,"Situación Crítica. Correccción Urgente"]
[1298,1,"Situación Crítica. Correccción Urgente"]
[1297,1,"Situación Crítica. Correccción Urgente"]
[1296,1,"Situación Crítica. Correccción Urgente"]
[1295,1,"Situación Crítica. Correccción Urgente"]
[1294,1,"Situación Crítica. Correccción Urgente"]
[1293,1,"Situación Crítica. Correccción Urgente"]
[1292,1,"Situación Crítica. Correccción Urgente"]
[1291,1,"Situación Crítica. Correccción Urgente"]
[1290,1,"Situación Crítica. Correccción Urgente"]
[1289,1,"Situación Crítica. Correccción Urgente"]
[1288,1,"Situación Crítica. Correccción Urgente"]
[1287,1,"Situación Crítica. Correccción Urgente"]
[1286,1,"Situación Crítica. Correccción Urgente"]
[1285,1,"Situación Crítica. Correccción Urgente"]
[1284,1,"Situación Crítica. Correccción Urgente"]
[1283,1,"Situación Crítica. Correccción Urgente"]
[1282,1,"Situación Crítica. Correccción Urgente"]
[1281,1,"Situación Crítica. Correccción Urgente"]
[1280,1,"Situación Crítica. Correccción Urgente"]
[1279,1,"Situación Crítica. Correccción Urgente"]
[1278,1,"Situación Crítica. Correccción Urgente"]
[1277,1,"Situación Crítica. Correccción Urgente"]
[1276,1,"Situación Crítica. Correccción Urgente"]
[1275,1,"Situación Crítica. Correccción Urgente"]
[1274,1,"Situación Crítica. Correccción Urgente"]
[1273,1,"Situación Crítica. Correccción Urgente"]
[1272,1,"Situación Crítica. Correccción Urgente"]
[1271,1,"Situación Crítica. Correccción Urgente"]
[1270,1,"Situación Crítica. Correccción Urgente"]
[1269,1,"Situación Crítica. Correccción Urgente"]
[1268,1,"Situación Crítica. Correccción Urgente"]
[1267,1,"Situación Crítica. Correccción Urgente"]
[1266,1,"Situación Crítica. Correccción Urgente"]
[1265,1,"Situación Crítica. Correccción Urgente"]
[1264,1,"Situación Crítica. Correccción Urgente"]
[1263,1,"Situación Crítica. Correccción Urgente"]
[1262,1,"Situación Crítica. Correccción Urgente"]
[1261,1,"Situación Crítica. Correccción Urgente"]
[1260,1,"Situación Crítica. Correccción Urgente"]
[1259,1,"Situación Crítica. Correccción Urgente"]
[1258,1,"Situación Crítica. Correccción Urgente"]
[1257,1,"Situación Crítica. Correccción Urgente"]
[1256,1,"Situación Crítica. Correccción Urgente"]
[1255,1,"Situación Crítica. Correccción Urgente"]
[1254,1,"Situación Crítica. Correccción Urgente"]
[1253,1,"Situación Crítica. Correccción Urgente"]
[1252,1,"Situación Crítica. Correccción Urgente"]
[1251,1,"Situación Crítica. Correccción Urgente"]
[1250,1,"Situación Crítica. Correccción Urgente"]
[1249,1,"Situación Crítica. Correccción Urgente"]
[1248,1,"Situación Crítica. Correccción Urgente"]
[1247,1,"Situación Crítica. Correccción Urgente"]
[1246,1,"Situación Crítica. Correccción Urgente"]
[1245,1,"Situación Crítica. Correccción Urgente"]
[1244,1,"Situación Crítica. Correccción Urgente"]
[1243,1,"Situación Crítica. Correccción Urgente"]
[1242,1,"Situación Crítica. Correccción Urgente"]
[1241,1,"Situación Crítica. Correccción Urgente"]
[1240,1,"Situación Crítica. Correccción Urgente"]
[1239,1,"Situación Crítica. Correccción Urgente"]
[1238,1,"Situación Crítica. Correccción Urgente"]
[1237,1,"Situación Crítica. Correccción Urgente"]
[1236,1,"Situación Crítica. Correccción Urgente"]
[1235,1,"Situación Crítica. Correccción Urgente"]
[1234,1,"Situación Crítica. Correccción Urgente"]
[1233,1,"Situación Crítica. Correccción Urgente"]
[1232,1,"Situación Crítica. Correccción Urgente"]
[1231,1,"Situación Crítica. Correccción Urgente"]
[1230,1,"Situación Crítica. Correccción Urgente"]
[1229,1,"Situación Crítica. Correccción Urgente"]
[1228,1,"Situación Crítica. Correccción Urgente"]
[1227,1,"Situación Crítica. Correccción Urgente"]
[1226,1,"Situación Crítica. Correccción Urgente"]
[1225,1,"Situación Crítica. Correccción Urgente"]
[1224,1,"Situación Crítica. Correccción Urgente"]
[1223,1,"Situación Crítica. Correccción Urgente"]
[1222,1,"Situación Crítica. Correccción Urgente"]
[1221,1,"Situación Crítica. Correccción Urgente"]
[1220,1,"Situación Crítica. Correccción Urgente"]
[1219,1,"Situación Crítica. Correccción Urgente"]
[1218,1,"Situación Crítica. Correccción Urgente"]
[1217,1,"Situación Crítica. Correccción Urgente"]
[1216,1,"Situación Crítica. Correccción Urgente"]
[1215,1,"Situación Crítica. Correccción Urgente"]
[1214,1,"Situación Crítica. Correccción Urgente"]
[1213,1,"Situación Crítica. Correccción Urgente"]
[1212,1,"Situación Crítica. Correccción Urgente"]
[1211,1,"Situación Crítica. Correccción Urgente"]
[1210,1,"Situación Crítica. Correccción Urgente"]
[1209,1,"Situación Crítica. Correccción Urgente"]
[1208,1,"Situación Crítica. Correccción Urgente"]
[1207,1,"Situación Crítica. Correccción Urgente"]
[1206,1,"Situación Crítica. Correccción Urgente"]
[1205,1,"Situación Crítica. Correccción Urgente"]
[1204,1,"Situación Crítica. Correccción Urgente"]
[1203,1,"Situación Crítica. Correccción Urgente"]
[1202,1,"Situación Crítica. Correccción Urgente"]
[1201,1,"Situación Crítica. Correccción Urgente"]
[1200,1,"Situación Crítica. Correccción Urgente"]
[1199,1,"Situación Crítica. Correccción Urgente"]
[1198,1,"Situación Crítica. Correccción Urgente"]
[1197,1,"Situación Crítica. Correccción Urgente"]
[1196,1,"Situación Crítica. Correccción Urgente"]
[1195,1,"Situación Crítica. Correccción Urgente"]
[1194,1,"Situación Crítica. Correccción Urgente"]
[1193,1,"Situación Crítica. Correccción Urgente"]
[1192,1,"Situación Crítica. Correccción Urgente"]
[1191,1,"Situación Crítica. Correccción Urgente"]
[1190,1,"Situación Crítica. Correccción Urgente"]
[1189,1,"Situación Crítica. Correccción Urgente"]
[1188,1,"Situación Crítica. Correccción Urgente"]
[1187,1,"Situación Crítica. Correccción Urgente"]
[1186,1,"Situación Crítica. Correccción Urgente"]
[1185,1,"Situación Crítica. Correccción Urgente"]
[1184,1,"Situación Crítica. Correccción Urgente"]
[1183,1,"Situación Crítica. Correccción Urgente"]
[1182,1,"Situación Crítica. Correccción Urgente"]
[1181,1,"Situación Crítica. Correccción Urgente"]
[1180,1,"Situación Crítica. Correccción Urgente"]
[1179,1,"Situación Crítica. Correccción Urgente"]
[1178,1,"Situación Crítica. Correccción Urgente"]
[1177,1,"Situación Crítica. Correccción Urgente"]
[1176,1,"Situación Crítica. Correccción Urgente"]
[1175,1,"Situación Crítica. Correccción Urgente"]
[1174,1,"Situación Crítica. Correccción Urgente"]
[1173,1,"Situación Crítica. Correccción Urgente"]
[1172,1,"Situación Crítica. Correccción Urgente"]
[1171,1,"Situación Crítica. Correccción Urgente"]
[1170,1,"Situación Crítica. Correccción Urgente"]
[1169,1,"Situación Crítica. Correccción Urgente"]
[1168,1,"Situación Crítica. Correccción Urgente"]
[1167,1,"Situación Crítica. Correccción Urgente"]
[1166,1,"Situación Crítica. Correccción Urgente"]
[1165,1,"Situación Crítica. Correccción Urgente"]
[1164,1,"Situación Crítica. Correccción Urgente"]
[1163,1,"Situación Crítica. Correccción Urgente"]
[1162,1,"Situación Crítica. Correccción Urgente"]
[1161,1,"Situación Crítica. Correccción Urgente"]
[1160,1,"Situación Crítica. Correccción Urgente"]
[1159,1,"Situación Crítica. Correccción Urgente"]
[1158,1,"Situación Crítica. Correccción Urgente"]
[1157,1,"Situación Crítica. Correccción Urgente"]
[1156,1,"Situación Crítica. Correccción Urgente"]
[1155,1,"Situación Crítica. Correccción Urgente"]
[1154,1,"Situación Crítica. Correccción Urgente"]
[1153,1,"Situación Crítica. Correccción Urgente"]
[1152,1,"Situación Crítica. Correccción Urgente"]
[1151,1,"Situación Crítica. Correccción Urgente"]
[1150,1,"Situación Crítica. Correccción Urgente"]
[1149,1,"Situación Crítica. Correccción Urgente"]
[1148,1,"Situación Crítica. Correccción Urgente"]
[1147,1,"Situación Crítica. Correccción Urgente"]
[1146,1,"Situación Crítica. Correccción Urgente"]
[1145,1,"Situación Crítica. Correccción Urgente"]
[1144,1,"Situación Crítica. Correccción Urgente"]
[1143,1,"Situación Crítica. Correccción Urgente"]
[1142,1,"Situación Crítica. Correccción Urgente"]
[1141,1,"Situación Crítica. Correccción Urgente"]
[1140,1,"Situación Crítica. Correccción Urgente"]
[1139,1,"Situación Crítica. Correccción Urgente"]
[1138,1,"Situación Crítica. Correccción Urgente"]
[1137,1,"Situación Crítica. Correccción Urgente"]
[1136,1,"Situación Crítica. Correccción Urgente"]
[1135,1,"Situación Crítica. Correccción Urgente"]
[1134,1,"Situación Crítica. Correccción Urgente"]
[1133,1,"Situación Crítica. Correccción Urgente"]
[1132,1,"Situación Crítica. Correccción Urgente"]
[1131,1,"Situación Crítica. Correccción Urgente"]
[1130,1,"Situación Crítica. Correccción Urgente"]
[1129,1,"Situación Crítica. Correccción Urgente"]
[1128,1,"Situación Crítica. Correccción Urgente"]
[1127,1,"Situación Crítica. Correccción Urgente"]
[1126,1,"Situación Crítica. Correccción Urgente"]
[1125,1,"Situación Crítica. Correccción Urgente"]
[1124,1,"Situación Crítica. Correccción Urgente"]
[1123,1,"Situación Crítica. Correccción Urgente"]
[1122,1,"Situación Crítica. Correccción Urgente"]
[1121,1,"Situación Crítica. Correccción Urgente"]
[1120,1,"Situación Crítica. Correccción Urgente"]
[1119,1,"Situación Crítica. Correccción Urgente"]
[1118,1,"Situación Crítica. Correccción Urgente"]
[1117,1,"Situación Crítica. Correccción Urgente"]
[1116,1,"Situación Crítica. Correccción Urgente"]
[1115,1,"Situación Crítica. Correccción Urgente"]
[1114,1,"Situación Crítica. Correccción Urgente"]
[1113,1,"Situación Crítica. Correccción Urgente"]
[1112,1,"Situación Crítica. Correccción Urgente"]
[1111,1,"Situación Crítica. Correccción Urgente"]
[1110,1,"Situación Crítica. Correccción Urgente"]
[1109,1,"Situación Crítica. Correccción Urgente"]
[1108,1,"Situación Crítica. Correccción Urgente"]
[1107,1,"Situación Crítica. Correccción Urgente"]
[1106,1,"Situación Crítica. Correccción Urgente"]
[1105,1,"Situación Crítica. Correccción Urgente"]
[1104,1,"Situación Crítica. Correccción Urgente"]
[1103,1,"Situación Crítica. Correccción Urgente"]
[1102,1,"Situación Crítica. Correccción Urgente"]
[1101,1,"Situación Crítica. Correccción Urgente"]
[1100,1,"Situación Crítica. Correccción Urgente"]
[1099,1,"Situación Crítica. Correccción Urgente"]
[1098,1,"Situación Crítica. Correccción Urgente"]
[1097,1,"Situación Crítica. Correccción Urgente"]
[1096,1,"Situación Crítica. Correccción Urgente"]
[1095,1,"Situación Crítica. Correccción Urgente"]
[1094,1,"Situación Crítica. Correccción Urgente"]
[1093,1,"Situación Crítica. Correccción Urgente"]
[1092,1,"Situación Crítica. Correccción Urgente"]
[1091,1,"Situación Crítica. Correccción Urgente"]
[1090,1,"Situación Crítica. Correccción Urgente"]
[1089,1,"Situación Crítica. Correccción Urgente"]
[1088,1,"Situación Crítica. Correccción Urgente"]
[1087,1,"Situación Crítica. Correccción Urgente"]
[1086,1,"Situación Crítica. Correccción Urgente"]
[1085,1,"Situación Crítica. Correccción Urgente"]
[1084,1,"Situación Crítica. Correccción Urgente"]
[1083,1,"Situación Crítica. Correccción Urgente"]
[1082,1,"Situación Crítica. Correccción Urgente"]
[1081,1,"Situación Crítica. Correccción Urgente"]
[1080,1,"Situación Crítica. Correccción Urgente"]
[1079,1,"Situación Crítica. Correccción Urgente"]
[1078,1,"Situación Crítica. Correccción Urgente"]
[1077,1,"Situación Crítica. Correccción Urgente"]
[1076,1,"Situación Crítica. Correccción Urgente"]
[1075,1,"Situación Crítica. Correccción Urgente"]
[1074,1,"Situación Crítica. Correccción Urgente"]
[1073,1,"Situación Crítica. Correccción Urgente"]
[1072,1,"Situación Crítica. Correccción Urgente"]
[1071,1,"Situación Crítica. Correccción Urgente"]
[1070,1,"Situación Crítica. Correccción Urgente"]
[1069,1,"Situación Crítica. Correccción Urgente"]
[1068,1,"Situación Crítica. Correccción Urgente"]
[1067,1,"Situación Crítica. Correccción Urgente"]
[1066,1,"Situación Crítica. Correccción Urgente"]
[1065,1,"Situación Crítica. Correccción Urgente"]
[1064,1,"Situación Crítica. Correccción Urgente"]
[1063,1,"Situación Crítica. Correccción Urgente"]
[1062,1,"Situación Crítica. Correccción Urgente"]
[1061,1,"Situación Crítica. Correccción Urgente"]
[1060,1,"Situación Crítica. Correccción Urgente"]
[1059,1,"Situación Crítica. Correccción Urgente"]
[1058,1,"Situación Crítica. Correccción Urgente"]
[1057,1,"Situación Crítica. Correccción Urgente"]
[1056,1,"Situación Crítica. Correccción Urgente"]
[1055,1,"Situación Crítica. Correccción Urgente"]
[1054,1,"Situación Crítica. Correccción Urgente"]
[1053,1,"Situación Crítica. Correccción Urgente"]
[1052,1,"Situación Crítica. Correccción Urgente"]
[1051,1,"Situación Crítica. Correccción Urgente"]
[1050,1,"Situación Crítica. Correccción Urgente"]
[1049,1,"Situación Crítica. Correccción Urgente"]
[1048,1,"Situación Crítica. Correccción Urgente"]
[1047,1,"Situación Crítica. Correccción Urgente"]
[1046,1,"Situación Crítica. Correccción Urgente"]
[1045,1,"Situación Crítica. Correccción Urgente"]
[1044,1,"Situación Crítica. Correccción Urgente"]
[1043,1,"Situación Crítica. Correccción Urgente"]
[1042,1,"Situación Crítica. Correccción Urgente"]
[1041,1,"Situación Crítica. Correccción Urgente"]
[1040,1,"Situación Crítica. Correccción Urgente"]
[1039,1,"Situación Crítica. Correccción Urgente"]
[1038,1,"Situación Crítica. Correccción Urgente"]
[1037,1,"Situación Crítica. Correccción Urgente"]
[1036,1,"Situación Crítica. Correccción Urgente"]
[1035,1,"Situación Crítica. Correccción Urgente"]
[1034,1,"Situación Crítica. Correccción Urgente"]
[1033,1,"Situación Crítica. Correccción Urgente"]
[1032,1,"Situación Crítica. Correccción Urgente"]
[1031,1,"Situación Crítica. Correccción Urgente"]
[1030,1,"Situación Crítica. Correccción Urgente"]
[1029,1,"Situación Crítica. Correccción Urgente"]
[1028,1,"Situación Crítica. Correccción Urgente"]
[1027,1,"Situación Crítica. Correccción Urgente"]
[1026,1,"Situación Crítica. Correccción Urgente"]
[1025,1,"Situación Crítica. Correccción Urgente"]
[1024,1,"Situación Crítica. Correccción Urgente"]
[1023,1,"Situación Crítica. Correccción Urgente"]
[1022,1,"Situación Crítica. Correccción Urgente"]
[1021,1,"Situación Crítica. Correccción Urgente"]
[1020,1,"Situación Crítica. Correccción Urgente"]
[1019,1,"Situación Crítica. Correccción Urgente"]
[1018,1,"Situación Crítica. Correccción Urgente"]
[1017,1,"Situación Crítica. Correccción Urgente"]
[1016,1,"Situación Crítica. Correccción Urgente"]
[1015,1,"Situación Crítica. Correccción Urgente"]
[1014,1,"Situación Crítica. Correccción Urgente"]
[1013,1,"Situación Crítica. Correccción Urgente"]
[1012,1,"Situación Crítica. Correccción Urgente"]
[1011,1,"Situación Crítica. Correccción Urgente"]
[1010,1,"Situación Crítica. Correccción Urgente"]
[1009,1,"Situación Crítica. Correccción Urgente"]
[1008,1,"Situación Crítica. Correccción Urgente"]
[1007,1,"Situación Crítica. Correccción Urgente"]
[1006,1,"Situación Crítica. Correccción Urgente"]
[1005,1,"Situación Crítica. Correccción Urgente"]
[1004,1,"Situación Crítica. Correccción Urgente"]
[1003,1,"Situación Crítica. Correccción Urgente"]
[1002,1,"Situación Crítica. Correccción Urgente"]
[1001,1,"Situación Crítica. Correccción Urgente"]
[1000,1,"Situación Crítica. Correccción Urgente"]
[999,1,"Situación Crítica. Correccción Urgente"]
[998,1,"Situación Crítica. Correccción Urgente"]
[997,1,"Situación Crítica. Correccción Urgente"]
[996,1,"Situación Crítica. Correccción Urgente"]
[995,1,"Situación Crítica. Correccción Urgente"]
[994,1,"Situación Crítica. Correccción Urgente"]
[993,1,"Situación Crítica. Correccción Urgente"]
[992,1,"Situación Crítica. Correccción Urgente"]
[991,1,"Situación Crítica. Correccción Urgente"]
[990,1,"Situación Crítica. Correccción Urgente"]
[989,1,"Situación Crítica. Correccción Urgente"]
[988,1,"Situación Crítica. Correccción Urgente"]
[987,1,"Situación Crítica. Correccción Urgente"]
[986,1,"Situación Crítica. Correccción Urgente"]
[985,1,"Situación Crítica. Correccción Urgente"]
[984,1,"Situación Crítica. Correccción Urgente"]
[983,1,"Situación Crítica. Correccción Urgente"]
[982,1,"Situación Crítica. Correccción Urgente"]
[981,1,"Situación Crítica. Correccción Urgente"]
[980,1,"Situación Crítica. Correccción Urgente"]
[979,1,"Situación Crítica. Correccción Urgente"]
[978,1,"Situación Crítica. Correccción Urgente"]
[977,1,"Situación Crítica. Correccción Urgente"]
[976,1,"Situación Crítica. Correccción Urgente"]
[975,1,"Situación Crítica. Correccción Urgente"]
[974,1,"Situación Crítica. Correccción Urgente"]
[973,1,"Situación Crítica. Correccción Urgente"]
[972,1,"Situación Crítica. Correccción Urgente"]
[971,1,"Situación Crítica. Correccción Urgente"]
[970,1,"Situación Crítica. Correccción Urgente"]
[969,1,"Situación Crítica. Correccción Urgente"]
[968,1,"Situación Crítica. Correccción Urgente"]
[967,1,"Situación Crítica. Correccción Urgente"]
[966,1,"Situación Crítica. Correccción Urgente"]
[965,1,"Situación Crítica. Correccción Urgente"]
[964,1,"Situación Crítica. Correccción Urgente"]
[963,1,"Situación Crítica. Correccción Urgente"]
[962,1,"Situación Crítica. Correccción Urgente"]
[961,1,"Situación Crítica. Correccción Urgente"]
[960,1,"Situación Crítica. Correccción Urgente"]
[959,1,"Situación Crítica. Correccción Urgente"]
[958,1,"Situación Crítica. Correccción Urgente"]
[957,1,"Situación Crítica. Correccción Urgente"]
[956,1,"Situación Crítica. Correccción Urgente"]
[955,1,"Situación Crítica. Correccción Urgente"]
[954,1,"Situación Crítica. Correccción Urgente"]
[953,1,"Situación Crítica. Correccción Urgente"]
[952,1,"Situación Crítica. Correccción Urgente"]
[951,1,"Situación Crítica. Correccción Urgente"]
[950,1,"Situación Crítica. Correccción Urgente"]
[949,1,"Situación Crítica. Correccción Urgente"]
[948,1,"Situación Crítica. Correccción Urgente"]
[947,1,"Situación Crítica. Correccción Urgente"]
[946,1,"Situación Crítica. Correccción Urgente"]
[945,1,"Situación Crítica. Correccción Urgente"]
[944,1,"Situación Crítica. Correccción Urgente"]
[943,1,"Situación Crítica. Correccción Urgente"]
[942,1,"Situación Crítica. Correccción Urgente"]
[941,1,"Situación Crítica. Correccción Urgente"]
[940,1,"Situación Crítica. Correccción Urgente"]
[939,1,"Situación Crítica. Correccción Urgente"]
[938,1,"Situación Crítica. Correccción Urgente"]
[937,1,"Situación Crítica. Correccción Urgente"]
[936,1,"Situación Crítica. Correccción Urgente"]
[935,1,"Situación Crítica. Correccción Urgente"]
[934,1,"Situación Crítica. Correccción Urgente"]
[933,1,"Situación Crítica. Correccción Urgente"]
[932,1,"Situación Crítica. Correccción Urgente"]
[931,1,"Situación Crítica. Correccción Urgente"]
[930,1,"Situación Crítica. Correccción Urgente"]
[929,1,"Situación Crítica. Correccción Urgente"]
[928,1,"Situación Crítica. Correccción Urgente"]
[927,1,"Situación Crítica. Correccción Urgente"]
[926,1,"Situación Crítica. Correccción Urgente"]
[925,1,"Situación Crítica. Correccción Urgente"]
[924,1,"Situación Crítica. Correccción Urgente"]
[923,1,"Situación Crítica. Correccción Urgente"]
[922,1,"Situación Crítica. Correccción Urgente"]
[921,1,"Situación Crítica. Correccción Urgente"]
[920,1,"Situación Crítica. Correccción Urgente"]
[919,1,"Situación Crítica. Correccción Urgente"]
[918,1,"Situación Crítica. Correccción Urgente"]
[917,1,"Situación Crítica. Correccción Urgente"]
[916,1,"Situación Crítica. Correccción Urgente"]
[915,1,"Situación Crítica. Correccción Urgente"]
[914,1,"Situación Crítica. Correccción Urgente"]
[913,1,"Situación Crítica. Correccción Urgente"]
[912,1,"Situación Crítica. Correccción Urgente"]
[911,1,"Situación Crítica. Correccción Urgente"]
[910,1,"Situación Crítica. Correccción Urgente"]
[909,1,"Situación Crítica. Correccción Urgente"]
[908,1,"Situación Crítica. Correccción Urgente"]
[907,1,"Situación Crítica. Correccción Urgente"]
[906,1,"Situación Crítica. Correccción Urgente"]
[905,1,"Situación Crítica. Correccción Urgente"]
[904,1,"Situación Crítica. Correccción Urgente"]
[903,1,"Situación Crítica. Correccción Urgente"]
[902,1,"Situación Crítica. Correccción Urgente"]
[901,1,"Situación Crítica. Correccción Urgente"]
[900,1,"Situación Crítica. Correccción Urgente"]
[899,1,"Situación Crítica. Correccción Urgente"]
[898,1,"Situación Crítica. Correccción Urgente"]
[897,1,"Situación Crítica. Correccción Urgente"]
[896,1,"Situación Crítica. Correccción Urgente"]
[895,1,"Situación Crítica. Correccción Urgente"]
[894,1,"Situación Crítica. Correccción Urgente"]
[893,1,"Situación Crítica. Correccción Urgente"]
[892,1,"Situación Crítica. Correccción Urgente"]
[891,1,"Situación Crítica. Correccción Urgente"]
[890,1,"Situación Crítica. Correccción Urgente"]
[889,1,"Situación Crítica. Correccción Urgente"]
[888,1,"Situación Crítica. Correccción Urgente"]
[887,1,"Situación Crítica. Correccción Urgente"]
[886,1,"Situación Crítica. Correccción Urgente"]
[885,1,"Situación Crítica. Correccción Urgente"]
[884,1,"Situación Crítica. Correccción Urgente"]
[883,1,"Situación Crítica. Correccción Urgente"]
[882,1,"Situación Crítica. Correccción Urgente"]
[881,1,"Situación Crítica. Correccción Urgente"]
[880,1,"Situación Crítica. Correccción Urgente"]
[879,1,"Situación Crítica. Correccción Urgente"]
[878,1,"Situación Crítica. Correccción Urgente"]
[877,1,"Situación Crítica. Correccción Urgente"]
[876,1,"Situación Crítica. Correccción Urgente"]
[875,1,"Situación Crítica. Correccción Urgente"]
[874,1,"Situación Crítica. Correccción Urgente"]
[873,1,"Situación Crítica. Correccción Urgente"]
[872,1,"Situación Crítica. Correccción Urgente"]
[871,1,"Situación Crítica. Correccción Urgente"]
[870,1,"Situación Crítica. Correccción Urgente"]
[869,1,"Situación Crítica. Correccción Urgente"]
[868,1,"Situación Crítica. Correccción Urgente"]
[867,1,"Situación Crítica. Correccción Urgente"]
[866,1,"Situación Crítica. Correccción Urgente"]
[865,1,"Situación Crítica. Correccción Urgente"]
[864,1,"Situación Crítica. Correccción Urgente"]
[863,1,"Situación Crítica. Correccción Urgente"]
[862,1,"Situación Crítica. Correccción Urgente"]
[861,1,"Situación Crítica. Correccción Urgente"]
[860,1,"Situación Crítica. Correccción Urgente"]
[859,1,"Situación Crítica. Correccción Urgente"]
[858,1,"Situación Crítica. Correccción Urgente"]
[857,1,"Situación Crítica. Correccción Urgente"]
[856,1,"Situación Crítica. Correccción Urgente"]
[855,1,"Situación Crítica. Correccción Urgente"]
[854,1,"Situación Crítica. Correccción Urgente"]
[853,1,"Situación Crítica. Correccción Urgente"]
[852,1,"Situación Crítica. Correccción Urgente"]
[851,1,"Situación Crítica. Correccción Urgente"]
[850,1,"Situación Crítica. Correccción Urgente"]
[849,1,"Situación Crítica. Correccción Urgente"]
[848,1,"Situación Crítica. Correccción Urgente"]
[847,1,"Situación Crítica. Correccción Urgente"]
[846,1,"Situación Crítica. Correccción Urgente"]
[845,1,"Situación Crítica. Correccción Urgente"]
[844,1,"Situación Crítica. Correccción Urgente"]
[843,1,"Situación Crítica. Correccción Urgente"]
[842,1,"Situación Crítica. Correccción Urgente"]
[841,1,"Situación Crítica. Correccción Urgente"]
[840,1,"Situación Crítica. Correccción Urgente"]
[839,1,"Situación Crítica. Correccción Urgente"]
[838,1,"Situación Crítica. Correccción Urgente"]
[837,1,"Situación Crítica. Correccción Urgente"]
[836,1,"Situación Crítica. Correccción Urgente"]
[835,1,"Situación Crítica. Correccción Urgente"]
[834,1,"Situación Crítica. Correccción Urgente"]
[833,1,"Situación Crítica. Correccción Urgente"]
[832,1,"Situación Crítica. Correccción Urgente"]
[831,1,"Situación Crítica. Correccción Urgente"]
[830,1,"Situación Crítica. Correccción Urgente"]
[829,1,"Situación Crítica. Correccción Urgente"]
[828,1,"Situación Crítica. Correccción Urgente"]
[827,1,"Situación Crítica. Correccción Urgente"]
[826,1,"Situación Crítica. Correccción Urgente"]
[825,1,"Situación Crítica. Correccción Urgente"]
[824,1,"Situación Crítica. Correccción Urgente"]
[823,1,"Situación Crítica. Correccción Urgente"]
[822,1,"Situación Crítica. Correccción Urgente"]
[821,1,"Situación Crítica. Correccción Urgente"]
[820,1,"Situación Crítica. Correccción Urgente"]
[819,1,"Situación Crítica. Correccción Urgente"]
[818,1,"Situación Crítica. Correccción Urgente"]
[817,1,"Situación Crítica. Correccción Urgente"]
[816,1,"Situación Crítica. Correccción Urgente"]
[815,1,"Situación Crítica. Correccción Urgente"]
[814,1,"Situación Crítica. Correccción Urgente"]
[813,1,"Situación Crítica. Correccción Urgente"]
[812,1,"Situación Crítica. Correccción Urgente"]
[811,1,"Situación Crítica. Correccción Urgente"]
[810,1,"Situación Crítica. Correccción Urgente"]
[809,1,"Situación Crítica. Correccción Urgente"]
[808,1,"Situación Crítica. Correccción Urgente"]
[807,1,"Situación Crítica. Correccción Urgente"]
[806,1,"Situación Crítica. Correccción Urgente"]
[805,1,"Situación Crítica. Correccción Urgente"]
[804,1,"Situación Crítica. Correccción Urgente"]
[803,1,"Situación Crítica. Correccción Urgente"]
[802,1,"Situación Crítica. Correccción Urgente"]
[801,1,"Situación Crítica. Correccción Urgente"]
[800,1,"Situación Crítica. Correccción Urgente"]
[799,1,"Situación Crítica. Correccción Urgente"]
[798,1,"Situación Crítica. Correccción Urgente"]
[797,1,"Situación Crítica. Correccción Urgente"]
[796,1,"Situación Crítica. Correccción Urgente"]
[795,1,"Situación Crítica. Correccción Urgente"]
[794,1,"Situación Crítica. Correccción Urgente"]
[793,1,"Situación Crítica. Correccción Urgente"]
[792,1,"Situación Crítica. Correccción Urgente"]
[791,1,"Situación Crítica. Correccción Urgente"]
[790,1,"Situación Crítica. Correccción Urgente"]
[789,1,"Situación Crítica. Correccción Urgente"]
[788,1,"Situación Crítica. Correccción Urgente"]
[787,1,"Situación Crítica. Correccción Urgente"]
[786,1,"Situación Crítica. Correccción Urgente"]
[785,1,"Situación Crítica. Correccción Urgente"]
[784,1,"Situación Crítica. Correccción Urgente"]
[783,1,"Situación Crítica. Correccción Urgente"]
[782,1,"Situación Crítica. Correccción Urgente"]
[781,1,"Situación Crítica. Correccción Urgente"]
[780,1,"Situación Crítica. Correccción Urgente"]
[779,1,"Situación Crítica. Correccción Urgente"]
[778,1,"Situación Crítica. Correccción Urgente"]
[777,1,"Situación Crítica. Correccción Urgente"]
[776,1,"Situación Crítica. Correccción Urgente"]
[775,1,"Situación Crítica. Correccción Urgente"]
[774,1,"Situación Crítica. Correccción Urgente"]
[773,1,"Situación Crítica. Correccción Urgente"]
[772,1,"Situación Crítica. Correccción Urgente"]
[771,1,"Situación Crítica. Correccción Urgente"]
[770,1,"Situación Crítica. Correccción Urgente"]
[769,1,"Situación Crítica. Correccción Urgente"]
[768,1,"Situación Crítica. Correccción Urgente"]
[767,1,"Situación Crítica. Correccción Urgente"]
[766,1,"Situación Crítica. Correccción Urgente"]
[765,1,"Situación Crítica. Correccción Urgente"]
[764,1,"Situación Crítica. Correccción Urgente"]
[763,1,"Situación Crítica. Correccción Urgente"]
[762,1,"Situación Crítica. Correccción Urgente"]
[761,1,"Situación Crítica. Correccción Urgente"]
[760,1,"Situación Crítica. Correccción Urgente"]
[759,1,"Situación Crítica. Correccción Urgente"]
[758,1,"Situación Crítica. Correccción Urgente"]
[757,1,"Situación Crítica. Correccción Urgente"]
[756,1,"Situación Crítica. Correccción Urgente"]
[755,1,"Situación Crítica. Correccción Urgente"]
[754,1,"Situación Crítica. Correccción Urgente"]
[753,1,"Situación Crítica. Correccción Urgente"]
[752,1,"Situación Crítica. Correccción Urgente"]
[751,1,"Situación Crítica. Correccción Urgente"]
[750,1,"Situación Crítica. Correccción Urgente"]
[749,1,"Situación Crítica. Correccción Urgente"]
[748,1,"Situación Crítica. Correccción Urgente"]
[747,1,"Situación Crítica. Correccción Urgente"]
[746,1,"Situación Crítica. Correccción Urgente"]
[745,1,"Situación Crítica. Correccción Urgente"]
[744,1,"Situación Crítica. Correccción Urgente"]
[743,1,"Situación Crítica. Correccción Urgente"]
[742,1,"Situación Crítica. Correccción Urgente"]
[741,1,"Situación Crítica. Correccción Urgente"]
[740,1,"Situación Crítica. Correccción Urgente"]
[739,1,"Situación Crítica. Correccción Urgente"]
[738,1,"Situación Crítica. Correccción Urgente"]
[737,1,"Situación Crítica. Correccción Urgente"]
[736,1,"Situación Crítica. Correccción Urgente"]
[735,1,"Situación Crítica. Correccción Urgente"]
[734,1,"Situación Crítica. Correccción Urgente"]
[733,1,"Situación Crítica. Correccción Urgente"]
[732,1,"Situación Crítica. Correccción Urgente"]
[731,1,"Situación Crítica. Correccción Urgente"]
[730,1,"Situación Crítica. Correccción Urgente"]
[729,1,"Situación Crítica. Correccción Urgente"]
[728,1,"Situación Crítica. Correccción Urgente"]
[727,1,"Situación Crítica. Correccción Urgente"]
[726,1,"Situación Crítica. Correccción Urgente"]
[725,1,"Situación Crítica. Correccción Urgente"]
[724,1,"Situación Crítica. Correccción Urgente"]
[723,1,"Situación Crítica. Correccción Urgente"]
[722,1,"Situación Crítica. Correccción Urgente"]
[721,1,"Situación Crítica. Correccción Urgente"]
[720,1,"Situación Crítica. Correccción Urgente"]
[719,1,"Situación Crítica. Correccción Urgente"]
[718,1,"Situación Crítica. Correccción Urgente"]
[717,1,"Situación Crítica. Correccción Urgente"]
[716,1,"Situación Crítica. Correccción Urgente"]
[715,1,"Situación Crítica. Correccción Urgente"]
[714,1,"Situación Crítica. Correccción Urgente"]
[713,1,"Situación Crítica. Correccción Urgente"]
[712,1,"Situación Crítica. Correccción Urgente"]
[711,1,"Situación Crítica. Correccción Urgente"]
[710,1,"Situación Crítica. Correccción Urgente"]
[709,1,"Situación Crítica. Correccción Urgente"]
[708,1,"Situación Crítica. Correccción Urgente"]
[707,1,"Situación Crítica. Correccción Urgente"]
[706,1,"Situación Crítica. Correccción Urgente"]
[705,1,"Situación Crítica. Correccción Urgente"]
[704,1,"Situación Crítica. Correccción Urgente"]
[703,1,"Situación Crítica. Correccción Urgente"]
[702,1,"Situación Crítica. Correccción Urgente"]
[701,1,"Situación Crítica. Correccción Urgente"]
[700,1,"Situación Crítica. Correccción Urgente"]
[699,1,"Situación Crítica. Correccción Urgente"]
[698,1,"Situación Crítica. Correccción Urgente"]
[697,1,"Situación Crítica. Correccción Urgente"]
[696,1,"Situación Crítica. Correccción Urgente"]
[695,1,"Situación Crítica. Correccción Urgente"]
[694,1,"Situación Crítica. Correccción Urgente"]
[693,1,"Situación Crítica. Correccción Urgente"]
[692,1,"Situación Crítica. Correccción Urgente"]
[691,1,"Situación Crítica. Correccción Urgente"]
[690,1,"Situación Crítica. Correccción Urgente"]
[689,1,"Situación Crítica. Correccción Urgente"]
[688,1,"Situación Crítica. Correccción Urgente"]
[687,1,"Situación Crítica. Correccción Urgente"]
[686,1,"Situación Crítica. Correccción Urgente"]
[685,1,"Situación Crítica. Correccción Urgente"]
[684,1,"Situación Crítica. Correccción Urgente"]
[683,1,"Situación Crítica. Correccción Urgente"]
[682,1,"Situación Crítica. Correccción Urgente"]
[681,1,"Situación Crítica. Correccción Urgente"]
[680,1,"Situación Crítica. Correccción Urgente"]
[679,1,"Situación Crítica. Correccción Urgente"]
[678,1,"Situación Crítica. Correccción Urgente"]
[677,1,"Situación Crítica. Correccción Urgente"]
[676,1,"Situación Crítica. Correccción Urgente"]
[675,1,"Situación Crítica. Correccción Urgente"]
[674,1,"Situación Crítica. Correccción Urgente"]
[673,1,"Situación Crítica. Correccción Urgente"]
[672,1,"Situación Crítica. Correccción Urgente"]
[671,1,"Situación Crítica. Correccción Urgente"]
[670,1,"Situación Crítica. Correccción Urgente"]
[669,1,"Situación Crítica. Correccción Urgente"]
[668,1,"Situación Crítica. Correccción Urgente"]
[667,1,"Situación Crítica. Correccción Urgente"]
[666,1,"Situación Crítica. Correccción Urgente"]
[665,1,"Situación Crítica. Correccción Urgente"]
[664,1,"Situación Crítica. Correccción Urgente"]
[663,1,"Situación Crítica. Correccción Urgente"]
[662,1,"Situación Crítica. Correccción Urgente"]
[661,1,"Situación Crítica. Correccción Urgente"]
[660,1,"Situación Crítica. Correccción Urgente"]
[659,1,"Situación Crítica. Correccción Urgente"]
[658,1,"Situación Crítica. Correccción Urgente"]
[657,1,"Situación Crítica. Correccción Urgente"]
[656,1,"Situación Crítica. Correccción Urgente"]
[655,1,"Situación Crítica. Correccción Urgente"]
[654,1,"Situación Crítica. Correccción Urgente"]
[653,1,"Situación Crítica. Correccción Urgente"]
[652,1,"Situación Crítica. Correccción Urgente"]
[651,1,"Situación Crítica. Correccción Urgente"]
[650,1,"Situación Crítica. Correccción Urgente"]
[649,1,"Situación Crítica. Correccción Urgente"]
[648,1,"Situación Crítica. Correccción Urgente"]
[647,1,"Situación Crítica. Correccción Urgente"]
[646,1,"Situación Crítica. Correccción Urgente"]
[645,1,"Situación Crítica. Correccción Urgente"]
[644,1,"Situación Crítica. Correccción Urgente"]
[643,1,"Situación Crítica. Correccción Urgente"]
[642,1,"Situación Crítica. Correccción Urgente"]
[641,1,"Situación Crítica. Correccción Urgente"]
[640,1,"Situación Crítica. Correccción Urgente"]
[639,1,"Situación Crítica. Correccción Urgente"]
[638,1,"Situación Crítica. Correccción Urgente"]
[637,1,"Situación Crítica. Correccción Urgente"]
[636,1,"Situación Crítica. Correccción Urgente"]
[635,1,"Situación Crítica. Correccción Urgente"]
[634,1,"Situación Crítica. Correccción Urgente"]
[633,1,"Situación Crítica. Correccción Urgente"]
[632,1,"Situación Crítica. Correccción Urgente"]
[631,1,"Situación Crítica. Correccción Urgente"]
[630,1,"Situación Crítica. Correccción Urgente"]
[629,1,"Situación Crítica. Correccción Urgente"]
[628,1,"Situación Crítica. Correccción Urgente"]
[627,1,"Situación Crítica. Correccción Urgente"]
[626,1,"Situación Crítica. Correccción Urgente"]
[625,1,"Situación Crítica. Correccción Urgente"]
[624,1,"Situación Crítica. Correccción Urgente"]
[623,1,"Situación Crítica. Correccción Urgente"]
[622,1,"Situación Crítica. Correccción Urgente"]
[621,1,"Situación Crítica. Correccción Urgente"]
[620,1,"Situación Crítica. Correccción Urgente"]
[619,1,"Situación Crítica. Correccción Urgente"]
[618,1,"Situación Crítica. Correccción Urgente"]
[617,1,"Situación Crítica. Correccción Urgente"]
[616,1,"Situación Crítica. Correccción Urgente"]
[615,1,"Situación Crítica. Correccción Urgente"]
[614,1,"Situación Crítica. Correccción Urgente"]
[613,1,"Situación Crítica. Correccción Urgente"]
[612,1,"Situación Crítica. Correccción Urgente"]
[611,1,"Situación Crítica. Correccción Urgente"]
[610,1,"Situación Crítica. Correccción Urgente"]
[609,1,"Situación Crítica. Correccción Urgente"]
[608,1,"Situación Crítica. Correccción Urgente"]
[607,1,"Situación Crítica. Correccción Urgente"]
[606,1,"Situación Crítica. Correccción Urgente"]
[605,1,"Situación Crítica. Correccción Urgente"]
[604,1,"Situación Crítica. Correccción Urgente"]
[603,1,"Situación Crítica. Correccción Urgente"]
[602,1,"Situación Crítica. Correccción Urgente"]
[601,1,"Situación Crítica. Correccción Urgente"]
[600,1,"Situación Crítica. Correccción Urgente"]
[599,2,"Corregir y adoptar medidas de control"]
[598,2,"Corregir y adoptar medidas de control"]
[597,2,"Corregir y adoptar medidas de control"]
[596,2,"Corregir y adoptar medidas de control"]
[595,2,"Corregir y adoptar medidas de control"]
[594,2,"Corregir y adoptar medidas de control"]
[593,2,"Corregir y adoptar medidas de control"]
[592,2,"Corregir y adoptar medidas de control"]
[591,2,"Corregir y adoptar medidas de control"]
[590,2,"Corregir y adoptar medidas de control"]
[589,2,"Corregir y adoptar medidas de control"]
[588,2,"Corregir y adoptar medidas de control"]
[587,2,"Corregir y adoptar medidas de control"]
[586,2,"Corregir y adoptar medidas de control"]
[585,2,"Corregir y adoptar medidas de control"]
[584,2,"Corregir y adoptar medidas de control"]
[583,2,"Corregir y adoptar medidas de control"]
[582,2,"Corregir y adoptar medidas de control"]
[581,2,"Corregir y adoptar medidas de control"]
[580,2,"Corregir y adoptar medidas de control"]
[579,2,"Corregir y adoptar medidas de control"]
[578,2,"Corregir y adoptar medidas de control"]
[577,2,"Corregir y adoptar medidas de control"]
[576,2,"Corregir y adoptar medidas de control"]
[575,2,"Corregir y adoptar medidas de control"]
[574,2,"Corregir y adoptar medidas de control"]
[573,2,"Corregir y adoptar medidas de control"]
[572,2,"Corregir y adoptar medidas de control"]
[571,2,"Corregir y adoptar medidas de control"]
[570,2,"Corregir y adoptar medidas de control"]
[569,2,"Corregir y adoptar medidas de control"]
[568,2,"Corregir y adoptar medidas de control"]
[567,2,"Corregir y adoptar medidas de control"]
[566,2,"Corregir y adoptar medidas de control"]
[565,2,"Corregir y adoptar medidas de control"]
[564,2,"Corregir y adoptar medidas de control"]
[563,2,"Corregir y adoptar medidas de control"]
[562,2,"Corregir y adoptar medidas de control"]
[561,2,"Corregir y adoptar medidas de control"]
[560,2,"Corregir y adoptar medidas de control"]
[559,2,"Corregir y adoptar medidas de control"]
[558,2,"Corregir y adoptar medidas de control"]
[557,2,"Corregir y adoptar medidas de control"]
[556,2,"Corregir y adoptar medidas de control"]
[555,2,"Corregir y adoptar medidas de control"]
[554,2,"Corregir y adoptar medidas de control"]
[553,2,"Corregir y adoptar medidas de control"]
[552,2,"Corregir y adoptar medidas de control"]
[551,2,"Corregir y adoptar medidas de control"]
[550,2,"Corregir y adoptar medidas de control"]
[549,2,"Corregir y adoptar medidas de control"]
[548,2,"Corregir y adoptar medidas de control"]
[547,2,"Corregir y adoptar medidas de control"]
[546,2,"Corregir y adoptar medidas de control"]
[545,2,"Corregir y adoptar medidas de control"]
[544,2,"Corregir y adoptar medidas de control"]
[543,2,"Corregir y adoptar medidas de control"]
[542,2,"Corregir y adoptar medidas de control"]
[541,2,"Corregir y adoptar medidas de control"]
[540,2,"Corregir y adoptar medidas de control"]
[539,2,"Corregir y adoptar medidas de control"]
[538,2,"Corregir y adoptar medidas de control"]
[537,2,"Corregir y adoptar medidas de control"]
[536,2,"Corregir y adoptar medidas de control"]
[535,2,"Corregir y adoptar medidas de control"]
[534,2,"Corregir y adoptar medidas de control"]
[533,2,"Corregir y adoptar medidas de control"]
[532,2,"Corregir y adoptar medidas de control"]
[531,2,"Corregir y adoptar medidas de control"]
[530,2,"Corregir y adoptar medidas de control"]
[529,2,"Corregir y adoptar medidas de control"]
[528,2,"Corregir y adoptar medidas de control"]
[527,2,"Corregir y adoptar medidas de control"]
[526,2,"Corregir y adoptar medidas de control"]
[525,2,"Corregir y adoptar medidas de control"]
[524,2,"Corregir y adoptar medidas de control"]
[523,2,"Corregir y adoptar medidas de control"]
[522,2,"Corregir y adoptar medidas de control"]
[521,2,"Corregir y adoptar medidas de control"]
[520,2,"Corregir y adoptar medidas de control"]
[519,2,"Corregir y adoptar medidas de control"]
[518,2,"Corregir y adoptar medidas de control"]
[517,2,"Corregir y adoptar medidas de control"]
[516,2,"Corregir y adoptar medidas de control"]
[515,2,"Corregir y adoptar medidas de control"]
[514,2,"Corregir y adoptar medidas de control"]
[513,2,"Corregir y adoptar medidas de control"]
[512,2,"Corregir y adoptar medidas de control"]
[511,2,"Corregir y adoptar medidas de control"]
[510,2,"Corregir y adoptar medidas de control"]
[509,2,"Corregir y adoptar medidas de control"]
[508,2,"Corregir y adoptar medidas de control"]
[507,2,"Corregir y adoptar medidas de control"]
[506,2,"Corregir y adoptar medidas de control"]
[505,2,"Corregir y adoptar medidas de control"]
[504,2,"Corregir y adoptar medidas de control"]
[503,2,"Corregir y adoptar medidas de control"]
[502,2,"Corregir y adoptar medidas de control"]
[501,2,"Corregir y adoptar medidas de control"]
[500,2,"Corregir y adoptar medidas de control"]
[499,2,"Corregir y adoptar medidas de control"]
[498,2,"Corregir y adoptar medidas de control"]
[497,2,"Corregir y adoptar medidas de control"]
[496,2,"Corregir y adoptar medidas de control"]
[495,2,"Corregir y adoptar medidas de control"]
[494,2,"Corregir y adoptar medidas de control"]
[493,2,"Corregir y adoptar medidas de control"]
[492,2,"Corregir y adoptar medidas de control"]
[491,2,"Corregir y adoptar medidas de control"]
[490,2,"Corregir y adoptar medidas de control"]
[489,2,"Corregir y adoptar medidas de control"]
[488,2,"Corregir y adoptar medidas de control"]
[487,2,"Corregir y adoptar medidas de control"]
[486,2,"Corregir y adoptar medidas de control"]
[485,2,"Corregir y adoptar medidas de control"]
[484,2,"Corregir y adoptar medidas de control"]
[483,2,"Corregir y adoptar medidas de control"]
[482,2,"Corregir y adoptar medidas de control"]
[481,2,"Corregir y adoptar medidas de control"]
[480,2,"Corregir y adoptar medidas de control"]
[479,2,"Corregir y adoptar medidas de control"]
[478,2,"Corregir y adoptar medidas de control"]
[477,2,"Corregir y adoptar medidas de control"]
[476,2,"Corregir y adoptar medidas de control"]
[475,2,"Corregir y adoptar medidas de control"]
[474,2,"Corregir y adoptar medidas de control"]
[473,2,"Corregir y adoptar medidas de control"]
[472,2,"Corregir y adoptar medidas de control"]
[471,2,"Corregir y adoptar medidas de control"]
[470,2,"Corregir y adoptar medidas de control"]
[469,2,"Corregir y adoptar medidas de control"]
[468,2,"Corregir y adoptar medidas de control"]
[467,2,"Corregir y adoptar medidas de control"]
[466,2,"Corregir y adoptar medidas de control"]
[465,2,"Corregir y adoptar medidas de control"]
[464,2,"Corregir y adoptar medidas de control"]
[463,2,"Corregir y adoptar medidas de control"]
[462,2,"Corregir y adoptar medidas de control"]
[461,2,"Corregir y adoptar medidas de control"]
[460,2,"Corregir y adoptar medidas de control"]
[459,2,"Corregir y adoptar medidas de control"]
[458,2,"Corregir y adoptar medidas de control"]
[457,2,"Corregir y adoptar medidas de control"]
[456,2,"Corregir y adoptar medidas de control"]
[455,2,"Corregir y adoptar medidas de control"]
[454,2,"Corregir y adoptar medidas de control"]
[453,2,"Corregir y adoptar medidas de control"]
[452,2,"Corregir y adoptar medidas de control"]
[451,2,"Corregir y adoptar medidas de control"]
[450,2,"Corregir y adoptar medidas de control"]
[449,2,"Corregir y adoptar medidas de control"]
[448,2,"Corregir y adoptar medidas de control"]
[447,2,"Corregir y adoptar medidas de control"]
[446,2,"Corregir y adoptar medidas de control"]
[445,2,"Corregir y adoptar medidas de control"]
[444,2,"Corregir y adoptar medidas de control"]
[443,2,"Corregir y adoptar medidas de control"]
[442,2,"Corregir y adoptar medidas de control"]
[441,2,"Corregir y adoptar medidas de control"]
[440,2,"Corregir y adoptar medidas de control"]
[439,2,"Corregir y adoptar medidas de control"]
[438,2,"Corregir y adoptar medidas de control"]
[437,2,"Corregir y adoptar medidas de control"]
[436,2,"Corregir y adoptar medidas de control"]
[435,2,"Corregir y adoptar medidas de control"]
[434,2,"Corregir y adoptar medidas de control"]
[433,2,"Corregir y adoptar medidas de control"]
[432,2,"Corregir y adoptar medidas de control"]
[431,2,"Corregir y adoptar medidas de control"]
[430,2,"Corregir y adoptar medidas de control"]
[429,2,"Corregir y adoptar medidas de control"]
[428,2,"Corregir y adoptar medidas de control"]
[427,2,"Corregir y adoptar medidas de control"]
[426,2,"Corregir y adoptar medidas de control"]
[425,2,"Corregir y adoptar medidas de control"]
[424,2,"Corregir y adoptar medidas de control"]
[423,2,"Corregir y adoptar medidas de control"]
[422,2,"Corregir y adoptar medidas de control"]
[421,2,"Corregir y adoptar medidas de control"]
[420,2,"Corregir y adoptar medidas de control"]
[419,2,"Corregir y adoptar medidas de control"]
[418,2,"Corregir y adoptar medidas de control"]
[417,2,"Corregir y adoptar medidas de control"]
[416,2,"Corregir y adoptar medidas de control"]
[415,2,"Corregir y adoptar medidas de control"]
[414,2,"Corregir y adoptar medidas de control"]
[413,2,"Corregir y adoptar medidas de control"]
[412,2,"Corregir y adoptar medidas de control"]
[411,2,"Corregir y adoptar medidas de control"]
[410,2,"Corregir y adoptar medidas de control"]
[409,2,"Corregir y adoptar medidas de control"]
[408,2,"Corregir y adoptar medidas de control"]
[407,2,"Corregir y adoptar medidas de control"]
[406,2,"Corregir y adoptar medidas de control"]
[405,2,"Corregir y adoptar medidas de control"]
[404,2,"Corregir y adoptar medidas de control"]
[403,2,"Corregir y adoptar medidas de control"]
[402,2,"Corregir y adoptar medidas de control"]
[401,2,"Corregir y adoptar medidas de control"]
[400,2,"Corregir y adoptar medidas de control"]
[399,2,"Corregir y adoptar medidas de control"]
[398,2,"Corregir y adoptar medidas de control"]
[397,2,"Corregir y adoptar medidas de control"]
[396,2,"Corregir y adoptar medidas de control"]
[395,2,"Corregir y adoptar medidas de control"]
[394,2,"Corregir y adoptar medidas de control"]
[393,2,"Corregir y adoptar medidas de control"]
[392,2,"Corregir y adoptar medidas de control"]
[391,2,"Corregir y adoptar medidas de control"]
[390,2,"Corregir y adoptar medidas de control"]
[389,2,"Corregir y adoptar medidas de control"]
[388,2,"Corregir y adoptar medidas de control"]
[387,2,"Corregir y adoptar medidas de control"]
[386,2,"Corregir y adoptar medidas de control"]
[385,2,"Corregir y adoptar medidas de control"]
[384,2,"Corregir y adoptar medidas de control"]
[383,2,"Corregir y adoptar medidas de control"]
[382,2,"Corregir y adoptar medidas de control"]
[381,2,"Corregir y adoptar medidas de control"]
[380,2,"Corregir y adoptar medidas de control"]
[379,2,"Corregir y adoptar medidas de control"]
[378,2,"Corregir y adoptar medidas de control"]
[377,2,"Corregir y adoptar medidas de control"]
[376,2,"Corregir y adoptar medidas de control"]
[375,2,"Corregir y adoptar medidas de control"]
[374,2,"Corregir y adoptar medidas de control"]
[373,2,"Corregir y adoptar medidas de control"]
[372,2,"Corregir y adoptar medidas de control"]
[371,2,"Corregir y adoptar medidas de control"]
[370,2,"Corregir y adoptar medidas de control"]
[369,2,"Corregir y adoptar medidas de control"]
[368,2,"Corregir y adoptar medidas de control"]
[367,2,"Corregir y adoptar medidas de control"]
[366,2,"Corregir y adoptar medidas de control"]
[365,2,"Corregir y adoptar medidas de control"]
[364,2,"Corregir y adoptar medidas de control"]
[363,2,"Corregir y adoptar medidas de control"]
[362,2,"Corregir y adoptar medidas de control"]
[361,2,"Corregir y adoptar medidas de control"]
[360,2,"Corregir y adoptar medidas de control"]
[359,2,"Corregir y adoptar medidas de control"]
[358,2,"Corregir y adoptar medidas de control"]
[357,2,"Corregir y adoptar medidas de control"]
[356,2,"Corregir y adoptar medidas de control"]
[355,2,"Corregir y adoptar medidas de control"]
[354,2,"Corregir y adoptar medidas de control"]
[353,2,"Corregir y adoptar medidas de control"]
[352,2,"Corregir y adoptar medidas de control"]
[351,2,"Corregir y adoptar medidas de control"]
[350,2,"Corregir y adoptar medidas de control"]
[349,2,"Corregir y adoptar medidas de control"]
[348,2,"Corregir y adoptar medidas de control"]
[347,2,"Corregir y adoptar medidas de control"]
[346,2,"Corregir y adoptar medidas de control"]
[345,2,"Corregir y adoptar medidas de control"]
[344,2,"Corregir y adoptar medidas de control"]
[343,2,"Corregir y adoptar medidas de control"]
[342,2,"Corregir y adoptar medidas de control"]
[341,2,"Corregir y adoptar medidas de control"]
[340,2,"Corregir y adoptar medidas de control"]
[339,2,"Corregir y adoptar medidas de control"]
[338,2,"Corregir y adoptar medidas de control"]
[337,2,"Corregir y adoptar medidas de control"]
[336,2,"Corregir y adoptar medidas de control"]
[335,2,"Corregir y adoptar medidas de control"]
[334,2,"Corregir y adoptar medidas de control"]
[333,2,"Corregir y adoptar medidas de control"]
[332,2,"Corregir y adoptar medidas de control"]
[331,2,"Corregir y adoptar medidas de control"]
[330,2,"Corregir y adoptar medidas de control"]
[329,2,"Corregir y adoptar medidas de control"]
[328,2,"Corregir y adoptar medidas de control"]
[327,2,"Corregir y adoptar medidas de control"]
[326,2,"Corregir y adoptar medidas de control"]
[325,2,"Corregir y adoptar medidas de control"]
[324,2,"Corregir y adoptar medidas de control"]
[323,2,"Corregir y adoptar medidas de control"]
[322,2,"Corregir y adoptar medidas de control"]
[321,2,"Corregir y adoptar medidas de control"]
[320,2,"Corregir y adoptar medidas de control"]
[319,2,"Corregir y adoptar medidas de control"]
[318,2,"Corregir y adoptar medidas de control"]
[317,2,"Corregir y adoptar medidas de control"]
[316,2,"Corregir y adoptar medidas de control"]
[315,2,"Corregir y adoptar medidas de control"]
[314,2,"Corregir y adoptar medidas de control"]
[313,2,"Corregir y adoptar medidas de control"]
[312,2,"Corregir y adoptar medidas de control"]
[311,2,"Corregir y adoptar medidas de control"]
[310,2,"Corregir y adoptar medidas de control"]
[309,2,"Corregir y adoptar medidas de control"]
[308,2,"Corregir y adoptar medidas de control"]
[307,2,"Corregir y adoptar medidas de control"]
[306,2,"Corregir y adoptar medidas de control"]
[305,2,"Corregir y adoptar medidas de control"]
[304,2,"Corregir y adoptar medidas de control"]
[303,2,"Corregir y adoptar medidas de control"]
[302,2,"Corregir y adoptar medidas de control"]
[301,2,"Corregir y adoptar medidas de control"]
[300,2,"Corregir y adoptar medidas de control"]
[299,2,"Corregir y adoptar medidas de control"]
[298,2,"Corregir y adoptar medidas de control"]
[297,2,"Corregir y adoptar medidas de control"]
[296,2,"Corregir y adoptar medidas de control"]
[295,2,"Corregir y adoptar medidas de control"]
[294,2,"Corregir y adoptar medidas de control"]
[293,2,"Corregir y adoptar medidas de control"]
[292,2,"Corregir y adoptar medidas de control"]
[291,2,"Corregir y adoptar medidas de control"]
[290,2,"Corregir y adoptar medidas de control"]
[289,2,"Corregir y adoptar medidas de control"]
[288,2,"Corregir y adoptar medidas de control"]
[287,2,"Corregir y adoptar medidas de control"]
[286,2,"Corregir y adoptar medidas de control"]
[285,2,"Corregir y adoptar medidas de control"]
[284,2,"Corregir y adoptar medidas de control"]
[283,2,"Corregir y adoptar medidas de control"]
[282,2,"Corregir y adoptar medidas de control"]
[281,2,"Corregir y adoptar medidas de control"]
[280,2,"Corregir y adoptar medidas de control"]
[279,2,"Corregir y adoptar medidas de control"]
[278,2,"Corregir y adoptar medidas de control"]
[277,2,"Corregir y adoptar medidas de control"]
[276,2,"Corregir y adoptar medidas de control"]
[275,2,"Corregir y adoptar medidas de control"]
[274,2,"Corregir y adoptar medidas de control"]
[273,2,"Corregir y adoptar medidas de control"]
[272,2,"Corregir y adoptar medidas de control"]
[271,2,"Corregir y adoptar medidas de control"]
[270,2,"Corregir y adoptar medidas de control"]
[269,2,"Corregir y adoptar medidas de control"]
[268,2,"Corregir y adoptar medidas de control"]
[267,2,"Corregir y adoptar medidas de control"]
[266,2,"Corregir y adoptar medidas de control"]
[265,2,"Corregir y adoptar medidas de control"]
[264,2,"Corregir y adoptar medidas de control"]
[263,2,"Corregir y adoptar medidas de control"]
[262,2,"Corregir y adoptar medidas de control"]
[261,2,"Corregir y adoptar medidas de control"]
[260,2,"Corregir y adoptar medidas de control"]
[259,2,"Corregir y adoptar medidas de control"]
[258,2,"Corregir y adoptar medidas de control"]
[257,2,"Corregir y adoptar medidas de control"]
[256,2,"Corregir y adoptar medidas de control"]
[255,2,"Corregir y adoptar medidas de control"]
[254,2,"Corregir y adoptar medidas de control"]
[253,2,"Corregir y adoptar medidas de control"]
[252,2,"Corregir y adoptar medidas de control"]
[251,2,"Corregir y adoptar medidas de control"]
[250,2,"Corregir y adoptar medidas de control"]
[249,2,"Corregir y adoptar medidas de control"]
[248,2,"Corregir y adoptar medidas de control"]
[247,2,"Corregir y adoptar medidas de control"]
[246,2,"Corregir y adoptar medidas de control"]
[245,2,"Corregir y adoptar medidas de control"]
[244,2,"Corregir y adoptar medidas de control"]
[243,2,"Corregir y adoptar medidas de control"]
[242,2,"Corregir y adoptar medidas de control"]
[241,2,"Corregir y adoptar medidas de control"]
[240,2,"Corregir y adoptar medidas de control"]
[239,2,"Corregir y adoptar medidas de control"]
[238,2,"Corregir y adoptar medidas de control"]
[237,2,"Corregir y adoptar medidas de control"]
[236,2,"Corregir y adoptar medidas de control"]
[235,2,"Corregir y adoptar medidas de control"]
[234,2,"Corregir y adoptar medidas de control"]
[233,2,"Corregir y adoptar medidas de control"]
[232,2,"Corregir y adoptar medidas de control"]
[231,2,"Corregir y adoptar medidas de control"]
[230,2,"Corregir y adoptar medidas de control"]
[229,2,"Corregir y adoptar medidas de control"]
[228,2,"Corregir y adoptar medidas de control"]
[227,2,"Corregir y adoptar medidas de control"]
[226,2,"Corregir y adoptar medidas de control"]
[225,2,"Corregir y adoptar medidas de control"]
[224,2,"Corregir y adoptar medidas de control"]
[223,2,"Corregir y adoptar medidas de control"]
[222,2,"Corregir y adoptar medidas de control"]
[221,2,"Corregir y adoptar medidas de control"]
[220,2,"Corregir y adoptar medidas de control"]
[219,2,"Corregir y adoptar medidas de control"]
[218,2,"Corregir y adoptar medidas de control"]
[217,2,"Corregir y adoptar medidas de control"]
[216,2,"Corregir y adoptar medidas de control"]
[215,2,"Corregir y adoptar medidas de control"]
[214,2,"Corregir y adoptar medidas de control"]
[213,2,"Corregir y adoptar medidas de control"]
[212,2,"Corregir y adoptar medidas de control"]
[211,2,"Corregir y adoptar medidas de control"]
[210,2,"Corregir y adoptar medidas de control"]
[209,2,"Corregir y adoptar medidas de control"]
[208,2,"Corregir y adoptar medidas de control"]
[207,2,"Corregir y adoptar medidas de control"]
[206,2,"Corregir y adoptar medidas de control"]
[205,2,"Corregir y adoptar medidas de control"]
[204,2,"Corregir y adoptar medidas de control"]
[203,2,"Corregir y adoptar medidas de control"]
[202,2,"Corregir y adoptar medidas de control"]
[201,2,"Corregir y adoptar medidas de control"]
[200,2,"Corregir y adoptar medidas de control"]
[199,2,"Corregir y adoptar medidas de control"]
[198,2,"Corregir y adoptar medidas de control"]
[197,2,"Corregir y adoptar medidas de control"]
[196,2,"Corregir y adoptar medidas de control"]
[195,2,"Corregir y adoptar medidas de control"]
[194,2,"Corregir y adoptar medidas de control"]
[193,2,"Corregir y adoptar medidas de control"]
[192,2,"Corregir y adoptar medidas de control"]
[191,2,"Corregir y adoptar medidas de control"]
[190,2,"Corregir y adoptar medidas de control"]
[189,2,"Corregir y adoptar medidas de control"]
[188,2,"Corregir y adoptar medidas de control"]
[187,2,"Corregir y adoptar medidas de control"]
[186,2,"Corregir y adoptar medidas de control"]
[185,2,"Corregir y adoptar medidas de control"]
[184,2,"Corregir y adoptar medidas de control"]
[183,2,"Corregir y adoptar medidas de control"]
[182,2,"Corregir y adoptar medidas de control"]
[181,2,"Corregir y adoptar medidas de control"]
[180,2,"Corregir y adoptar medidas de control"]
[179,2,"Corregir y adoptar medidas de control"]
[178,2,"Corregir y adoptar medidas de control"]
[177,2,"Corregir y adoptar medidas de control"]
[176,2,"Corregir y adoptar medidas de control"]
[175,2,"Corregir y adoptar medidas de control"]
[174,2,"Corregir y adoptar medidas de control"]
[173,2,"Corregir y adoptar medidas de control"]
[172,2,"Corregir y adoptar medidas de control"]
[171,2,"Corregir y adoptar medidas de control"]
[170,2,"Corregir y adoptar medidas de control"]
[169,2,"Corregir y adoptar medidas de control"]
[168,2,"Corregir y adoptar medidas de control"]
[167,2,"Corregir y adoptar medidas de control"]
[166,2,"Corregir y adoptar medidas de control"]
[165,2,"Corregir y adoptar medidas de control"]
[164,2,"Corregir y adoptar medidas de control"]
[163,2,"Corregir y adoptar medidas de control"]
[162,2,"Corregir y adoptar medidas de control"]
[161,2,"Corregir y adoptar medidas de control"]
[160,2,"Corregir y adoptar medidas de control"]
[159,2,"Corregir y adoptar medidas de control"]
[158,2,"Corregir y adoptar medidas de control"]
[157,2,"Corregir y adoptar medidas de control"]
[156,2,"Corregir y adoptar medidas de control"]
[155,2,"Corregir y adoptar medidas de control"]
[154,2,"Corregir y adoptar medidas de control"]
[153,2,"Corregir y adoptar medidas de control"]
[152,2,"Corregir y adoptar medidas de control"]
[151,2,"Corregir y adoptar medidas de control"]
[150,2,"Corregir y adoptar medidas de control"]
[149,3,"Mejorar si es posible. Sería conveniente justificar la intervención y su rentabilidad"]
[148,3,"Mejorar si es posible. Sería conveniente justificar la intervención y su rentabilidad"]
[147,3,"Mejorar si es posible. Sería conveniente justificar la intervención y su rentabilidad"]
[146,3,"Mejorar si es posible. Sería conveniente justificar la intervención y su rentabilidad"]
[145,3,"Mejorar si es posible. Sería conveniente justificar la intervención y su rentabilidad"]
[144,3,"Mejorar si es posible. Sería conveniente justificar la intervención y su rentabilidad"]
[143,3,"Mejorar si es posible. Sería conveniente justificar la intervención y su rentabilidad"]
[142,3,"Mejorar si es posible. Sería conveniente justificar la intervención y su rentabilidad"]
[141,3,"Mejorar si es posible. Sería conveniente justificar la intervención y su rentabilidad"]
[140,3,"Mejorar si es posible. Sería conveniente justificar la intervención y su rentabilidad"]
[139,3,"Mejorar si es posible. Sería conveniente justificar la intervención y su rentabilidad"]
[138,3,"Mejorar si es posible. Sería conveniente justificar la intervención y su rentabilidad"]
[137,3,"Mejorar si es posible. Sería conveniente justificar la intervención y su rentabilidad"]
[136,3,"Mejorar si es posible. Sería conveniente justificar la intervención y su rentabilidad"]
[135,3,"Mejorar si es posible. Sería conveniente justificar la intervención y su rentabilidad"]
[134,3,"Mejorar si es posible. Sería conveniente justificar la intervención y su rentabilidad"]
[133,3,"Mejorar si es posible. Sería conveniente justificar la intervención y su rentabilidad"]
[132,3,"Mejorar si es posible. Sería conveniente justificar la intervención y su rentabilidad"]
[131,3,"Mejorar si es posible. Sería conveniente justificar la intervención y su rentabilidad"]
[130,3,"Mejorar si es posible. Sería conveniente justificar la intervención y su rentabilidad"]
[129,3,"Mejorar si es posible. Sería conveniente justificar la intervención y su rentabilidad"]
[128,3,"Mejorar si es posible. Sería conveniente justificar la intervención y su rentabilidad"]
[127,3,"Mejorar si es posible. Sería conveniente justificar la intervención y su rentabilidad"]
[126,3,"Mejorar si es posible. Sería conveniente justificar la intervención y su rentabilidad"]
[125,3,"Mejorar si es posible. Sería conveniente justificar la intervención y su rentabilidad"]
[124,3,"Mejorar si es posible. Sería conveniente justificar la intervención y su rentabilidad"]
[123,3,"Mejorar si es posible. Sería conveniente justificar la intervención y su rentabilidad"]
[122,3,"Mejorar si es posible. Sería conveniente justificar la intervención y su rentabilidad"]
[121,3,"Mejorar si es posible. Sería conveniente justificar la intervención y su rentabilidad"]
[120,3,"Mejorar si es posible. Sería conveniente justificar la intervención y su rentabilidad"]
[119,3,"Mejorar si es posible. Sería conveniente justificar la intervención y su rentabilidad"]
[118,3,"Mejorar si es posible. Sería conveniente justificar la intervención y su rentabilidad"]
[117,3,"Mejorar si es posible. Sería conveniente justificar la intervención y su rentabilidad"]
[116,3,"Mejorar si es posible. Sería conveniente justificar la intervención y su rentabilidad"]
[115,3,"Mejorar si es posible. Sería conveniente justificar la intervención y su rentabilidad"]
[114,3,"Mejorar si es posible. Sería conveniente justificar la intervención y su rentabilidad"]
[113,3,"Mejorar si es posible. Sería conveniente justificar la intervención y su rentabilidad"]
[112,3,"Mejorar si es posible. Sería conveniente justificar la intervención y su rentabilidad"]
[111,3,"Mejorar si es posible. Sería conveniente justificar la intervención y su rentabilidad"]
[110,3,"Mejorar si es posible. Sería conveniente justificar la intervención y su rentabilidad"]
[109,3,"Mejorar si es posible. Sería conveniente justificar la intervención y su rentabilidad"]
[108,3,"Mejorar si es posible. Sería conveniente justificar la intervención y su rentabilidad"]
[107,3,"Mejorar si es posible. Sería conveniente justificar la intervención y su rentabilidad"]
[106,3,"Mejorar si es posible. Sería conveniente justificar la intervención y su rentabilidad"]
[105,3,"Mejorar si es posible. Sería conveniente justificar la intervención y su rentabilidad"]
[104,3,"Mejorar si es posible. Sería conveniente justificar la intervención y su rentabilidad"]
[103,3,"Mejorar si es posible. Sería conveniente justificar la intervención y su rentabilidad"]
[102,3,"Mejorar si es posible. Sería conveniente justificar la intervención y su rentabilidad"]
[101,3,"Mejorar si es posible. Sería conveniente justificar la intervención y su rentabilidad"]
[100,3,"Mejorar si es posible. Sería conveniente justificar la intervención y su rentabilidad"]
[99,3,"Mejorar si es posible. Sería conveniente justificar la intervención y su rentabilidad"]
[98,3,"Mejorar si es posible. Sería conveniente justificar la intervención y su rentabilidad"]
[97,3,"Mejorar si es posible. Sería conveniente justificar la intervención y su rentabilidad"]
[96,3,"Mejorar si es posible. Sería conveniente justificar la intervención y su rentabilidad"]
[95,3,"Mejorar si es posible. Sería conveniente justificar la intervención y su rentabilidad"]
[94,3,"Mejorar si es posible. Sería conveniente justificar la intervención y su rentabilidad"]
[93,3,"Mejorar si es posible. Sería conveniente justificar la intervención y su rentabilidad"]
[92,3,"Mejorar si es posible. Sería conveniente justificar la intervención y su rentabilidad"]
[91,3,"Mejorar si es posible. Sería conveniente justificar la intervención y su rentabilidad"]
[90,3,"Mejorar si es posible. Sería conveniente justificar la intervención y su rentabilidad"]
[89,3,"Mejorar si es posible. Sería conveniente justificar la intervención y su rentabilidad"]
[88,3,"Mejorar si es posible. Sería conveniente justificar la intervención y su rentabilidad"]
[87,3,"Mejorar si es posible. Sería conveniente justificar la intervención y su rentabilidad"]
[86,3,"Mejorar si es posible. Sería conveniente justificar la intervención y su rentabilidad"]
[85,3,"Mejorar si es posible. Sería conveniente justificar la intervención y su rentabilidad"]
[84,3,"Mejorar si es posible. Sería conveniente justificar la intervención y su rentabilidad"]
[83,3,"Mejorar si es posible. Sería conveniente justificar la intervención y su rentabilidad"]
[82,3,"Mejorar si es posible. Sería conveniente justificar la intervención y su rentabilidad"]
[81,3,"Mejorar si es posible. Sería conveniente justificar la intervención y su rentabilidad"]
[80,3,"Mejorar si es posible. Sería conveniente justificar la intervención y su rentabilidad"]
[79,3,"Mejorar si es posible. Sería conveniente justificar la intervención y su rentabilidad"]
[78,3,"Mejorar si es posible. Sería conveniente justificar la intervención y su rentabilidad"]
[77,3,"Mejorar si es posible. Sería conveniente justificar la intervención y su rentabilidad"]
[76,3,"Mejorar si es posible. Sería conveniente justificar la intervención y su rentabilidad"]
[75,3,"Mejorar si es posible. Sería conveniente justificar la intervención y su rentabilidad"]
[74,3,"Mejorar si es posible. Sería conveniente justificar la intervención y su rentabilidad"]
[73,3,"Mejorar si es posible. Sería conveniente justificar la intervención y su rentabilidad"]
[72,3,"Mejorar si es posible. Sería conveniente justificar la intervención y su rentabilidad"]
[71,3,"Mejorar si es posible. Sería conveniente justificar la intervención y su rentabilidad"]
[70,3,"Mejorar si es posible. Sería conveniente justificar la intervención y su rentabilidad"]
[69,3,"Mejorar si es posible. Sería conveniente justificar la intervención y su rentabilidad"]
[68,3,"Mejorar si es posible. Sería conveniente justificar la intervención y su rentabilidad"]
[67,3,"Mejorar si es posible. Sería conveniente justificar la intervención y su rentabilidad"]
[66,3,"Mejorar si es posible. Sería conveniente justificar la intervención y su rentabilidad"]
[65,3,"Mejorar si es posible. Sería conveniente justificar la intervención y su rentabilidad"]
[64,3,"Mejorar si es posible. Sería conveniente justificar la intervención y su rentabilidad"]
[63,3,"Mejorar si es posible. Sería conveniente justificar la intervención y su rentabilidad"]
[62,3,"Mejorar si es posible. Sería conveniente justificar la intervención y su rentabilidad"]
[61,3,"Mejorar si es posible. Sería conveniente justificar la intervención y su rentabilidad"]
[60,3,"Mejorar si es posible. Sería conveniente justificar la intervención y su rentabilidad"]
[59,3,"Mejorar si es posible. Sería conveniente justificar la intervención y su rentabilidad"]
[58,3,"Mejorar si es posible. Sería conveniente justificar la intervención y su rentabilidad"]
[57,3,"Mejorar si es posible. Sería conveniente justificar la intervención y su rentabilidad"]
[56,3,"Mejorar si es posible. Sería conveniente justificar la intervención y su rentabilidad"]
[55,3,"Mejorar si es posible. Sería conveniente justificar la intervención y su rentabilidad"]
[54,3,"Mejorar si es posible. Sería conveniente justificar la intervención y su rentabilidad"]
[53,3,"Mejorar si es posible. Sería conveniente justificar la intervención y su rentabilidad"]
[52,3,"Mejorar si es posible. Sería conveniente justificar la intervención y su rentabilidad"]
[51,3,"Mejorar si es posible. Sería conveniente justificar la intervención y su rentabilidad"]
[50,3,"Mejorar si es posible. Sería conveniente justificar la intervención y su rentabilidad"]
[49,3,"Mejorar si es posible. Sería conveniente justificar la intervención y su rentabilidad"]
[48,3,"Mejorar si es posible. Sería conveniente justificar la intervención y su rentabilidad"]
[47,3,"Mejorar si es posible. Sería conveniente justificar la intervención y su rentabilidad"]
[46,3,"Mejorar si es posible. Sería conveniente justificar la intervención y su rentabilidad"]
[45,3,"Mejorar si es posible. Sería conveniente justificar la intervención y su rentabilidad"]
[44,3,"Mejorar si es posible. Sería conveniente justificar la intervención y su rentabilidad"]
[43,3,"Mejorar si es posible. Sería conveniente justificar la intervención y su rentabilidad"]
[42,3,"Mejorar si es posible. Sería conveniente justificar la intervención y su rentabilidad"]
[41,3,"Mejorar si es posible. Sería conveniente justificar la intervención y su rentabilidad"]
[40,3,"Mejorar si es posible. Sería conveniente justificar la intervención y su rentabilidad"]
[39,4,"No Intervenir, salvo que un analisis mas preciso lo justifique"]
[38,4,"No Intervenir, salvo que un analisis mas preciso lo justifique"]
[37,4,"No Intervenir, salvo que un analisis mas preciso lo justifique"]
[36,4,"No Intervenir, salvo que un analisis mas preciso lo justifique"]
[35,4,"No Intervenir, salvo que un analisis mas preciso lo justifique"]
[34,4,"No Intervenir, salvo que un analisis mas preciso lo justifique"]
[33,4,"No Intervenir, salvo que un analisis mas preciso lo justifique"]
[32,4,"No Intervenir, salvo que un analisis mas preciso lo justifique"]
[31,4,"No Intervenir, salvo que un analisis mas preciso lo justifique"]
[30,4,"No Intervenir, salvo que un analisis mas preciso lo justifique"]
[29,4,"No Intervenir, salvo que un analisis mas preciso lo justifique"]
[28,4,"No Intervenir, salvo que un analisis mas preciso lo justifique"]
[27,4,"No Intervenir, salvo que un analisis mas preciso lo justifique"]
[26,4,"No Intervenir, salvo que un analisis mas preciso lo justifique"]
[25,4,"No Intervenir, salvo que un analisis mas preciso lo justifique"]
[24,4,"No Intervenir, salvo que un analisis mas preciso lo justifique"]
[23,4,"No Intervenir, salvo que un analisis mas preciso lo justifique"]
[22,4,"No Intervenir, salvo que un analisis mas preciso lo justifique"]
[21,4,"No Intervenir, salvo que un analisis mas preciso lo justifique"]
[20,4,"No Intervenir, salvo que un analisis mas preciso lo justifique"]
[19,4,"No Intervenir, salvo que un analisis mas preciso lo justifique"]
[18,4,"No Intervenir, salvo que un analisis mas preciso lo justifique"]
[17,4,"No Intervenir, salvo que un analisis mas preciso lo justifique"]
[16,4,"No Intervenir, salvo que un analisis mas preciso lo justifique"]
[15,4,"No Intervenir, salvo que un analisis mas preciso lo justifique"]
[14,4,"No Intervenir, salvo que un analisis mas preciso lo justifique"]
[13,4,"No Intervenir, salvo que un analisis mas preciso lo justifique"]
[12,4,"No Intervenir, salvo que un analisis mas preciso lo justifique"]
[11,4,"No Intervenir, salvo que un analisis mas preciso lo justifique"]
[10,4,"No Intervenir, salvo que un analisis mas preciso lo justifique"]
[9,4,"No Intervenir, salvo que un analisis mas preciso lo justifique"]
[8,4,"No Intervenir, salvo que un analisis mas preciso lo justifique"]
[7,4,"No Intervenir, salvo que un analisis mas preciso lo justifique"]
[6,4,"No Intervenir, salvo que un analisis mas preciso lo justifique"]
[5,4,"No Intervenir, salvo que un analisis mas preciso lo justifique"]
[4,4,"No Intervenir, salvo que un analisis mas preciso lo justifique"]
[3,4,"No Intervenir, salvo que un analisis mas preciso lo justifique"]
[2,4,"No Intervenir, salvo que un analisis mas preciso lo justifique"]
[1,4,"No Intervenir, salvo que un analisis mas preciso lo justifique"]
[0,4,"No Intervenir, salvo que un analisis mas preciso lo justifique"]

{"sheet":"RIESGOS GRALES","index":7,"n_rows":51,"n_cols":1,"rows_kept":51,"hidden":true}
["010 caída de personas a distinto nivel"]
["020 Caída de personas al mismo nivel"]
["030 Caída de objetos por desplome o derrumbamiento"]
["040 caída de objetos en manipulación"]
["050 caída de objetos desprendidos"]
["060 Pisadas sobre objetos"]
["070 Choques contra objetos inmóviles"]
["080 choques contra objetos móviles"]
["090 Golpes/cortes por objetos o herramientas"]
["100 Proyección de fragmentos o partículas"]
["110 Atrapamiento por o entre objetos"]
["120 Atrapamiento por vuelco de máquinas o vehículos"]
["130 Sobreesfuerzos"]
["140 Exposición a temperaturas ambientales extremas"]
["150 Contactos térmicos"]
["161 Contactos eléctricos directos"]
["162 Contactos eléctricos indirectos"]
["170 Exposición a sustancias nocivas o tóxicas"]
["180 Contactos con sustancias cáusticas y/o corrosivas"]
["190 Exposición a radiaciones"]
["200 Explosiones"]
["211 Incendios, Factor de inicio"]
["212 Incendios, Propagación"]
["213 Incendios, Medios de lucha"]
["214 Incendios, Evacuación"]
["220 Accidentes causados por seres vivos"]
["230 Atropellos o golpes con vehículos"]
["310 Exposición a contaminantes químicos"]
["320 Exposición a contaminantes biológicos"]
["330 Ruido"]
["340 Vibraciones"]
["350 Estrés térmico"]
["360 Radiaciones ionizantes"]
["370 Radiaciones no ionizantes"]
["380 Iluminación"]
["410 Física. Posición"]
["420 Física. Desplazamiento"]
["430 Física. Esfuerzo"]
["440 Física. Manejos de cargas"]
["450 Mental. Recepción de la información"]
["460 Mental. Tratamiento de la información"]
["470 Mental. Respuesta"]
["480 Fatiga crónica"]
["490 Fatiga visual"]
["510 Contenido"]
["520 Monotonía"]
["530 Roles"]
["540 Autonomía"]
["550 Comunicaciones"]
["560 Relaciones"]
["570 Tiempo de trabajo"]

{"sheet":"datos","index":8,"n_rows":5,"n_cols":9,"rows_kept":5,"hidden":true}
["Rutinarias",null,"Lesión Corporal","Si",10,null,4,null,100]
["No Rutinarias",null,"Dolencia Ocupacional","No",6,null,3,null,60]
[null,null,"Daños Materiales",null,2,null,2,null,25]
[null,null,"LC y DM",null,1,null,1,null,10]
[null,null,"DO y DM"]

{"sheet":"GRAFICOS","index":9,"n_rows":120,"n_cols":5,"rows_kept":120,"merged":[[8,1,9,4],[10,1,10,3],[11,1,11,3],[12,1,12,3],[13,1,13,3],[28,1,29,4],[30,1,30,3],[31,1,31,3],[47,1,48,4],[49,1,49,3],[50,1,50,3],[51,1,51,3],[52,1,52,3],[53,1,53,3],[54,1,54,3],[55,1,55,3],[56,1,56,3],[57,1,57,3],[58,1,58,3],[59,1,59,3],[60,1,60,3],[61,1,61,3],[62,1,62,3],[63,1,63,3],[64,1,64,3],[65,1,65,3],[66,1,66,3],[67,1,67,3],[68,1,68,3],[69,1,69,3],[70,1,70,3],[71,1,71,3],[72,1,72,3],[73,1,73,3],[74,1,74,3],[75,1,75,3],[76,1,76,3],[77,1,77,3],[78,1,78,3],[79,1,79,3],[80,1,80,3],[81,1,81,3],[82,1,82,3],[83,1,83,3],[84,1,84,3],[85,1,85,3],[86,1,86,3],[87,1,87,3],[88,1,88,3],[89,1,89,3],[90,1,90,3],[91,1,91,3],[92,1,92,3],[93,1,93,3],[94,1,94,3],[95,1,95,3],[96,1,96,3],[97,1,97,3],[98,1,98,3],[99,1,99,3],[100,1,100,3],[113,1,114,4],[115,1,115,3],[116,1,116,3],[117,1,117,3],[118,1,118,3],[119,1,119,3]]}
{"$rows_empty":8}
[null,"Status Nivel de Intervención"]
[]
[null,"Situación Crítica. Correccción Urgente",null,null,{"$f":"COUNTIF(IPER!Y8:Y24353,GRAFICOS!B11)","v":14}]
[null,"Corregir y adoptar medidas de control",null,null,{"$f":"COUNTIF(IPER!Y8:Y24354,GRAFICOS!B12)","v":2}]
[null,"Mejorar si es posible. Sería conveniente justificar la intervención y su rentabilidad",null,null,{"$f":"COUNTIF(IPER!Y8:Y24355,GRAFICOS!B13)","v":4}]
[null,"No Intervenir, salvo que un analisis mas preciso lo justifique",null,null,{"$f":"COUNTIF(IPER!Y8:Y24356,GRAFICOS!B14)","v":4}]
{"$rows_empty":14}
[null,"¿Se cumplen los requisitos legales?"]
[]
[null,"Si",null,null,{"$f":"COUNTIF(IPER!O8:O24373,B31)","v":18}]
[null,"No",null,null,{"$f":"COUNTIF(IPER!O8:O24373,B32)","v":6}]
{"$rows_empty":15}
[null,"PELIGROS"]
[]
[null,"010 caída de personas a distinto nivel",null,null,{"$f":"COUNTIF(IPER!$I$8:$I$5572,GRAFICOS!B50)","v":2}]
[null,"020 Caída de personas al mismo nivel",null,null,{"$f":"COUNTIF(IPER!$I$8:$I$5572,GRAFICOS!B51)","v":2}]
[null,"030 Caída de objetos por desplome o derrumbamiento",null,null,{"$f":"COUNTIF(IPER!$I$8:$I$5572,GRAFICOS!B52)","v":2}]
[null,"040 caída de objetos en manipulación",null,null,{"$f":"COUNTIF(IPER!$I$8:$I$5572,GRAFICOS!B53)","v":0}]
[null,"050 caída de objetos desprendidos",null,null,{"$f":"COUNTIF(IPER!$I$8:$I$5572,GRAFICOS!B54)","v":2}]
[null,"060 Pisadas sobre objetos",null,null,{"$f":"COUNTIF(IPER!$I$8:$I$5572,GRAFICOS!B55)","v":2}]
[null,"070 Choques contra objetos inmóviles",null,null,{"$f":"COUNTIF(IPER!$I$8:$I$5572,GRAFICOS!B56)","v":2}]
[null,"080 choques contra objetos móviles",null,null,{"$f":"COUNTIF(IPER!$I$8:$I$5572,GRAFICOS!B57)","v":4}]
[null,"090 Golpes/cortes por objetos o herramientas",null,null,{"$f":"COUNTIF(IPER!$I$8:$I$5572,GRAFICOS!B58)","v":0}]
[null,"100 Proyección de fragmentos o partículas",null,null,{"$f":"COUNTIF(IPER!$I$8:$I$5572,GRAFICOS!B59)","v":0}]
[null,"110 Atrapamiento por o entre objetos",null,null,{"$f":"COUNTIF(IPER!$I$8:$I$5572,GRAFICOS!B60)","v":0}]
[null,"120 Atrapamiento por vuelco de máquinas o vehículos",null,null,{"$f":"COUNTIF(IPER!$I$8:$I$5572,GRAFICOS!B61)","v":0}]
[null,"130 Sobreesfuerzos",null,null,{"$f":"COUNTIF(IPER!$I$8:$I$5572,GRAFICOS!B62)","v":0}]
[null,"140 Exposición a temperaturas ambientales extremas",null,null,{"$f":"COUNTIF(IPER!$I$8:$I$5572,GRAFICOS!B63)","v":0}]
[null,"150 Contactos térmicos",null,null,{"$f":"COUNTIF(IPER!$I$8:$I$5572,GRAFICOS!B64)","v":1}]
[null,"161 Contactos eléctricos directos",null,null,{"$f":"COUNTIF(IPER!$I$8:$I$5572,GRAFICOS!B65)","v":0}]
[null,"162 Contactos eléctricos indirectos",null,null,{"$f":"COUNTIF(IPER!$I$8:$I$5572,GRAFICOS!B66)","v":0}]
[null,"170 Exposición a sustancias nocivas o tóxicas",null,null,{"$f":"COUNTIF(IPER!$I$8:$I$5572,GRAFICOS!B67)","v":0}]
[null,"180 Contactos con sustancias cáusticas y/o corrosivas",null,null,{"$f":"COUNTIF(IPER!$I$8:$I$5572,GRAFICOS!B68)","v":0}]
[null,"190 Exposición a radiaciones",null,null,{"$f":"COUNTIF(IPER!$I$8:$I$5572,GRAFICOS!B69)","v":0}]
[null,"200 Explosiones",null,null,{"$f":"COUNTIF(IPER!$I$8:$I$5572,GRAFICOS!B70)","v":0}]
[null,"211 Incendios, Factor de inicio",null,null,{"$f":"COUNTIF(IPER!$I$8:$I$5572,GRAFICOS!B71)","v":3}]
[null,"212 Incendios, Propagación",null,null,{"$f":"COUNTIF(IPER!$I$8:$I$5572,GRAFICOS!B72)","v":0}]
[null,"213 Incendios, Medios de lucha",null,null,{"$f":"COUNTIF(IPER!$I$8:$I$5572,GRAFICOS!B73)","v":0}]
[null,"214 Incendios, Evacuación",null,null,{"$f":"COUNTIF(IPER!$I$8:$I$5572,GRAFICOS!B74)","v":2}]
[null,"220 Accidentes causados por seres vivos",null,null,{"$f":"COUNTIF(IPER!$I$8:$I$5572,GRAFICOS!B75)","v":0}]
[null,"230 Atropellos o golpes con vehículos",null,null,{"$f":"COUNTIF(IPER!$I$8:$I$5572,GRAFICOS!B76)","v":0}]
[null,"310 Exposición a contaminantes químicos",null,null,{"$f":"COUNTIF(IPER!$I$8:$I$5572,GRAFICOS!B77)","v":0}]
[null,"320 Exposición a contaminantes biológicos",null,null,{"$f":"COUNTIF(IPER!$I$8:$I$5572,GRAFICOS!B78)","v":0}]
[null,"330 Ruido",null,null,{"$f":"COUNTIF(IPER!$I$8:$I$5572,GRAFICOS!B79)","v":0}]
[null,"340 Vibraciones",null,null,{"$f":"COUNTIF(IPER!$I$8:$I$5572,GRAFICOS!B80)","v":0}]
[null,"350 Estrés térmico",null,null,{"$f":"COUNTIF(IPER!$I$8:$I$5572,GRAFICOS!B81)","v":0}]
[null,"360 Radiaciones ionizantes",null,null,{"$f":"COUNTIF(IPER!$I$8:$I$5572,GRAFICOS!B82)","v":0}]
[null,"370 Radiaciones no ionizantes",null,null,{"$f":"COUNTIF(IPER!$I$8:$I$5572,GRAFICOS!B83)","v":1}]
[null,"380 Iluminación",null,null,{"$f":"COUNTIF(IPER!$I$8:$I$5572,GRAFICOS!B84)","v":0}]
[null,"410 Física. Posición",null,null,{"$f":"COUNTIF(IPER!$I$8:$I$5572,GRAFICOS!B85)","v":0}]
[null,"420 Física. Desplazamiento",null,null,{"$f":"COUNTIF(IPER!$I$8:$I$5572,GRAFICOS!B86)","v":0}]
[null,"430 Física. Esfuerzo",null,null,{"$f":"COUNTIF(IPER!$I$8:$I$5572,GRAFICOS!B87)","v":0}]
[null,"440 Física. Manejos de cargas",null,null,{"$f":"COUNTIF(IPER!$I$8:$I$5572,GRAFICOS!B88)","v":0}]
[null,"450 Mental. Recepción de la información",null,null,{"$f":"COUNTIF(IPER!$I$8:$I$5572,GRAFICOS!B89)","v":0}]
[null,"460 Mental. Tratamiento de la información",null,null,{"$f":"COUNTIF(IPER!$I$8:$I$5572,GRAFICOS!B90)","v":0}]
[null,"470 Mental. Respuesta",null,null,{"$f":"COUNTIF(IPER!$I$8:$I$5572,GRAFICOS!B91)","v":0}]
[null,"480 Fatiga crónica",null,null,{"$f":"COUNTIF(IPER!$I$8:$I$5572,GRAFICOS!B92)","v":0}]
[null,"490 Fatiga visual",null,null,{"$f":"COUNTIF(IPER!$I$8:$I$5572,GRAFICOS!B93)","v":1}]
[null,"510 Contenido",null,null,{"$f":"COUNTIF(IPER!$I$8:$I$5572,GRAFICOS!B94)","v":0}]
[null,"520 Monotonía",null,null,{"$f":"COUNTIF(IPER!$I$8:$I$5572,GRAFICOS!B95)","v":0}]
[null,"530 Roles",null,null,{"$f":"COUNTIF(IPER!$I$8:$I$5572,GRAFICOS!B96)","v":0}]
[null,"540 Autonomía",null,null,{"$f":"COUNTIF(IPER!$I$8:$I$5572,GRAFICOS!B97)","v":0}]
[null,"550 Comunicaciones",null,null,{"$f":"COUNTIF(IPER!$I$8:$I$5572,GRAFICOS!B98)","v":0}]
[null,"560 Relaciones",null,null,{"$f":"COUNTIF(IPER!$I$8:$I$5572,GRAFICOS!B99)","v":0}]
[null,"570 Tiempo de trabajo",null,null,{"$f":"COUNTIF(IPER!$I$8:$I$5572,GRAFICOS!B100)","v":0}]
{"$rows_empty":13}
[null,"TIPO DE DAÑO"]
[]
[null,"Lesión Corporal",null,null,{"$f":"COUNTIF(IPER!$K$8:$K$5572,B116)","v":8}]
[null,"Dolencia Ocupacional",null,null,{"$f":"COUNTIF(IPER!$K$8:$K$5572,B117)","v":6}]
[null,"Daños Materiales",null,null,{"$f":"COUNTIF(IPER!$K$8:$K$5572,B118)","v":6}]
[null,"LC y DM",null,null,{"$f":"COUNTIF(IPER!$K$8:$K$5572,B119)","v":0}]
[null,"DO y DM",null,null,{"$f":"COUNTIF(IPER!$K$8:$K$5572,B120)","v":4}]

{"sheet":"PLANDEACCION","index":10,"n_rows":0,"n_cols":0,"rows_kept":0}